Body Name,Portfolio,Organisation Code,Org Code Description,Object Code,Object Code Description,GL Date,Invoice No,Value,Supplier,Category,Category Description,Supplier No
SHEFFIELD CITY COUNCIL        ,CYPF                          ,39357,SHORT BREAKS FUNDING FOR DISAB,9120,OTHER AGENCIES                ,03/01/2016,42359,"3,750.00",ASPERGERS CHILDREN & CARERS TOGETHER    ,,CHARITIES & VOLUNTARY ORGANISA,
SHEFFIELD CITY COUNCIL        ,CYPF                          ,39357,SHORT BREAKS FUNDING FOR DISAB,9120,OTHER AGENCIES                ,03/01/2016,18289/SUS                ,931.50,UNIVERSITY OF SHEFFIELD                 ,,UNIVERSITIES & MEDICAL SCHOOLS,
SHEFFIELD CITY COUNCIL        ,CYPF                          ,39147,PREVENTION & SUPPORT - CDT    ,9270,CARELEAVERS INDEPENDENT LIVING,03/01/2016,1005999214,600.00,HAYS PERSONNEL                          ,,EMPLOYMENT & RECRUITMENT AGENC,
SHEFFIELD CITY COUNCIL        ,CYPF                          ,39357,SHORT BREAKS FUNDING FOR DISAB,9120,OTHER AGENCIES                ,03/01/2016,INV.T00997               ,"4,035.00",THE ADSETTS PARTNERSHIP C/O AUTISM PLUS ,,CHARITIES & VOLUNTARY ORGANISA,
SHEFFIELD CITY COUNCIL        ,CYPF                          ,39357,SHORT BREAKS FUNDING FOR DISAB,9120,OTHER AGENCIES                ,03/01/2016,AMY2312                  ,"1,990.59",AMY'S HOUSE LTD                         ,,CHARITIES & VOLUNTARY ORGANISA,
SHEFFIELD CITY COUNCIL        ,CYPF                          ,33050,CONSTRUCTION DESIGN CENTRE    ,9120,OTHER AGENCIES                ,04/01/2016,ERS INVOICE131084        ,663.00,BARNBOW PROPERTY SERVICES               ,,PROPERTY & ESTATE MANAGEMENT  ,
SHEFFIELD CITY COUNCIL        ,COMMUNITIES                   ,49466,REGISTRATION & REGULATION     ,4080,FEES & CHARGES                ,04/01/2016,ERS INVOICE131090        ,335.00,DOVE PROPERTIES AND ESTATES LTD         ,,LETTING AGENTS                ,
SHEFFIELD CITY COUNCIL        ,COMMUNITIES                   ,49701,SOUTH EAST                    ,8180,GRANTS                        ,04/01/2016,ERS INVOICE131093        ,980.81,SPA VIEW COMMUNITY CHURCH               ,,PLACES OF WORSHIP             ,
SHEFFIELD CITY COUNCIL        ,CYPF                          ,33114,POST 16 LDD DELIVERY 15 16    ,9120,OTHER AGENCIES                ,04/01/2016,ERS INVOICE131094        ,528.00,REDACTED PERSONAL DATA,,EDUCATIONAL SERVICES          ,
SHEFFIELD CITY COUNCIL        ,CYPF                          ,33114,POST 16 LDD DELIVERY 15 16    ,9120,OTHER AGENCIES                ,04/01/2016,ERS INVOICE131095        ,594.00,REDACTED PERSONAL DATA,,EDUCATIONAL SERVICES          ,
SHEFFIELD CITY COUNCIL        ,COMMUNITIES                   ,49703,SOUTH WEST                    ,8180,GRANTS                        ,04/01/2016,ERS INVOICE131096        ,500.00,CROSSPOOL & DISTRICT YOUTH SPORTS TRUST ,,SPORTS CLUBS & ASSOCIATIONS   ,
SHEFFIELD CITY COUNCIL        ,COMMUNITIES                   ,49703,SOUTH WEST                    ,8180,GRANTS                        ,04/01/2016,ERS INVOICE131097        ,330.00,WESLEY HALL LUNCH CLUB                  ,,CHARITIES & VOLUNTARY ORGANISA,
SHEFFIELD CITY COUNCIL        ,CYPF                          ,32166,ESCAL - DE DEL                ,8440,FEE EXPENSES                  ,04/01/2016,ERS INVOICE131098        ,515.00,DIANNE FORTESCUE                        ,,TRAINING SERVICES             ,
SHEFFIELD CITY COUNCIL        ,CYPF                          ,32166,ESCAL - DE DEL                ,8440,FEE EXPENSES                  ,04/01/2016,ERS INVOICE131100        ,"2,000.00",REFAT MAHMOOD                           ,,EDUCATIONAL SERVICES          ,
SHEFFIELD CITY COUNCIL        ,CYPF                          ,32166,ESCAL - DE DEL                ,8440,FEE EXPENSES                  ,04/01/2016,ERS INVOICE131104        ,"2,257.20",MRS MICHELLE CROOKES                    ,,EDUCATIONAL SERVICES          ,
SHEFFIELD CITY COUNCIL        ,RESOURCES                     ,19347,CLAIMS                        ,8740,MOTOR VEHICLE                 ,04/01/2016,ERS INVOICE131111        ,813.85,L W SMART REPAIRS LTD                   ,,CAR & COMMERCIAL REPAIRS      ,
SHEFFIELD CITY COUNCIL        ,CYPF                          ,39357,SHORT BREAKS FUNDING FOR DISAB,8440,FEE EXPENSES                  ,04/01/2016,ERS INVOICE131113        ,400.00,REDACTED PERSONAL DATA,Unclassified Non Trade,OUT OF SCOPE FOR SIC MONITORIN,
SHEFFIELD CITY COUNCIL        ,CYPF                          ,39357,SHORT BREAKS FUNDING FOR DISAB,8440,FEE EXPENSES                  ,04/01/2016,ERS INVOICE131114        ,400.00,REDACTED PERSONAL DATA,Unclassified Non Trade,OUT OF SCOPE FOR SIC MONITORIN,
SHEFFIELD CITY COUNCIL        ,CYPF                          ,39357,SHORT BREAKS FUNDING FOR DISAB,8440,FEE EXPENSES                  ,04/01/2016,ERS INVOICE131115        ,400.00,REDACTED PERSONAL DATA,Unclassified Non Trade,OUT OF SCOPE FOR SIC MONITORIN,
SHEFFIELD CITY COUNCIL        ,CYPF                          ,39357,SHORT BREAKS FUNDING FOR DISAB,8440,FEE EXPENSES                  ,04/01/2016,ERS INVOICE131116        ,400.00,REDACTED PERSONAL DATA,Unclassified Non Trade,OUT OF SCOPE FOR SIC MONITORIN,
SHEFFIELD CITY COUNCIL        ,CYPF                          ,39357,SHORT BREAKS FUNDING FOR DISAB,8440,FEE EXPENSES                  ,04/01/2016,ERS INVOICE131117        ,400.00,REDACTED PERSONAL DATA,Unclassified Non Trade,OUT OF SCOPE FOR SIC MONITORIN,
SHEFFIELD CITY COUNCIL        ,CYPF                          ,39357,SHORT BREAKS FUNDING FOR DISAB,8440,FEE EXPENSES                  ,04/01/2016,ERS INVOICE131118        ,400.00,REDACTED PERSONAL DATA,Unclassified Non Trade,OUT OF SCOPE FOR SIC MONITORIN,
SHEFFIELD CITY COUNCIL        ,CYPF                          ,39357,SHORT BREAKS FUNDING FOR DISAB,8440,FEE EXPENSES                  ,04/01/2016,ERS INVOICE131119        ,400.00,REDACTED PERSONAL DATA,Unclassified Non Trade,OUT OF SCOPE FOR SIC MONITORIN,
SHEFFIELD CITY COUNCIL        ,CYPF                          ,39357,SHORT BREAKS FUNDING FOR DISAB,8440,FEE EXPENSES                  ,04/01/2016,ERS INVOICE131120        ,400.00,REDACTED PERSONAL DATA,Unclassified Non Trade,OUT OF SCOPE FOR SIC MONITORIN,
SHEFFIELD CITY COUNCIL        ,CYPF                          ,39357,SHORT BREAKS FUNDING FOR DISAB,8440,FEE EXPENSES                  ,04/01/2016,ERS INVOICE131121        ,400.00,REDACTED PERSONAL DATA,Unclassified Non Trade,OUT OF SCOPE FOR SIC MONITORIN,
SHEFFIELD CITY COUNCIL        ,CYPF                          ,39357,SHORT BREAKS FUNDING FOR DISAB,8440,FEE EXPENSES                  ,04/01/2016,ERS INVOICE131122        ,400.00,REDACTED PERSONAL DATA,Unclassified Non Trade,OUT OF SCOPE FOR SIC MONITORIN,
SHEFFIELD CITY COUNCIL        ,PLACE                         ,22077,AFFORDABLE HOUSING            ,4080,FEES & CHARGES                ,04/01/2016,ERS INVOICE131123        ,"1,761.04",DIOCESE OF HALLAM                       ,,RELIGIOUS ORGANISATIONS       ,
SHEFFIELD CITY COUNCIL        ,PLACE                         ,97414,ARBOURTHORNE 5M'S REFURB      ,1143,COMPENSATION                  ,04/01/2016,ERS INVOICE131124        ,"5,272.72",REDACTED PERSONAL DATA,Unclassified Non Trade,OUT OF SCOPE FOR SIC MONITORIN,
SHEFFIELD CITY COUNCIL        ,CYPF                          ,39357,SHORT BREAKS FUNDING FOR DISAB,8440,FEE EXPENSES                  ,04/01/2016,ERS INVOICE131125        ,400.00,REDACTED PERSONAL DATA,Unclassified Non Trade,OUT OF SCOPE FOR SIC MONITORIN,
SHEFFIELD CITY COUNCIL        ,CYPF                          ,33050,CONSTRUCTION DESIGN CENTRE    ,9120,OTHER AGENCIES                ,04/01/2016,ERS INVOICE131126        ,790.50,BARNBOW PROPERTY SERVICES               ,,PROPERTY & ESTATE MANAGEMENT  ,
SHEFFIELD CITY COUNCIL        ,CYPF                          ,39357,SHORT BREAKS FUNDING FOR DISAB,8440,FEE EXPENSES                  ,04/01/2016,ERS INVOICE131127        ,400.00,REDACTED PERSONAL DATA,Unclassified Non Trade,OUT OF SCOPE FOR SIC MONITORIN,
SHEFFIELD CITY COUNCIL        ,CYPF                          ,39357,SHORT BREAKS FUNDING FOR DISAB,8440,FEE EXPENSES                  ,04/01/2016,ERS INVOICE131128        ,400.00,REDACTED PERSONAL DATA,Unclassified Non Trade,OUT OF SCOPE FOR SIC MONITORIN,
SHEFFIELD CITY COUNCIL        ,CYPF                          ,39357,SHORT BREAKS FUNDING FOR DISAB,8440,FEE EXPENSES                  ,04/01/2016,ERS INVOICE131129        ,400.00,REDACTED PERSONAL DATA,Unclassified Non Trade,OUT OF SCOPE FOR SIC MONITORIN,
SHEFFIELD CITY COUNCIL        ,PLACE                         ,97394,HULL - HUMBER SUB REGION HAL  ,1194,OTHER FEES                    ,04/01/2016,ERS INVOICE131134        ,"4,788.00",M FOREMAN BUILDERS LTD                  ,,BUILDERS                      ,
SHEFFIELD CITY COUNCIL        ,RESOURCES                     ,19347,CLAIMS                        ,8740,MOTOR VEHICLE                 ,04/01/2016,ERS INVOICE131139        ,386.83,QUINDELL BUSINESS PROCESS SERVICES (UK) ,,ACCIDENT MANAGEMENT           ,
SHEFFIELD CITY COUNCIL        ,PLACE                         ,97502,EP NORTH EAST LINC            ,1194,OTHER FEES                    ,04/01/2016,ERS INVOICE131142        ,"7,495.00",REDACTED PERSONAL DATA,,BUILDERS                      ,
SHEFFIELD CITY COUNCIL        ,PLACE                         ,97502,EP NORTH EAST LINC            ,1194,OTHER FEES                    ,04/01/2016,ERS INVOICE131143        ,"7,495.00",REDACTED PERSONAL DATA,,BUILDERS                      ,
SHEFFIELD CITY COUNCIL        ,PLACE                         ,97502,EP NORTH EAST LINC            ,1194,OTHER FEES                    ,04/01/2016,ERS INVOICE131144        ,"7,495.00",REDACTED PERSONAL DATA,,BUILDERS                      ,
SHEFFIELD CITY COUNCIL        ,CYPF                          ,39032,ADOPTION SERVICE              ,8550,OTHER SERVICES                ,04/01/2016,ERS INVOICE131145        ,405.00,ANDREA HURT                             ,,OCCUPATIONAL THERAPISTS       ,
SHEFFIELD CITY COUNCIL        ,PLACE                         ,97502,EP NORTH EAST LINC            ,1194,OTHER FEES                    ,04/01/2016,ERS INVOICE131149        ,"7,495.00",REDACTED PERSONAL DATA,,BUILDERS                      ,
SHEFFIELD CITY COUNCIL        ,CYPF                          ,32022,FOUNDATION STAGE              ,8440,FEE EXPENSES                  ,04/01/2016,ERS INVOICE131150        ,"1,723.50",DENISE KINGSTON                         ,,EDUCATIONAL SERVICES          ,
SHEFFIELD CITY COUNCIL        ,COMMUNITIES                   ,49030,PRIVATE RENTED SOLUTIONS      ,9120,OTHER AGENCIES                ,04/01/2016,ERS INVOICE131155        ,459.55,REDACTED PERSONAL DATA,Unclassified Non Trade,OUT OF SCOPE FOR SIC MONITORIN,
SHEFFIELD CITY COUNCIL        ,COMMUNITIES                   ,47046,LOC REFORM & COM VOICES: DOLS ,8440,FEE EXPENSES                  ,04/01/2016,ERS INVOICE131160        ,465.70,MR S RAUF TA IBIASHAH                   ,,ASSESSORS                     ,
SHEFFIELD CITY COUNCIL        ,COMMUNITIES                   ,49703,SOUTH WEST                    ,8180,GRANTS                        ,04/01/2016,ERS INVOICE131164        ,"2,372.00",HEELEY DEVELOPMENT TRUST                ,,CHARITIES & VOLUNTARY ORGANISA,
SHEFFIELD CITY COUNCIL        ,COMMUNITIES                   ,49706,NORTH EAST                    ,8180,GRANTS                        ,04/01/2016,ERS INVOICE131165        ,"5,000.00",PARSON CROSS INITIATIVE                 ,,"CLUBS & ASSOCIATIONS - SOCIAL,",
SHEFFIELD CITY COUNCIL        ,PLACE                         ,94050,SHEFFIELD RETAIL QUARTER 2    ,1193,CONSULTANTS FEES              ,04/01/2016,SI0013736                ,"3,000.00",CUSHMAN & WAKEFIELD LLP                 ,,PROPERTY & ESTATE MANAGEMENT  ,
SHEFFIELD CITY COUNCIL        ,PLACE                         ,28119,TIER 3 WEIGHT MAN (ADULTS) WAH,9030,HEALTH                        ,04/01/2016,14892,"18,354.00",WEIGHT MANAGEMENT CENTRE LTD            ,,DIETICIANS & NUTRITIONISTS    ,
SHEFFIELD CITY COUNCIL        ,PLACE                         ,28138,C&F WM T1&2 5-17YRS           ,9030,HEALTH                        ,04/01/2016,14894,"8,333.00",WEIGHT MANAGEMENT CENTRE LTD            ,,DIETICIANS & NUTRITIONISTS    ,
SHEFFIELD CITY COUNCIL        ,PLACE                         ,28139,T1&2 WMAN (ADULTS)            ,9030,HEALTH                        ,04/01/2016,14893,"21,666.00",WEIGHT MANAGEMENT CENTRE LTD            ,,DIETICIANS & NUTRITIONISTS    ,
SHEFFIELD CITY COUNCIL        ,CYPF                          ,36021,CATERING PREMISES & EQUIPMENT ,8010,EQUIPMENT PURCHASE AND REPAIR ,04/01/2016,9823,549.95,DENBY CATERING EQUIPMENT LIMITED        ,,CATERING EQUIPMENT            ,
SHEFFIELD CITY COUNCIL        ,POLICY PERFORMANCE AND COMMS  ,18003,COMMUNICATIONS                ,8550,OTHER SERVICES                ,04/01/2016,769526-AY                ,"5,176.24",THE PRINT AND DESIGN FACTORY LTD        ,,PRINTERS                      ,
SHEFFIELD CITY COUNCIL        ,RESOURCES                     ,15232,VACANT PROPERTIES             ,8540,SECURITY SERVICES             ,04/01/2016,INV074317                ,"1,125.00",CONSTANT SECURITY SERVICES LIMITED      ,,SECURITY SERVICES             ,
SHEFFIELD CITY COUNCIL        ,PLACE                         ,28122,24) EEQL                      ,9030,HEALTH                        ,04/01/2016,27,"4,533.00",EAST END QUALITY OF LIFE INITIATIVE     ,,PUBLIC HEALTH SUPPLIERS       ,
SHEFFIELD CITY COUNCIL        ,PLACE                         ,28122,24) EEQL                      ,9030,HEALTH                        ,04/01/2016,28,"4,533.00",EAST END QUALITY OF LIFE INITIATIVE     ,,PUBLIC HEALTH SUPPLIERS       ,
SHEFFIELD CITY COUNCIL        ,RESOURCES                     ,90145,PARK LIBRARY/COMM ROOF RENEWAL,1148,SURVEY COSTS                  ,04/01/2016,I598/QE/1115/SCC001      ,"8,615.00",QUALSURV INTERNATIONAL LTD              ,,ASBESTOS SURVEYS & REMOVALS   ,
SHEFFIELD CITY COUNCIL        ,PLACE                         ,24205,KEEP SHEFFIELD WORKING        ,8440,FEE EXPENSES                  ,04/01/2016,1659,"5,000.00",REVERT ALLOYS AND METALS LTD            ,,METAL WORKERS                 ,
SHEFFIELD CITY COUNCIL        ,PLACE                         ,94050,SHEFFIELD RETAIL QUARTER 2    ,1193,CONSULTANTS FEES              ,04/01/2016,SI0013056                ,"7,500.00",CUSHMAN & WAKEFIELD LLP                 ,,PROPERTY & ESTATE MANAGEMENT  ,
SHEFFIELD CITY COUNCIL        ,PLACE                         ,94050,SHEFFIELD RETAIL QUARTER 2    ,1193,CONSULTANTS FEES              ,04/01/2016,SI0011173                ,"7,500.00",CUSHMAN & WAKEFIELD LLP                 ,,PROPERTY & ESTATE MANAGEMENT  ,
SHEFFIELD CITY COUNCIL        ,CYPF                          ,33057,CROOKESMOOR CENTRAL COSTS     ,6030,REPAIRS AND MTCE - RESPONSIVE ,04/01/2016,31184245-41              ,627.63,ADT FIRE & SECURITY PLC                 ,,BURGLAR & INTRUDER ALARM SYSTE,
SHEFFIELD CITY COUNCIL        ,PLACE                         ,97552,NEW BUILD COUNCIL HSG PHASE 1 ,1165,NC&A OTHER                    ,04/01/2016,UI10022707/UI10022708    ,"69,212.81",INTEGRATED UTILITY SERVICES LTD         ,,ELECTRICAL TESTING & INSPECTIN,
SHEFFIELD CITY COUNCIL        ,COMMUNITIES                   ,49852,SCHOOLS LIBRARY SERVICE       ,8080,LIBRARY MATERIALS             ,04/01/2016,1563092,259.80,PETERS LTD                              ,,BOOKSELLERS                   ,
SHEFFIELD CITY COUNCIL        ,CYPF                          ,39282,CARE PROCEEDINGS (LEGAL FEES) ,8470,LEGAL FEES                    ,04/01/2016,937120,900.00,HELEN DAVEY                             ,,BARRISTERS                    ,
SHEFFIELD CITY COUNCIL        ,CYPF                          ,36021,CATERING PREMISES & EQUIPMENT ,8010,EQUIPMENT PURCHASE AND REPAIR ,04/01/2016,76947/56                 ,635.00,BARNSLEY CATERING SERVICES LTD          ,,CATERING EQUIPMENT            ,
SHEFFIELD CITY COUNCIL        ,PLACE                         ,28131,23) SWYP ST SMOKING PROJECT   ,9030,HEALTH                        ,04/01/2016,201,"3,750.00",UNI CONSULTING                          ,,BUSINESS & MANAGEMENT CONSULTA,
SHEFFIELD CITY COUNCIL        ,CYPF                          ,39282,CARE PROCEEDINGS (LEGAL FEES) ,8470,LEGAL FEES                    ,04/01/2016,978753,600.00,FIONA WALKER                            ,,BARRISTERS                    ,
SHEFFIELD CITY COUNCIL        ,CYPF                          ,39282,CARE PROCEEDINGS (LEGAL FEES) ,8470,LEGAL FEES                    ,04/01/2016,972833,"1,200.00",REDACTED PERSONAL DATA,,BARRISTERS                    ,
SHEFFIELD CITY COUNCIL        ,CYPF                          ,33017,AMBITIONS SCR                 ,9120,OTHER AGENCIES                ,04/01/2016,21845926,"35,296.31",DONCASTER MBC                           ,,LOCAL GOVERNMENT              ,
SHEFFIELD CITY COUNCIL        ,CYPF                          ,39282,CARE PROCEEDINGS (LEGAL FEES) ,8470,LEGAL FEES                    ,04/01/2016,979545,600.00,JUSTINE COLE                            ,,BARRISTERS                    ,
SHEFFIELD CITY COUNCIL        ,COMMUNITIES                   ,49153,OTHER REPAIRS & FEES          ,6030,OTHER RESPONSIVE REPAIRS      ,04/01/2016,MAL-IN16127              ,875.00,MICRO ALARMS LTD                        ,,SECURITY EQUIPMENT INSTALLERS ,
SHEFFIELD CITY COUNCIL        ,CYPF                          ,36021,CATERING PREMISES & EQUIPMENT ,8010,EQUIPMENT PURCHASE AND REPAIR ,04/01/2016,9886,"1,779.75",DENBY CATERING EQUIPMENT LIMITED        ,,CATERING EQUIPMENT            ,
SHEFFIELD CITY COUNCIL        ,RESOURCES                     ,90133,HOWDEN HOUSE ACCOMM STRATEGY  ,1143,COMPENSATION                  ,04/01/2016,856183,"2,184.34",PICKFORDS                               ,,REMOVALS - OVERSEAS           ,
SHEFFIELD CITY COUNCIL        ,COMMUNITIES                   ,46084,VEHICLE MANAGEMENT            ,7020,VEHICLE FUEL COSTS            ,04/01/2016,E2005830704              ,402.15,ALLSTAR BUSINESS SOLUTIONS LTD          ,,CAR & TRUCK LEASING & CONTRACT,
SHEFFIELD CITY COUNCIL        ,CYPF                          ,90744,FEL CAPITAL                   ,1188,T&E OTHER CAPITAL COSTS       ,04/01/2016,380,"7,737.86",EL NISAH COMMUNITY NURSERY              ,,NURSERIES & CRECHES           ,
SHEFFIELD CITY COUNCIL        ,CYPF                          ,32190,C & F CITYWIDE CONTRACTS      ,8060,MATERIALS AND SUPPLIES GENERAL,04/01/2016,1353,392.00,ROUNDABOUT CRECHE SERVICE               ,,NURSERIES & CRECHES           ,
SHEFFIELD CITY COUNCIL        ,CYPF                          ,38059,EY/MAST PREMISES              ,8440,FEE EXPENSES                  ,04/01/2016,01CC                     ,"2,041.67",LBJ FORUM                               ,Unclassified Non Trade,OUT OF SCOPE FOR SIC MONITORIN,
SHEFFIELD CITY COUNCIL        ,RESOURCES                     ,15190,HARD FM                       ,6030,REPAIRS AND MTCE - RESPONSIVE ,04/01/2016,91802,"1,898.00",SMITH OF DERBY LTD                      ,,CLOCKS & WATCHES - MNFRS & WHO,
SHEFFIELD CITY COUNCIL        ,CYPF                          ,33141,CITY DEAL                     ,8440,FEE EXPENSES                  ,04/01/2016,PAT93415                 ,350.00,SHOWROOM                                ,,CONFERENCE ROOMS & CENTRES    ,
SHEFFIELD CITY COUNCIL        ,COMMUNITIES                   ,46091,APS - MANOR CENTRE            ,8010,EQUIPMENT PURCHASE AND REPAIR ,04/01/2016,926236101,"1,124.42",ARCO LTD                                ,,SAFETY EQUIPMENT & CLOTHING   ,
SHEFFIELD CITY COUNCIL        ,PLACE                         ,24205,KEEP SHEFFIELD WORKING        ,8440,FEE EXPENSES                  ,04/01/2016,37958,"2,500.00",A R WENTWORTH (SHEFFIELD) LTD           ,,MANUFACTURERS                 ,
SHEFFIELD CITY COUNCIL        ,CYPF                          ,90744,FEL CAPITAL                   ,1188,T&E OTHER CAPITAL COSTS       ,04/01/2016,379,"1,817.96",EL NISAH COMMUNITY NURSERY              ,,NURSERIES & CRECHES           ,
SHEFFIELD CITY COUNCIL        ,CYPF                          ,39513,BANDED FUNDING                ,9050,OTHER LOCAL AUTHORITIES       ,04/01/2016,113964586,"11,074.00",ROTHERHAM MBC                           ,,LOCAL GOVERNMENT              ,
SHEFFIELD CITY COUNCIL        ,CYPF                          ,36021,CATERING PREMISES & EQUIPMENT ,8010,EQUIPMENT PURCHASE AND REPAIR ,04/01/2016,9904,530.00,DENBY CATERING EQUIPMENT LIMITED        ,,CATERING EQUIPMENT            ,
SHEFFIELD CITY COUNCIL        ,CYPF                          ,38053,EARLY YEARS & CHILDREN CENTRE ,8350,MISCELLANEOUS EXPENSES        ,04/01/2016,2228,"1,005.00",LANGUAGELINE SOLUTIONS                  ,,TRANSLATORS & INTERPRETERS    ,
SHEFFIELD CITY COUNCIL        ,CYPF                          ,39513,BANDED FUNDING                ,9050,OTHER LOCAL AUTHORITIES       ,04/01/2016,GS00067                  ,"4,537.50",GREENACRE SCHOOL                        ,,SCHOOLS - LOCAL AUTHORITY     ,
SHEFFIELD CITY COUNCIL        ,CYPF                          ,90765,MANOR LODGE STRUCTURAL        ,1193,CONSULTANTS FEES              ,04/01/2016,189693,708.00,TURNER & TOWNSEND                       ,,BUILDING CONSULTANTS          ,
SHEFFIELD CITY COUNCIL        ,PLACE                         ,22055,CDS SCHEME                    ,8350,MISCELLANEOUS EXPENSES        ,04/01/2016,189693,792.00,TURNER & TOWNSEND                       ,,BUILDING CONSULTANTS          ,
SHEFFIELD CITY COUNCIL        ,CYPF                          ,39282,CARE PROCEEDINGS (LEGAL FEES) ,8470,LEGAL FEES                    ,04/01/2016,979652,600.00,REDACTED PERSONAL DATA,,BARRISTERS                    ,
SHEFFIELD CITY COUNCIL        ,CYPF                          ,38053,EARLY YEARS & CHILDREN CENTRE ,8350,MISCELLANEOUS EXPENSES        ,04/01/2016,1504,725.00,LANGUAGELINE SOLUTIONS                  ,,TRANSLATORS & INTERPRETERS    ,
SHEFFIELD CITY COUNCIL        ,CYPF                          ,38053,EARLY YEARS & CHILDREN CENTRE ,8350,MISCELLANEOUS EXPENSES        ,04/01/2016,1647,562.50,LANGUAGELINE SOLUTIONS                  ,,TRANSLATORS & INTERPRETERS    ,
SHEFFIELD CITY COUNCIL        ,CYPF                          ,39513,BANDED FUNDING                ,9050,OTHER LOCAL AUTHORITIES       ,04/01/2016,100020000000000000,"4,160.00",DERBYSHIRE COUNTY COUNCIL               ,,LOCAL GOVERNMENT              ,
SHEFFIELD CITY COUNCIL        ,CYPF                          ,36021,CATERING PREMISES & EQUIPMENT ,8010,EQUIPMENT PURCHASE AND REPAIR ,04/01/2016,9908,"1,835.00",DENBY CATERING EQUIPMENT LIMITED        ,,CATERING EQUIPMENT            ,
SHEFFIELD CITY COUNCIL        ,CYPF                          ,33009,DISADVANTAGED AREA FUNDING    ,9120,OTHER AGENCIES                ,04/01/2016,3115,"13,326.90",ZEST                                    ,,SOCIAL SERVICES               ,
SHEFFIELD CITY COUNCIL        ,CYPF                          ,33009,DISADVANTAGED AREA FUNDING    ,9120,OTHER AGENCIES                ,04/01/2016,SOARCO/2122              ,"7,500.00",SOAR                                    ,,EDUCATIONAL TRAINING PROVIDERS,
SHEFFIELD CITY COUNCIL        ,CYPF                          ,33009,DISADVANTAGED AREA FUNDING    ,9120,OTHER AGENCIES                ,04/01/2016,3084,"7,500.00",MANOR & CASTLE DEVELOPMENT TRUST        ,,CHARITIES & VOLUNTARY ORGANISA,
SHEFFIELD CITY COUNCIL        ,CYPF                          ,33009,DISADVANTAGED AREA FUNDING    ,9120,OTHER AGENCIES                ,04/01/2016,3193,"3,750.00",YOUTH ASSOCIATION SOUTH YORKSHIRE       ,,CHARITIES & VOLUNTARY ORGANISA,
SHEFFIELD CITY COUNCIL        ,PLACE                         ,28131,23) SWYP ST SMOKING PROJECT   ,9030,HEALTH                        ,04/01/2016,7016201008,"15,658.00",NHS SHEFFIELD CCG                       ,,CLINICS - N.H.S.              ,
SHEFFIELD CITY COUNCIL        ,CYPF                          ,36039,SEN TAXIS                     ,7060,EXTERNAL VEHICLE HIRE         ,04/01/2016,SEN-11/15                ,"29,068.40",S1 TAXIS LTD                            ,,TAXIS & PRIVATE HIRE          ,
SHEFFIELD CITY COUNCIL        ,CYPF                          ,39282,CARE PROCEEDINGS (LEGAL FEES) ,8470,LEGAL FEES                    ,04/01/2016,334337,"6,500.00",KINGS CHAMBERS                          ,,LEGAL SERVICES                ,
SHEFFIELD CITY COUNCIL        ,CYPF                          ,36021,CATERING PREMISES & EQUIPMENT ,8010,EQUIPMENT PURCHASE AND REPAIR ,04/01/2016,9912,"1,030.00",DENBY CATERING EQUIPMENT LIMITED        ,,CATERING EQUIPMENT            ,
SHEFFIELD CITY COUNCIL        ,CYPF                          ,39282,CARE PROCEEDINGS (LEGAL FEES) ,8470,LEGAL FEES                    ,04/01/2016,937120,450.00,HELEN DAVEY                             ,,BARRISTERS                    ,
SHEFFIELD CITY COUNCIL        ,PLACE                         ,94050,SHEFFIELD RETAIL QUARTER 2    ,1193,CONSULTANTS FEES              ,04/01/2016,INVOICE-2015-11-000001534,"7,500.00",CUSHMAN & WAKEFIELD LLP                 ,,PROPERTY & ESTATE MANAGEMENT  ,
SHEFFIELD CITY COUNCIL        ,PLACE                         ,94050,SHEFFIELD RETAIL QUARTER 2    ,1193,CONSULTANTS FEES              ,04/01/2016,SI0013735                ,"3,000.00",CUSHMAN & WAKEFIELD LLP                 ,,PROPERTY & ESTATE MANAGEMENT  ,
SHEFFIELD CITY COUNCIL        ,CYPF                          ,33017,AMBITIONS SCR                 ,9120,OTHER AGENCIES                ,04/01/2016,114007729,"28,180.12",ROTHERHAM MBC                           ,,LOCAL GOVERNMENT              ,
SHEFFIELD CITY COUNCIL        ,COMMUNITIES                   ,49682,NON CONTRACT TREATMENT COSTS  ,8060,MATERIALS AND SUPPLIES GENERAL,04/01/2016,90877,"2,291.90",EXCHANGE SUPPLIES LTD                   ,,PUBLISHERS                    ,
SHEFFIELD CITY COUNCIL        ,PLACE                         ,21312,CITY CENTRE PROMOTIONAL PLAN  ,8440,FEE EXPENSES                  ,04/01/2016,117472,"1,868.91",SHOWSEC INTERNATIONAL LTD               ,,SECURITY EQUIPMENT            ,
SHEFFIELD CITY COUNCIL        ,CYPF                          ,90716,GRACE OWEN NURSERY            ,1194,OTHER FEES                    ,04/01/2016,46,"5,350.00",URBAN SPLASH CONSTRUCT LTD              ,,PROPERTY DEVELOPERS           ,
SHEFFIELD CITY COUNCIL        ,PLACE                         ,94053,SRQ HIGHWAY ENABLING WORKS    ,1193,CONSULTANTS FEES              ,04/01/2016,557293,"88,732.00",TURNER & TOWNSEND                       ,,BUILDING CONSULTANTS          ,
SHEFFIELD CITY COUNCIL        ,PLACE                         ,94053,SRQ HIGHWAY ENABLING WORKS    ,1193,CONSULTANTS FEES              ,04/01/2016,557591,"2,245.00",TURNER & TOWNSEND                       ,,BUILDING CONSULTANTS          ,
SHEFFIELD CITY COUNCIL        ,CYPF                          ,33114,POST 16 LDD DELIVERY 15 16    ,9120,OTHER AGENCIES                ,04/01/2016,YTH015A                  ,"3,560.05",TALKSIGN                                ,,SPEECH & LANGUAGE THERAPISTS  ,
SHEFFIELD CITY COUNCIL        ,CYPF                          ,33114,POST 16 LDD DELIVERY 15 16    ,9120,OTHER AGENCIES                ,04/01/2016,YTH014                   ,"3,728.25",TALKSIGN                                ,,SPEECH & LANGUAGE THERAPISTS  ,
SHEFFIELD CITY COUNCIL        ,CYPF                          ,39282,CARE PROCEEDINGS (LEGAL FEES) ,8470,LEGAL FEES                    ,04/01/2016,965137,600.00,LOUISE STANBURY                         ,,BARRISTERS                    ,
SHEFFIELD CITY COUNCIL        ,PLACE                         ,21314,CCRAC RADIOS                  ,8010,EQUIPMENT PURCHASE AND REPAIR ,04/01/2016,203523,309.00,D C R S                                 ,,RADIO COMMUNICATION EQUIPMENT ,
SHEFFIELD CITY COUNCIL        ,PLACE                         ,21309,BARKERS POOL                  ,6030,REPAIRS AND MTCE - RESPONSIVE ,04/01/2016,3116,395.00,KINLOCH PAVING                          ,,PAVING & DRIVEWAY CONTRACTORS ,
SHEFFIELD CITY COUNCIL        ,COMMUNITIES                   ,49682,NON CONTRACT TREATMENT COSTS  ,9030,HEALTH                        ,04/01/2016,7016201018,"191,921.65",NHS SHEFFIELD CCG                       ,,CLINICS - N.H.S.              ,
SHEFFIELD CITY COUNCIL        ,PLACE                         ,22049,ENERGY -SCHEME                ,6150,ELECTRICITY - INVOICE         ,04/01/2016,2714-018                 ,"148,500.84",NPOWER NORTHERN LTD                     ,,ELECTRICITY COMPANIES         ,
SHEFFIELD CITY COUNCIL        ,COMMUNITIES                   ,49364,SUPPORTED HOUSING             ,8050,ELECTRICAL GOODS              ,04/01/2016,CMD2587808               ,"14,647.00",DOMESTIC APPLIANCE DISTRIBUTORS         ,,ELECTRICAL GOODS - SALES      ,
SHEFFIELD CITY COUNCIL        ,CYPF                          ,33114,POST 16 LDD DELIVERY 15 16    ,9120,OTHER AGENCIES                ,04/01/2016,LDD4                     ,300.00,ONBOARD SHEFFIELD SKATEPARK             ,Unclassified Non Trade,OUT OF SCOPE FOR SIC MONITORIN,
SHEFFIELD CITY COUNCIL        ,COMMUNITIES                   ,48002,EXECUTOR SERVICES             ,8090,BEREAVEMENT SUPPLIES          ,04/01/2016,F49960-06795             ,"1,005.00",SHEFFIELD CO-OPERATIVE FUNERALCARE      ,,FUNERAL SERVICES              ,
SHEFFIELD CITY COUNCIL        ,POLICY PERFORMANCE AND COMMS  ,17003,ELECTORAL REGISTRATION        ,8370,PRINTING                      ,04/01/2016,IS1267858                ,958.25,ADARE LIMITED                           ,,PRINTERS                      ,
SHEFFIELD CITY COUNCIL        ,POLICY PERFORMANCE AND COMMS  ,17003,ELECTORAL REGISTRATION        ,8370,PRINTING                      ,04/01/2016,IS1267857                ,"1,504.36",ADARE LIMITED                           ,,PRINTERS                      ,
SHEFFIELD CITY COUNCIL        ,CYPF                          ,33108,AMBITIONS - SHEFFIELD         ,9120,OTHER AGENCIES                ,04/01/2016,3120,"9,170.00",ZEST                                    ,,SOCIAL SERVICES               ,
SHEFFIELD CITY COUNCIL        ,COMMUNITIES                   ,49364,SUPPORTED HOUSING             ,8050,FURNITURE PURCHASES           ,04/01/2016,2679,"1,275.00",HOMEFLAIR (MEXBOROUGH) LTD              ,,FURNITURE - RETAIL            ,
SHEFFIELD CITY COUNCIL        ,CYPF                          ,33064,PROVIDER CONTRACT AUG15-JUL16 ,9120,OTHER AGENCIES                ,04/01/2016,1512,252.00,MANOR TRAINING & RESOURCE CENTRE LTD    ,,CHARITIES & VOLUNTARY ORGANISA,
SHEFFIELD CITY COUNCIL        ,CYPF                          ,39282,CARE PROCEEDINGS (LEGAL FEES) ,8470,LEGAL FEES                    ,04/01/2016,936816,600.00,FIONA WALKER                            ,,BARRISTERS                    ,
SHEFFIELD CITY COUNCIL        ,CYPF                          ,32046,OUTDOOR EDUCATION             ,8440,FEE EXPENSES                  ,04/01/2016,1571,300.00,SILVER FOX TRAINING LTD                 ,,EDUCATIONAL TRAINING PROVIDERS,
SHEFFIELD CITY COUNCIL        ,CYPF                          ,32046,OUTDOOR EDUCATION             ,7010,ROUTINE VEHICLE REPAIR & MTCE ,04/01/2016,268,674.23,LOVERS LEAP GARAGE                      ,,GUEST HOUSES                  ,
SHEFFIELD CITY COUNCIL        ,CYPF                          ,39446,TEACHING PARTNERSHIPS         ,8440,FEE EXPENSES                  ,04/01/2016,1113,"2,266.59",CONSILIENT CONSULTING LTD               ,,BUSINESS & MANAGEMENT CONSULTA,
SHEFFIELD CITY COUNCIL        ,COMMUNITIES                   ,46039,ADULT SOCIAL CARE PURCHASING  ,9190,EXTRA CARE HOUSING            ,04/01/2016,CORE-06GG                ,"6,000.00",REDACTED PERSONAL DATA,,HOME CARE SERVICES            ,
SHEFFIELD CITY COUNCIL        ,PLACE                         ,22062,ARCHITECTS                    ,8620,COMPUTER SOFTWARE LICENCES    ,04/01/2016,317971,"7,210.00",QUADRA SOLUTIONS LIMITED                ,,COMPUTER SYSTEMS & SOFTWARE (S,
SHEFFIELD CITY COUNCIL        ,COMMUNITIES                   ,49153,OTHER REPAIRS & FEES          ,6030,REPAIRS TO TENANTED PROPERTIES,04/01/2016,15904,350.00,AMBER VALLEY WATER SERVICES             ,,WATER TREATMENT EQUIPMENT & SE,
SHEFFIELD CITY COUNCIL        ,COMMUNITIES                   ,46039,ADULT SOCIAL CARE PURCHASING  ,4080,FEES & CHARGES                ,04/01/2016,9,462.00,BURNGREAVE B & B                        ,,GUEST HOUSES                  ,
SHEFFIELD CITY COUNCIL        ,CYPF                          ,39444,POLICY & SERVICE IMPROVEMENT  ,8440,FEE EXPENSES                  ,04/01/2016,1112,"2,400.00",CONSILIENT CONSULTING LTD               ,,BUSINESS & MANAGEMENT CONSULTA,
SHEFFIELD CITY COUNCIL        ,PLACE                         ,23037,MEDICO LEGAL CENTRE           ,8010,EQUIPMENT PURCHASE AND REPAIR ,04/01/2016,CD253496                 ,416.34,SWANN-MORTON LIMITED                    ,,MEDICAL EQUIPMENT MNFRS       ,
SHEFFIELD CITY COUNCIL        ,CYPF                          ,33064,PROVIDER CONTRACT AUG15-JUL16 ,9120,OTHER AGENCIES                ,04/01/2016,INV001814                ,"1,260.00",BRIGHTSIDE NURSERY AND INFANT SCHOOL    ,Unclassified Non Trade,OUT OF SCOPE FOR SIC MONITORIN,
SHEFFIELD CITY COUNCIL        ,RESOURCES                     ,12014,ICAM                          ,8440,FEE EXPENSES                  ,04/01/2016,125503,327.74,UKSEARCH LIMITED                        ,,DEBT COLLECTION AGENCIES      ,
SHEFFIELD CITY COUNCIL        ,RESOURCES                     ,12014,ICAM                          ,8440,FEE EXPENSES                  ,04/01/2016,125502,286.31,UKSEARCH LIMITED                        ,,DEBT COLLECTION AGENCIES      ,
SHEFFIELD CITY COUNCIL        ,PLACE                         ,25002,GRAVES PARK(CITY)             ,8060,MATERIALS AND SUPPLIES GENERAL,04/01/2016,5979,495.00,ROGER ALLPORT NURSERIES                 ,,NURSERIES - WHOLESALE         ,
SHEFFIELD CITY COUNCIL        ,CYPF                          ,32046,OUTDOOR EDUCATION             ,8400,PUBLICATIONS AND PERIODICALS  ,04/01/2016,2013256,700.00,REFLOW STUDIO LTD                       ,,INTERNET PUBLISHERS           ,
SHEFFIELD CITY COUNCIL        ,CYPF                          ,39429,72 GREGG HOUSE ROAD           ,6210,RENTS                         ,04/01/2016,6030018073,383.20,SANCTUARY GROUP                         ,,HOME SUPPORT SERVICES         ,
SHEFFIELD CITY COUNCIL        ,COMMUNITIES                   ,49364,SUPPORTED HOUSING             ,8050,FURNITURE PURCHASES           ,04/01/2016,TK112884                 ,"4,593.00",THOMAS KNEALE & CO LTD                  ,,"BEDS, BEDDING & BLANKETS      ",
SHEFFIELD CITY COUNCIL        ,COMMUNITIES                   ,49025,SANCTUARY SCHEME              ,8010,EQUIPMENT PURCHASE AND REPAIR ,04/01/2016,SI15009771               ,885.00,SOLON SECURITY LTD                      ,,SECURITY EQUIPMENT            ,
SHEFFIELD CITY COUNCIL        ,PLACE                         ,22241,WASTE CONTRACT                ,8010,EQUIPMENT PURCHASE AND REPAIR ,04/01/2016,430,"5,000.00",FIRST ASSET RENTALS LIMITED             ,,FINANCIAL SERVICES            ,
SHEFFIELD CITY COUNCIL        ,CYPF                          ,32042,MUSIC EDUCATION HUBS 2012-15  ,8270,SUBSCRIPTIONS                 ,04/01/2016,5502,"1,900.00",UK ASS FOR MUSIC EDUCATION - MUSIC MARK ,,EDUCATION AGENCIES & AUTHORITI,
SHEFFIELD CITY COUNCIL        ,PLACE                         ,24202,PROGRAMME TEAM                ,8440,FEE EXPENSES                  ,04/01/2016,516,"2,168.85",NEPRO LIMITED                           ,,BUSINESS & MANAGEMENT CONSULTA,
SHEFFIELD CITY COUNCIL        ,CYPF                          ,32183,GOVERNOR SUPPORT TEAM         ,8440,FEE EXPENSES                  ,04/01/2016,LF2037                   ,"10,000.00",LEARNERS FIRST SCHOOLS PARTNERSHIP LTD  ,,TRAINING CENTRES              ,
SHEFFIELD CITY COUNCIL        ,PLACE                         ,28107,STRATEGY AND SKILLS           ,8440,FEE EXPENSES                  ,04/01/2016,INV-1359                 ,"10,600.00",GRADCORE LTD                            ,,EMPLOYMENT & RECRUITMENT AGENC,
SHEFFIELD CITY COUNCIL        ,COMMUNITIES                   ,46039,ADULT SOCIAL CARE PURCHASING  ,9190,EXTRA CARE HOUSING            ,04/01/2016,18914A                   ,"5,520.00",REDACTED PERSONAL DATA,,HOME CARE SERVICES            ,
SHEFFIELD CITY COUNCIL        ,PLACE                         ,23037,MEDICO LEGAL CENTRE           ,6110,CLEANING/DOMESTIC MAT./SUPPLY ,04/01/2016,9445,728.10,CHEMSOL LTD                             ,,CHEMICALS - DISTRIBUTORS & WHO,
SHEFFIELD CITY COUNCIL        ,PLACE                         ,23037,MEDICO LEGAL CENTRE           ,8010,EQUIPMENT PURCHASE AND REPAIR ,04/01/2016,9445,367.10,CHEMSOL LTD                             ,,CHEMICALS - DISTRIBUTORS & WHO,
SHEFFIELD CITY COUNCIL        ,PLACE                         ,23037,MEDICO LEGAL CENTRE           ,8110,"CLOTHING, UNIFORM AND LAUNDRY ",04/01/2016,9445,999.12,CHEMSOL LTD                             ,,CHEMICALS - DISTRIBUTORS & WHO,
SHEFFIELD CITY COUNCIL        ,COMMUNITIES                   ,49363,OLDER PERSONS LIVING          ,5610,AGENCY STAFF                  ,04/01/2016,IPMSHCWNH001             ,960.00,INTELLIGENT PROTECTION MANAGEMENT LTD   ,,SECURITY SERVICES             ,
SHEFFIELD CITY COUNCIL        ,COMMUNITIES                   ,49363,OLDER PERSONS LIVING          ,5610,AGENCY STAFF                  ,04/01/2016,IPMSHCKR003              ,768.00,INTELLIGENT PROTECTION MANAGEMENT LTD   ,,SECURITY SERVICES             ,
SHEFFIELD CITY COUNCIL        ,COMMUNITIES                   ,49363,OLDER PERSONS LIVING          ,5610,AGENCY STAFF                  ,04/01/2016,IPMSHC001                ,960.00,INTELLIGENT PROTECTION MANAGEMENT LTD   ,,SECURITY SERVICES             ,
SHEFFIELD CITY COUNCIL        ,COMMUNITIES                   ,49363,OLDER PERSONS LIVING          ,5610,AGENCY STAFF                  ,04/01/2016,IPMSHCKR002              ,"1,536.00",INTELLIGENT PROTECTION MANAGEMENT LTD   ,,SECURITY SERVICES             ,
SHEFFIELD CITY COUNCIL        ,COMMUNITIES                   ,49363,OLDER PERSONS LIVING          ,5610,AGENCY STAFF                  ,04/01/2016,IPMSHCC002               ,576.00,INTELLIGENT PROTECTION MANAGEMENT LTD   ,,SECURITY SERVICES             ,
SHEFFIELD CITY COUNCIL        ,CYPF                          ,39282,CARE PROCEEDINGS (LEGAL FEES) ,8470,LEGAL FEES                    ,04/01/2016,263224,400.00,MISS ZIRA HUSSAIN                       ,,BARRISTERS                    ,
SHEFFIELD CITY COUNCIL        ,COMMUNITIES                   ,49682,NON CONTRACT TREATMENT COSTS  ,8060,MATERIALS AND SUPPLIES GENERAL,04/01/2016,91071,477.30,EXCHANGE SUPPLIES LTD                   ,,PUBLISHERS                    ,
SHEFFIELD CITY COUNCIL        ,COMMUNITIES                   ,42011,DAY SERVICES                  ,6280,HIRE OF PREMISES              ,04/01/2016,2788,"1,170.00",UNITED HEALTH LTD C/O WOODVIEW CARE HOME,,NURSING HOMES                 ,
SHEFFIELD CITY COUNCIL        ,COMMUNITIES                   ,42011,DAY SERVICES                  ,6280,HIRE OF PREMISES              ,04/01/2016,2795,"1,170.00",UNITED HEALTH LTD C/O WOODVIEW CARE HOME,,NURSING HOMES                 ,
SHEFFIELD CITY COUNCIL        ,COMMUNITIES                   ,49782,PH COMMISSIONING STAFF        ,9040,VOLUNTARY BODIES              ,04/01/2016,368/15-16                ,"5,451.26",MESH COMMUNITY COHESION SERVICES        ,,CHARITIES & VOLUNTARY ORGANISA,
SHEFFIELD CITY COUNCIL        ,COMMUNITIES                   ,42011,DAY SERVICES                  ,8060,MATERIALS AND SUPPLIES GENERAL,04/01/2016,13224,561.60,MOONLIGHT TEXTILES LTD                  ,,CURTAINS - RETAILERS & MAKERS ,
SHEFFIELD CITY COUNCIL        ,CYPF                          ,33054,FAMILY & COMM MANAGEMENT      ,9120,OTHER AGENCIES                ,04/01/2016,32350,"1,127.50",THE SOURCE AT MEADOWHALL                ,,TRAINING CENTRES              ,
SHEFFIELD CITY COUNCIL        ,RESOURCES                     ,15139,TRANSPORT FLEET MANAGEMENT    ,8070,STOCKS AND STORES             ,04/01/2016,5432621,"4,316.00",CARLTON FUELS                           ,,FUEL DEALERS                  ,
SHEFFIELD CITY COUNCIL        ,RESOURCES                     ,15139,TRANSPORT FLEET MANAGEMENT    ,8070,STOCKS AND STORES             ,04/01/2016,5495367,"19,382.94",CARLTON FUELS                           ,,FUEL DEALERS                  ,
SHEFFIELD CITY COUNCIL        ,PLACE                         ,25043,MILLHOUSES PARK (CITY)        ,8060,MATERIALS AND SUPPLIES GENERAL,04/01/2016,24789,658.00,STREETMASTER (SOUTH WALES) LTD          ,,GARDEN & PATIO FURNITURE MNFRS,
SHEFFIELD CITY COUNCIL        ,PLACE                         ,25092,PARKS OPS EAST & NORTH EAST   ,8350,MISCELLANEOUS EXPENSES        ,04/01/2016,48428,595.00,SPA LANDSCAPING LIMITED                 ,,TREE WORK & FORESTRY SERVICES ,
SHEFFIELD CITY COUNCIL        ,PLACE                         ,25092,PARKS OPS EAST & NORTH EAST   ,8350,MISCELLANEOUS EXPENSES        ,04/01/2016,48427,312.75,SPA LANDSCAPING LIMITED                 ,,TREE WORK & FORESTRY SERVICES ,
SHEFFIELD CITY COUNCIL        ,POLICY PERFORMANCE AND COMMS  ,17027,EQUALITIES & INVOLVEMENT      ,8440,FEE EXPENSES                  ,04/01/2016,30057,335.00,CVC EVENT SERVICES LTD                  ,,"EXHIBITION, EVENT & TRADE FAIR",
SHEFFIELD CITY COUNCIL        ,POLICY PERFORMANCE AND COMMS  ,17003,ELECTORAL REGISTRATION        ,8370,PRINTING                      ,04/01/2016,IS1268068                ,984.75,ADARE LIMITED                           ,,PRINTERS                      ,
SHEFFIELD CITY COUNCIL        ,PLACE                         ,22240,WASTE MANAGEMENT TEAM         ,8470,LEGAL FEES                    ,04/01/2016,355688,416.00,WEIGHTMANS LLP SOLICITORS               ,,SOLICITORS                    ,
SHEFFIELD CITY COUNCIL        ,PLACE                         ,97418,PITCHED ROOFING & ROOFLINE    ,1192,DESIGN FEES                   ,04/01/2016,557516,"15,380.16",TURNER & TOWNSEND                       ,,BUILDING CONSULTANTS          ,
SHEFFIELD CITY COUNCIL        ,PLACE                         ,94110,FA PITCH (THORNCLIFFE)        ,1193,CONSULTANTS FEES              ,04/01/2016,557289,"10,000.00",TURNER & TOWNSEND                       ,,BUILDING CONSULTANTS          ,
SHEFFIELD CITY COUNCIL        ,PLACE                         ,94110,FA PITCH (THORNCLIFFE)        ,1193,CONSULTANTS FEES              ,04/01/2016,556717,"15,000.00",TURNER & TOWNSEND                       ,,BUILDING CONSULTANTS          ,
SHEFFIELD CITY COUNCIL        ,PLACE                         ,94109,FA PITCH (GRAVES)             ,1193,CONSULTANTS FEES              ,04/01/2016,557290,"10,000.00",TURNER & TOWNSEND                       ,,BUILDING CONSULTANTS          ,
SHEFFIELD CITY COUNCIL        ,PLACE                         ,94109,FA PITCH (GRAVES)             ,1193,CONSULTANTS FEES              ,04/01/2016,556719,"15,000.00",TURNER & TOWNSEND                       ,,BUILDING CONSULTANTS          ,
SHEFFIELD CITY COUNCIL        ,PLACE                         ,24062,MGMT OF NRQ PROPERTIES        ,6030,REPAIRS AND MTCE - RESPONSIVE ,04/01/2016,A0020907                 ,"6,924.99",LCM                                     ,,PROPERTY MAINTENANCE & REPAIRS,
SHEFFIELD CITY COUNCIL        ,PLACE                         ,24062,MGMT OF NRQ PROPERTIES        ,6030,REPAIRS AND MTCE - RESPONSIVE ,04/01/2016,A0020908                 ,"2,308.33",LCM                                     ,,PROPERTY MAINTENANCE & REPAIRS,
SHEFFIELD CITY COUNCIL        ,CYPF                          ,39282,CARE PROCEEDINGS (LEGAL FEES) ,8470,LEGAL FEES                    ,04/01/2016,980245,600.00,REDACTED PERSONAL DATA,,BARRISTERS                    ,
SHEFFIELD CITY COUNCIL        ,CYPF                          ,39282,CARE PROCEEDINGS (LEGAL FEES) ,8470,LEGAL FEES                    ,04/01/2016,969997,600.00,REDACTED PERSONAL DATA,,BARRISTERS                    ,
SHEFFIELD CITY COUNCIL        ,COMMUNITIES                   ,46071,CITY WIDE CARE ALARMS         ,8010,EQUIPMENT PURCHASE AND REPAIR ,04/01/2016,3IN/10272948             ,"9,490.00",TUNSTALL HEALTHCARE (UK) LTD            ,,TELECOMMUNICATIONS EQUIPMENT &,
SHEFFIELD CITY COUNCIL        ,CYPF                          ,39513,BANDED FUNDING                ,9050,OTHER LOCAL AUTHORITIES       ,04/01/2016,114009134,"7,028.00",ROTHERHAM MBC                           ,,LOCAL GOVERNMENT              ,
SHEFFIELD CITY COUNCIL        ,CYPF                          ,39513,BANDED FUNDING                ,9050,OTHER LOCAL AUTHORITIES       ,04/01/2016,114009142,"2,026.00",ROTHERHAM MBC                           ,,LOCAL GOVERNMENT              ,
SHEFFIELD CITY COUNCIL        ,CYPF                          ,39513,BANDED FUNDING                ,9050,OTHER LOCAL AUTHORITIES       ,04/01/2016,114009169,"1,184.00",ROTHERHAM MBC                           ,,LOCAL GOVERNMENT              ,
SHEFFIELD CITY COUNCIL        ,COMMUNITIES                   ,42011,DAY SERVICES                  ,8010,EQUIPMENT PURCHASE AND REPAIR ,04/01/2016,926296129,362.86,ARCO LTD                                ,,SAFETY EQUIPMENT & CLOTHING   ,
SHEFFIELD CITY COUNCIL        ,COMMUNITIES                   ,49775,COMMUNITY DEVELOPMENT & HEALTH,6280,HIRE OF PREMISES              ,04/01/2016,25,470.00,BRIGHT STARS MOBILE CRECHE SERVICES     ,,NURSERIES & CRECHES           ,
SHEFFIELD CITY COUNCIL        ,RESOURCES                     ,15139,TRANSPORT FLEET MANAGEMENT    ,7060,EXTERNAL VEHICLE HIRE         ,04/01/2016,767242,"1,600.00",RUSSELLS (KIRBYMOORSIDE) LTD            ,,AGRICULTURAL MACHINERY - SALES,
SHEFFIELD CITY COUNCIL        ,COMMUNITIES                   ,24162,CUSTOM BUILD ENABLEMENT       ,8430,FEES & SERVICES RECHARGED     ,04/01/2016,5153,750.00,WARBURTON SIGNS                         ,,SIGNS & NAMEPLATES            ,
SHEFFIELD CITY COUNCIL        ,COMMUNITIES                   ,24162,CUSTOM BUILD ENABLEMENT       ,8430,FEES & SERVICES RECHARGED     ,04/01/2016,5154,250.00,WARBURTON SIGNS                         ,,SIGNS & NAMEPLATES            ,
SHEFFIELD CITY COUNCIL        ,RESOURCES                     ,15194,GROUNDS MAINTENANCE           ,6370,GROUNDS MTCE AND ARBORICULTURE,04/01/2016,2196,299.00,SHEFFIELD TREE CARE                     ,,TREE WORK & FORESTRY SERVICES ,
SHEFFIELD CITY COUNCIL        ,CYPF                          ,33114,POST 16 LDD DELIVERY 15 16    ,9120,OTHER AGENCIES                ,04/01/2016,4808,962.50,HEELEY DEVELOPMENT TRUST                ,,CHARITIES & VOLUNTARY ORGANISA,
SHEFFIELD CITY COUNCIL        ,CYPF                          ,33040,RED TAPE CENTRAL              ,8010,EQUIPMENT PURCHASE AND REPAIR ,04/01/2016,SL0070048                ,250.10,SYPTE                                   ,,BUS & COACH OPERATORS & STATIO,
SHEFFIELD CITY COUNCIL        ,COMMUNITIES                   ,49153,OTHER REPAIRS & FEES          ,6030,OTHER RESPONSIVE REPAIRS      ,04/01/2016,654604000000000,635.46,YORKSHIRE WATER                         ,,WATER AUTHORITIES             ,
SHEFFIELD CITY COUNCIL        ,COMMUNITIES                   ,49872,ASSOCIATE LIBRARIES GRANTS    ,8180,GRANTS                        ,04/01/2016,FLLC00010                ,744.00,FRECHEVILLE LIBRARY ASSOCIATE LIBRARY   ,,LIBRARIES                     ,
SHEFFIELD CITY COUNCIL        ,POLICY PERFORMANCE AND COMMS  ,18003,COMMUNICATIONS                ,8550,OTHER SERVICES                ,04/01/2016,855-37947                ,358.96,GALT SIGNS LTD T/A FASTSIGNS            ,,SIGNS & NAMEPLATES            ,
SHEFFIELD CITY COUNCIL        ,COMMUNITIES                   ,46071,CITY WIDE CARE ALARMS         ,8010,EQUIPMENT PURCHASE AND REPAIR ,04/01/2016,3IN/10273064             ,"3,521.85",TUNSTALL HEALTHCARE (UK) LTD            ,,TELECOMMUNICATIONS EQUIPMENT &,
SHEFFIELD CITY COUNCIL        ,CYPF                          ,39282,CARE PROCEEDINGS (LEGAL FEES) ,8470,LEGAL FEES                    ,04/01/2016,YO2808                   ,737.96,LUPTON FAWCETT DENISON TILL             ,,SOLICITORS                    ,
SHEFFIELD CITY COUNCIL        ,CYPF                          ,32046,OUTDOOR EDUCATION             ,6030,REPAIRS AND MTCE - RESPONSIVE ,04/01/2016,28902816,660.00,PLUMB CENTER                            ,,PLUMBERS' MERCHANTS           ,
SHEFFIELD CITY COUNCIL        ,PLACE                         ,25152,LANDSCAPE SERVICES            ,8530,TIPPING CHARGES               ,04/01/2016,50718/609                ,"1,890.24",MHH CONTRACTING LTD                     ,,EXCAVATION & GROUNDWORK CONTRA,
SHEFFIELD CITY COUNCIL        ,POLICY PERFORMANCE AND COMMS  ,13001,PUBLIC HEALTH - DPH           ,8350,MISCELLANEOUS EXPENSES        ,04/01/2016,25475,"18,704.00",GATENBY SANDERSON LTD                   ,,EMPLOYMENT & RECRUITMENT AGENC,
SHEFFIELD CITY COUNCIL        ,PLACE                         ,22239,CONTRACTOR PAYMENTS - AMEY    ,6150,ELECTRICITY - STREET LIGHTING ,04/01/2016,27140053,"301,748.28",NPOWER NORTHERN LTD                     ,,ELECTRICITY COMPANIES         ,
SHEFFIELD CITY COUNCIL        ,COMMUNITIES                   ,42034,PURCHASING LEARNING DISABILITI,9190,DIRECT PAYMENTS               ,04/01/2016,J1376622                 ,"1,353.70",REDACTED PERSONAL DATA,Social Community Care,CAREFIRST DIRECT PAYMENTS     ,
SHEFFIELD CITY COUNCIL        ,COMMUNITIES                   ,46039,ADULT SOCIAL CARE PURCHASING  ,9190,DIRECT PAYMENTS               ,04/01/2016,J1376622                 ,355.71,REDACTED PERSONAL DATA,Social Community Care,CAREFIRST DIRECT PAYMENTS     ,
SHEFFIELD CITY COUNCIL        ,COMMUNITIES                   ,46039,ADULT SOCIAL CARE PURCHASING  ,9190,DIRECT PAYMENTS               ,04/01/2016,J1376622                 ,"6,581.46",REDACTED PERSONAL DATA,Social Community Care,CAREFIRST DIRECT PAYMENTS     ,
SHEFFIELD CITY COUNCIL        ,COMMUNITIES                   ,42034,PURCHASING LEARNING DISABILITI,9190,DIRECT PAYMENTS               ,04/01/2016,J1376622                 ,"2,445.66",REDACTED PERSONAL DATA,Social Community Care,CAREFIRST DIRECT PAYMENTS     ,
SHEFFIELD CITY COUNCIL        ,COMMUNITIES                   ,47028,PDSI PURCHASING               ,9190,DIRECT PAYMENTS               ,04/01/2016,J1376622                 ,"1,218.00",REDACTED PERSONAL DATA,Social Community Care,CAREFIRST DIRECT PAYMENTS     ,
SHEFFIELD CITY COUNCIL        ,COMMUNITIES                   ,46039,ADULT SOCIAL CARE PURCHASING  ,9190,DIRECT PAYMENTS               ,04/01/2016,J1376622                 ,448.00,REDACTED PERSONAL DATA,Social Community Care,CAREFIRST DIRECT PAYMENTS     ,
SHEFFIELD CITY COUNCIL        ,COMMUNITIES                   ,46039,ADULT SOCIAL CARE PURCHASING  ,9190,DIRECT PAYMENTS               ,04/01/2016,J1376622                 ,"3,583.08",SY CARE & SUPPORT SHEFFIELD             ,Social Community Care,CAREFIRST DIRECT PAYMENTS     ,
SHEFFIELD CITY COUNCIL        ,COMMUNITIES                   ,46039,ADULT SOCIAL CARE PURCHASING  ,9190,DIRECT PAYMENTS               ,04/01/2016,J1376622                 ,"3,149.83",REDACTED PERSONAL DATA,Social Community Care,CAREFIRST DIRECT PAYMENTS     ,
SHEFFIELD CITY COUNCIL        ,COMMUNITIES                   ,44001,PURCHASING                    ,9190,DIRECT PAYMENTS               ,04/01/2016,J1376622                 ,284.08,REDACTED PERSONAL DATA,Social Community Care,CAREFIRST DIRECT PAYMENTS     ,
SHEFFIELD CITY COUNCIL        ,COMMUNITIES                   ,46039,ADULT SOCIAL CARE PURCHASING  ,9190,DIRECT PAYMENTS               ,04/01/2016,J1376622                 ,"1,225.00",REDACTED PERSONAL DATA,Social Community Care,CAREFIRST DIRECT PAYMENTS     ,
SHEFFIELD CITY COUNCIL        ,COMMUNITIES                   ,46039,ADULT SOCIAL CARE PURCHASING  ,9190,DIRECT PAYMENTS               ,04/01/2016,J1376622                 ,"1,599.60",REDACTED PERSONAL DATA,Social Community Care,CAREFIRST DIRECT PAYMENTS     ,
SHEFFIELD CITY COUNCIL        ,COMMUNITIES                   ,46039,ADULT SOCIAL CARE PURCHASING  ,9190,DIRECT PAYMENTS               ,04/01/2016,J1376622                 ,"5,105.00",REDACTED PERSONAL DATA,Social Community Care,CAREFIRST DIRECT PAYMENTS     ,
SHEFFIELD CITY COUNCIL        ,COMMUNITIES                   ,46039,ADULT SOCIAL CARE PURCHASING  ,9190,DIRECT PAYMENTS               ,04/01/2016,J1376622                 ,608.00,PEOPLEPLUS GROUP LIMITED                ,,TRAINING SERVICES             ,
SHEFFIELD CITY COUNCIL        ,COMMUNITIES                   ,42034,PURCHASING LEARNING DISABILITI,4260,DIRECT PAYMENTS               ,04/01/2016,J1377118                 ,517.79,REDACTED PERSONAL DATA,Social Community Care,CAREFIRST DIRECT PAYMENTS     ,
SHEFFIELD CITY COUNCIL        ,COMMUNITIES                   ,42034,PURCHASING LEARNING DISABILITI,9190,DIRECT PAYMENTS               ,04/01/2016,J1377118                 ,650.00,REDACTED PERSONAL DATA,Social Community Care,CAREFIRST DIRECT PAYMENTS     ,
SHEFFIELD CITY COUNCIL        ,COMMUNITIES                   ,42034,PURCHASING LEARNING DISABILITI,9190,DIRECT PAYMENTS               ,04/01/2016,J1377118                 ,349.82,REDACTED PERSONAL DATA,Social Community Care,CAREFIRST DIRECT PAYMENTS     ,
SHEFFIELD CITY COUNCIL        ,COMMUNITIES                   ,42034,PURCHASING LEARNING DISABILITI,9190,DIRECT PAYMENTS               ,04/01/2016,J1377118                 ,897.64,REDACTED PERSONAL DATA,Social Community Care,CAREFIRST DIRECT PAYMENTS     ,
SHEFFIELD CITY COUNCIL        ,COMMUNITIES                   ,46039,ADULT SOCIAL CARE PURCHASING  ,9190,DIRECT PAYMENTS               ,04/01/2016,J1377118                 ,379.80,REDACTED PERSONAL DATA,Social Community Care,CAREFIRST DIRECT PAYMENTS     ,
SHEFFIELD CITY COUNCIL        ,COMMUNITIES                   ,42034,PURCHASING LEARNING DISABILITI,9190,DIRECT PAYMENTS               ,04/01/2016,J1377118                 ,598.39,REDACTED PERSONAL DATA,Social Community Care,CAREFIRST DIRECT PAYMENTS     ,
SHEFFIELD CITY COUNCIL        ,COMMUNITIES                   ,42034,PURCHASING LEARNING DISABILITI,9190,DIRECT PAYMENTS               ,04/01/2016,J1377118                 ,325.00,REDACTED PERSONAL DATA,Social Community Care,CAREFIRST DIRECT PAYMENTS     ,
SHEFFIELD CITY COUNCIL        ,COMMUNITIES                   ,42034,PURCHASING LEARNING DISABILITI,9190,DIRECT PAYMENTS               ,04/01/2016,J1377118                 ,"2,303.84",REDACTED PERSONAL DATA,Social Community Care,CAREFIRST DIRECT PAYMENTS     ,
SHEFFIELD CITY COUNCIL        ,COMMUNITIES                   ,42034,PURCHASING LEARNING DISABILITI,9190,DIRECT PAYMENTS               ,04/01/2016,J1377118                 ,"1,420.74",REDACTED PERSONAL DATA,Social Community Care,CAREFIRST DIRECT PAYMENTS     ,
SHEFFIELD CITY COUNCIL        ,COMMUNITIES                   ,42034,PURCHASING LEARNING DISABILITI,9190,DIRECT PAYMENTS               ,04/01/2016,J1377118                 ,"1,215.80",REDACTED PERSONAL DATA,Social Community Care,CAREFIRST DIRECT PAYMENTS     ,
SHEFFIELD CITY COUNCIL        ,COMMUNITIES                   ,46039,ADULT SOCIAL CARE PURCHASING  ,9190,DIRECT PAYMENTS               ,04/01/2016,J1377118                 ,955.29,REDACTED PERSONAL DATA,Social Community Care,CAREFIRST DIRECT PAYMENTS     ,
SHEFFIELD CITY COUNCIL        ,COMMUNITIES                   ,42034,PURCHASING LEARNING DISABILITI,9190,DIRECT PAYMENTS               ,04/01/2016,J1377118                 ,420.00,REDACTED PERSONAL DATA,Social Community Care,CAREFIRST DIRECT PAYMENTS     ,
SHEFFIELD CITY COUNCIL        ,COMMUNITIES                   ,42034,PURCHASING LEARNING DISABILITI,9190,DIRECT PAYMENTS               ,04/01/2016,J1377118                 ,"4,003.52",REDACTED PERSONAL DATA,Social Community Care,CAREFIRST DIRECT PAYMENTS     ,
SHEFFIELD CITY COUNCIL        ,CYPF                          ,39238,WEST SA - CIN S17             ,9270,PAYMENTS TO RELATIVES/FRIENDS ,04/01/2016,WEST/684                 ,401.40,REDACTED PERSONAL DATA,Unclassified Non Trade,OUT OF SCOPE FOR SIC MONITORIN,
SHEFFIELD CITY COUNCIL        ,CYPF                          ,39238,WEST SA - CIN S17             ,9270,NO RECOURSE TO PUBLIC FUNDS   ,04/01/2016,01/5947731               ,279.00,CLARITY TRAVEL MANAGEMENT               ,,TRAVEL AGENTS & HOLIDAY COMPAN,
SHEFFIELD CITY COUNCIL        ,COMMUNITIES                   ,49661, LUNCH CLUB GRANT             ,8180,GRANTS                        ,04/01/2016,MPA20160401221 1         ,666.00,BANNER CROSS LUNCHEON & FRIENDSHIP CLUB ,,PLACES OF WORSHIP             ,
SHEFFIELD CITY COUNCIL        ,COMMUNITIES                   ,49661, LUNCH CLUB GRANT             ,8180,GRANTS                        ,04/01/2016,MPA20160401221 10        ,691.00,ST WILLIAMS LUNCH CLUB                  ,,CHARITIES & VOLUNTARY ORGANISA,
SHEFFIELD CITY COUNCIL        ,COMMUNITIES                   ,49661, LUNCH CLUB GRANT             ,8180,GRANTS                        ,04/01/2016,MPA20160401221 12        ,605.00,ADLINGTON LUNCHEON CLUB                 ,,CHARITIES & VOLUNTARY ORGANISA,
SHEFFIELD CITY COUNCIL        ,COMMUNITIES                   ,49661, LUNCH CLUB GRANT             ,8180,GRANTS                        ,04/01/2016,MPA20160401221 13        ,924.00,DARNALL LUNCH CLUB                      ,,CHARITIES & VOLUNTARY ORGANISA,
SHEFFIELD CITY COUNCIL        ,COMMUNITIES                   ,49661, LUNCH CLUB GRANT             ,8180,GRANTS                        ,04/01/2016,MPA20160401221 14        ,294.00,DORE OPEN DOOR LUNCH CLUB               ,,CHARITIES & VOLUNTARY ORGANISA,
SHEFFIELD CITY COUNCIL        ,COMMUNITIES                   ,49661, LUNCH CLUB GRANT             ,8180,GRANTS                        ,04/01/2016,MPA20160401221 15        ,640.00,THE LIMES LUNCHEON CLUB                 ,,CHARITIES & VOLUNTARY ORGANISA,
SHEFFIELD CITY COUNCIL        ,COMMUNITIES                   ,49661, LUNCH CLUB GRANT             ,8180,GRANTS                        ,04/01/2016,MPA20160401221 16        ,593.00,DUKE STREET COMMUNITY CENTRE            ,,COMMUNITY CENTRES             ,
SHEFFIELD CITY COUNCIL        ,COMMUNITIES                   ,49661, LUNCH CLUB GRANT             ,8180,GRANTS                        ,04/01/2016,MPA20160401221 17        ,"1,069.00",ST OSWALDS LUNCHEON CLUB                ,,CHARITIES & VOLUNTARY ORGANISA,
SHEFFIELD CITY COUNCIL        ,COMMUNITIES                   ,49661, LUNCH CLUB GRANT             ,8180,GRANTS                        ,04/01/2016,MPA20160401221 19        ,"2,131.00",BIRLEY SPA LUNCH CLUB                   ,,CHARITIES & VOLUNTARY ORGANISA,
SHEFFIELD CITY COUNCIL        ,COMMUNITIES                   ,49661, LUNCH CLUB GRANT             ,8180,GRANTS                        ,04/01/2016,MPA20160401221 2         ,553.00,CHRIST CHURCH PITSMOOR LUNCH CLUB       ,,CHARITIES & VOLUNTARY ORGANISA,
SHEFFIELD CITY COUNCIL        ,COMMUNITIES                   ,49661, LUNCH CLUB GRANT             ,8180,GRANTS                        ,04/01/2016,MPA20160401221 20        ,279.00,THE KINGS CENTRE LUNCH CLUB             ,,CHARITIES & VOLUNTARY ORGANISA,
SHEFFIELD CITY COUNCIL        ,COMMUNITIES                   ,49661, LUNCH CLUB GRANT             ,8180,GRANTS                        ,04/01/2016,MPA20160401221 21        ,422.00,MICHAEL CHURCH LOWEDGES THURS LUNCH CLUB,,CHARITIES & VOLUNTARY ORGANISA,
SHEFFIELD CITY COUNCIL        ,COMMUNITIES                   ,49661, LUNCH CLUB GRANT             ,8180,GRANTS                        ,04/01/2016,MPA20160401221 22        ,739.00,ST JOHN'S ABBEYDALE LUNCH CLUB          ,,CHARITIES & VOLUNTARY ORGANISA,
SHEFFIELD CITY COUNCIL        ,COMMUNITIES                   ,49661, LUNCH CLUB GRANT             ,8180,GRANTS                        ,04/01/2016,MPA20160401221 23        ,566.00,GRAPEVINE CENTRE LUNCHEON CLUB          ,,CHARITIES & VOLUNTARY ORGANISA,
SHEFFIELD CITY COUNCIL        ,COMMUNITIES                   ,49661, LUNCH CLUB GRANT             ,8180,GRANTS                        ,04/01/2016,MPA20160401221 24        ,777.00,PITSMOOR LUNCH CLUB                     ,,CHARITIES & VOLUNTARY ORGANISA,
SHEFFIELD CITY COUNCIL        ,COMMUNITIES                   ,49661, LUNCH CLUB GRANT             ,8180,GRANTS                        ,04/01/2016,MPA20160401221 25        ,"1,138.00",THE SALVATION ARMY SHEFFIELD CASTLE     ,,"HOUSING ASSOCIATIONS, SOCIETIE",
SHEFFIELD CITY COUNCIL        ,COMMUNITIES                   ,49661, LUNCH CLUB GRANT             ,8180,GRANTS                        ,04/01/2016,MPA20160401221 27        ,547.00,WADSLEY CHURCH LUNCH CLUB               ,,CHARITIES & VOLUNTARY ORGANISA,
SHEFFIELD CITY COUNCIL        ,COMMUNITIES                   ,49661, LUNCH CLUB GRANT             ,8180,GRANTS                        ,04/01/2016,MPA20160401221 28        ,"1,153.00",SHIREGREEN UNITED REFORMED CHURCH       ,,PLACES OF WORSHIP             ,
SHEFFIELD CITY COUNCIL        ,COMMUNITIES                   ,49661, LUNCH CLUB GRANT             ,8180,GRANTS                        ,04/01/2016,MPA20160401221 29        ,646.00,ST TIMOTHY'S LUNCH CLUB                 ,,CHARITIES & VOLUNTARY ORGANISA,
SHEFFIELD CITY COUNCIL        ,COMMUNITIES                   ,49661, LUNCH CLUB GRANT             ,8180,GRANTS                        ,04/01/2016,MPA20160401221 3         ,907.00,CROSSPOOL LUNCH CLUB                    ,,CHARITIES & VOLUNTARY ORGANISA,
SHEFFIELD CITY COUNCIL        ,COMMUNITIES                   ,49661, LUNCH CLUB GRANT             ,8180,GRANTS                        ,04/01/2016,MPA20160401221 30        ,"1,877.00",MEERSBROOK PARK LUNCH CLUB              ,,CHARITIES & VOLUNTARY ORGANISA,
SHEFFIELD CITY COUNCIL        ,COMMUNITIES                   ,49661, LUNCH CLUB GRANT             ,8180,GRANTS                        ,04/01/2016,MPA20160401221 31        ,998.00,ST BARTHOLOMEWS LUNCH CLUB              ,,CHARITIES & VOLUNTARY ORGANISA,
SHEFFIELD CITY COUNCIL        ,COMMUNITIES                   ,49661, LUNCH CLUB GRANT             ,8180,GRANTS                        ,04/01/2016,MPA20160401221 32        ,797.00,ST LEONARD'S LUNCH CLUB                 ,,CHARITIES & VOLUNTARY ORGANISA,
SHEFFIELD CITY COUNCIL        ,COMMUNITIES                   ,49661, LUNCH CLUB GRANT             ,8180,GRANTS                        ,04/01/2016,MPA20160401221 33        ,980.00,ST MARY'S LUNCH CLUB                    ,,CHARITIES & VOLUNTARY ORGANISA,
SHEFFIELD CITY COUNCIL        ,COMMUNITIES                   ,49661, LUNCH CLUB GRANT             ,8180,GRANTS                        ,04/01/2016,MPA20160401221 34        ,515.00,TINSLEY COMMUNITY CENTRE LUNCH CLUB     ,,CHARITIES & VOLUNTARY ORGANISA,
SHEFFIELD CITY COUNCIL        ,COMMUNITIES                   ,49661, LUNCH CLUB GRANT             ,8180,GRANTS                        ,04/01/2016,MPA20160401221 36        ,"1,224.00",ST MARY'S HANDSWORTH LUNCH CLUB         ,,CHARITIES & VOLUNTARY ORGANISA,
SHEFFIELD CITY COUNCIL        ,COMMUNITIES                   ,49661, LUNCH CLUB GRANT             ,8180,GRANTS                        ,04/01/2016,MPA20160401221 37        ,877.00,WILLIAM TEMPLE LUNCH CLUB               ,,CHARITIES & VOLUNTARY ORGANISA,
SHEFFIELD CITY COUNCIL        ,COMMUNITIES                   ,49661, LUNCH CLUB GRANT             ,8180,GRANTS                        ,04/01/2016,MPA20160401221 38        ,932.00,VICTORIA AND FOXHILL LIVE AT HOME       ,,CHARITIES & VOLUNTARY ORGANISA,
SHEFFIELD CITY COUNCIL        ,COMMUNITIES                   ,49661, LUNCH CLUB GRANT             ,8180,GRANTS                        ,04/01/2016,MPA20160401221 39        ,359.00,ST MARKS LUNCH & FRIENDSHIP CLUB        ,,PLACES OF WORSHIP             ,
SHEFFIELD CITY COUNCIL        ,COMMUNITIES                   ,49661, LUNCH CLUB GRANT             ,8180,GRANTS                        ,04/01/2016,MPA20160401221 42        ,"1,089.00",FRECHEVILLE PARISH DAY CENTRE           ,,LOCAL GOVERNMENT              ,
SHEFFIELD CITY COUNCIL        ,COMMUNITIES                   ,49661, LUNCH CLUB GRANT             ,8180,GRANTS                        ,04/01/2016,MPA20160401221 43        ,628.00,WESLEY HALL LUNCH CLUB                  ,,CHARITIES & VOLUNTARY ORGANISA,
SHEFFIELD CITY COUNCIL        ,COMMUNITIES                   ,49661, LUNCH CLUB GRANT             ,8180,GRANTS                        ,04/01/2016,MPA20160401221 44        ,887.00,MOSBOROUGH LUNCH & SOCIAL CLUB          ,,"CLUBS & ASSOCIATIONS - SOCIAL,",
SHEFFIELD CITY COUNCIL        ,COMMUNITIES                   ,49661, LUNCH CLUB GRANT             ,8180,GRANTS                        ,04/01/2016,MPA20160401221 45        ,858.00,THE THURSDAY CLUB                       ,,CHARITIES & VOLUNTARY ORGANISA,
SHEFFIELD CITY COUNCIL        ,COMMUNITIES                   ,49661, LUNCH CLUB GRANT             ,8180,GRANTS                        ,04/01/2016,MPA20160401221 46        ,314.00,CHURCH ON THE CORNER                    ,,PLACES OF WORSHIP             ,
SHEFFIELD CITY COUNCIL        ,COMMUNITIES                   ,49661, LUNCH CLUB GRANT             ,8180,GRANTS                        ,04/01/2016,MPA20160401221 47        ,519.00,MANOR LODGE LUNCHEON CLUB               ,,CHARITIES & VOLUNTARY ORGANISA,
SHEFFIELD CITY COUNCIL        ,COMMUNITIES                   ,49661, LUNCH CLUB GRANT             ,8180,GRANTS                        ,04/01/2016,MPA20160401221 49        ,312.00,PARSON CROSS COMMUNITY DEVELOPMENT FORUM,,CHARITIES & VOLUNTARY ORGANISA,
SHEFFIELD CITY COUNCIL        ,COMMUNITIES                   ,49661, LUNCH CLUB GRANT             ,8180,GRANTS                        ,04/01/2016,MPA20160401221 5         ,575.00,HALLAM METHODIST LUNCH CLUB             ,,CHARITIES & VOLUNTARY ORGANISA,
SHEFFIELD CITY COUNCIL        ,COMMUNITIES                   ,49661, LUNCH CLUB GRANT             ,8180,GRANTS                        ,04/01/2016,MPA20160401221 50        ,550.00,THE MIRACLE TRUST (SPIRES LUNCHEON CLUB),Unclassified Non Trade,OUT OF SCOPE FOR SIC MONITORIN,
SHEFFIELD CITY COUNCIL        ,COMMUNITIES                   ,49661, LUNCH CLUB GRANT             ,8180,GRANTS                        ,04/01/2016,MPA20160401221 51        ,500.00,YORK HOUSE LUNCHEON CLUB                ,,"CLUBS & ASSOCIATIONS - SOCIAL,",
SHEFFIELD CITY COUNCIL        ,COMMUNITIES                   ,49661, LUNCH CLUB GRANT             ,8180,GRANTS                        ,04/01/2016,MPA20160401221 6         ,493.80,HANDY HANDS GROUP                       ,,CHARITIES & VOLUNTARY ORGANISA,
SHEFFIELD CITY COUNCIL        ,COMMUNITIES                   ,49661, LUNCH CLUB GRANT             ,8180,GRANTS                        ,04/01/2016,MPA20160401221 8         ,265.00,TOTLEY RISE METHODIST CHURCH LUNCH CLUB ,,CHARITIES & VOLUNTARY ORGANISA,
SHEFFIELD CITY COUNCIL        ,COMMUNITIES                   ,49661, LUNCH CLUB GRANT             ,8180,GRANTS                        ,04/01/2016,MPA20160401221 9         ,855.00,WOODSEATS METHODIST LUNCH CLUB          ,,CHARITIES & VOLUNTARY ORGANISA,
SHEFFIELD CITY COUNCIL        ,PLACE                         ,22151,LAND DRAINAGE & FLOOD MGMT    ,8440,FEE EXPENSES                  ,05/01/2016,489,850.00,WCG PIPETEC LTD                         ,,DRAIN & SEWER CLEARANCE       ,
SHEFFIELD CITY COUNCIL        ,CYPF                          ,36017,COMMUNICATION & SUPPORT SYSTEM,5750,TRAINING EXPENDITURE          ,05/01/2016,400842,670.00,THE OPEN UNIVERSITY                     ,,UNIVERSITIES & MEDICAL SCHOOLS,
SHEFFIELD CITY COUNCIL        ,PLACE                         ,97350,ARBOURTHORNE 5MS              ,1142,PURCHASE OF LAND              ,05/01/2016,ERS INVOICE131167        ,"1,020.00",WOSSKOW BROWN SOLICITORS                ,,SOLICITORS                    ,
SHEFFIELD CITY COUNCIL        ,PLACE                         ,97394,HULL - HUMBER SUB REGION HAL  ,1194,OTHER FEES                    ,05/01/2016,ERS INVOICE131168        ,"10,141.20",JALLAND BUILDING SERVICES LTD           ,Unclassified Non Trade,OUT OF SCOPE FOR SIC MONITORIN,
SHEFFIELD CITY COUNCIL        ,PLACE                         ,22219,LICENSING                     ,8270,SUBSCRIPTIONS                 ,05/01/2016,ERS INVOICE131171        ,300.00,HPI LTD                                 ,,VEHICLE INSPECTION SERVICES   ,
SHEFFIELD CITY COUNCIL        ,CYPF                          ,39446,TEACHING PARTNERSHIPS         ,8440,FEE EXPENSES                  ,05/01/2016,ERS INVOICE131172        ,"3,020.60",PETER CASTLETON CONSULTING              ,,TRAINING CONSULTANTS          ,
SHEFFIELD CITY COUNCIL        ,CYPF                          ,39282,CARE PROCEEDINGS (LEGAL FEES) ,8470,LEGAL FEES                    ,05/01/2016,ERS INVOICE131181        ,359.00,R J WOOD                                ,,DETECTIVE AGENCIES AND PRIVATE,
SHEFFIELD CITY COUNCIL        ,CYPF                          ,39047,ALDINE HOUSE                  ,6030,REPAIRS AND MTCE - RESPONSIVE ,05/01/2016,ERS INVOICE131188        ,"1,500.00",KEN KEATS                               ,,GARDENING SERVICES            ,
SHEFFIELD CITY COUNCIL        ,RESOURCES                     ,14003,BUSINESS INTELLIGENCE         ,8440,FEE EXPENSES                  ,05/01/2016,ERS INVOICE131189        ,"3,293.75",REDACTED PERSONAL DATA,Unclassified Non Trade,OUT OF SCOPE FOR SIC MONITORIN,
SHEFFIELD CITY COUNCIL        ,COMMUNITIES                   ,49703,SOUTH WEST                    ,8180,GRANTS                        ,05/01/2016,ERS INVOICE131190        ,670.00,REDACTED PERSONAL DATA,Unclassified Non Trade,OUT OF SCOPE FOR SIC MONITORIN,
SHEFFIELD CITY COUNCIL        ,COMMUNITIES                   ,49706,NORTH EAST                    ,8180,GRANTS                        ,05/01/2016,ERS INVOICE131191        ,250.00,BURNGREAVE TARA                         ,Unclassified Non Trade,OUT OF SCOPE FOR SIC MONITORIN,
SHEFFIELD CITY COUNCIL        ,CYPF                          ,39357,SHORT BREAKS FUNDING FOR DISAB,9120,OTHER AGENCIES                ,05/01/2016,956,"1,345.40",SOVA                                    ,,CHARITIES & VOLUNTARY ORGANISA,
SHEFFIELD CITY COUNCIL        ,CYPF                          ,39357,SHORT BREAKS FUNDING FOR DISAB,9120,OTHER AGENCIES                ,05/01/2016,4489,"14,034.00",SHEFFIELD MENCAP & GATEWAY              ,,DISABILITY & SPECIAL NEEDS - S,
SHEFFIELD CITY COUNCIL        ,CYPF                          ,38202,OUT OF CITY GUM               ,9030,HEALTH                        ,05/01/2016,6008798,"15,733.08",THE ROTHERHAM FOUNDATION TRUST HOSPITAL ,,PUBLIC HEALTH SUPPLIERS       ,
SHEFFIELD CITY COUNCIL        ,PLACE                         ,25020,ALLOTMENTS                    ,6090,WASTE DISPOSAL                ,05/01/2016,R4106                    ,350.00,E4 (ENVIRONMENTAL) LTD                  ,,ASBESTOS SURVEYS & REMOVALS   ,
SHEFFIELD CITY COUNCIL        ,PLACE                         ,25020,ALLOTMENTS                    ,6090,WASTE DISPOSAL                ,05/01/2016,R4112                    ,250.00,E4 (ENVIRONMENTAL) LTD                  ,,ASBESTOS SURVEYS & REMOVALS   ,
SHEFFIELD CITY COUNCIL        ,PLACE                         ,25020,ALLOTMENTS                    ,6090,WASTE DISPOSAL                ,05/01/2016,R4107                    ,350.00,E4 (ENVIRONMENTAL) LTD                  ,,ASBESTOS SURVEYS & REMOVALS   ,
SHEFFIELD CITY COUNCIL        ,COMMUNITIES                   ,46091,APS - MANOR CENTRE            ,8540,SECURITY SERVICES             ,05/01/2016,INV074315                ,"2,129.40",CONSTANT SECURITY SERVICES LIMITED      ,,SECURITY SERVICES             ,
SHEFFIELD CITY COUNCIL        ,PLACE                         ,21072,CORE PROVISION                ,8490,COACHING FEES                 ,05/01/2016,#INC08875                ,"1,660.00",IGNITE IMAGINATIONS                     ,,CHARITIES & VOLUNTARY ORGANISA,
SHEFFIELD CITY COUNCIL        ,PLACE                         ,21001,SERVICE DEVELOPMENT TEAM      ,8020,EQUIPMENT LEASE/ RENTAL/ HIRE ,05/01/2016,1913,810.00,DB ENTERTAINMENT LTD                    ,,CHILDREN'S ACTIVITY CENTRES   ,
SHEFFIELD CITY COUNCIL        ,PLACE                         ,21001,SERVICE DEVELOPMENT TEAM      ,8020,EQUIPMENT LEASE/ RENTAL/ HIRE ,05/01/2016,1920,990.00,DB ENTERTAINMENT LTD                    ,,CHILDREN'S ACTIVITY CENTRES   ,
SHEFFIELD CITY COUNCIL        ,CYPF                          ,36021,CATERING PREMISES & EQUIPMENT ,8010,EQUIPMENT PURCHASE AND REPAIR ,05/01/2016,9860,952.00,DENBY CATERING EQUIPMENT LIMITED        ,,CATERING EQUIPMENT            ,
SHEFFIELD CITY COUNCIL        ,CYPF                          ,33088,ENGINEERING CENTRE            ,6030,REPAIRS AND MTCE - RESPONSIVE ,05/01/2016,991154991,513.00,ABEL ALARM COMPANY LTD                  ,,BURGLAR & INTRUDER ALARM SYSTE,
SHEFFIELD CITY COUNCIL        ,POLICY PERFORMANCE AND COMMS  ,18003,COMMUNICATIONS                ,8550,OTHER SERVICES                ,05/01/2016,77493,829.63,THE PRINT AND DESIGN FACTORY LTD        ,,PRINTERS                      ,
SHEFFIELD CITY COUNCIL        ,PLACE                         ,23038,PEST CONTROL                  ,8530,TIPPING CHARGES               ,05/01/2016,51068,"1,647.60",MHH CONTRACTING LTD                     ,,EXCAVATION & GROUNDWORK CONTRA,
SHEFFIELD CITY COUNCIL        ,CYPF                          ,39047,ALDINE HOUSE                  ,8350,MISCELLANEOUS EXPENSES        ,05/01/2016,56,750.00,SECURE ACCOMMODATION NETWORK            ,,CHILDREN'S HOMES              ,
SHEFFIELD CITY COUNCIL        ,CYPF                          ,36021,CATERING PREMISES & EQUIPMENT ,8010,EQUIPMENT PURCHASE AND REPAIR ,05/01/2016,9875,"1,764.00",DENBY CATERING EQUIPMENT LIMITED        ,,CATERING EQUIPMENT            ,
SHEFFIELD CITY COUNCIL        ,CYPF                          ,33061,WIDER FAM LEARN AUG 15-JUL 16 ,8440,FEE EXPENSES                  ,05/01/2016,1327,490.00,ROUNDABOUT CRECHE SERVICE               ,,NURSERIES & CRECHES           ,
SHEFFIELD CITY COUNCIL        ,CYPF                          ,33061,WIDER FAM LEARN AUG 15-JUL 16 ,8440,FEE EXPENSES                  ,05/01/2016,1329,280.00,ROUNDABOUT CRECHE SERVICE               ,,NURSERIES & CRECHES           ,
SHEFFIELD CITY COUNCIL        ,CYPF                          ,33060,MENTAL HEALTH PROJECT         ,8440,FEE EXPENSES                  ,05/01/2016,SLIN/00002558            ,"1,942.76",WORKERS EDUCATIONAL ASSOCIATION         ,,CHARITIES & VOLUNTARY ORGANISA,
SHEFFIELD CITY COUNCIL        ,PLACE                         ,21020,ACTIVITY CENTRES              ,6030,REPAIRS AND MTCE - RESPONSIVE ,05/01/2016,3325,"8,385.00",SHARROW COMMUNITY FORUM                 ,,COMMUNITY PROJECTS            ,
SHEFFIELD CITY COUNCIL        ,COMMUNITIES                   ,49364,SUPPORTED HOUSING             ,8050,FURNITURE PURCHASES           ,05/01/2016,89067,"6,875.00",KAYFOAM WOOLFSON (BELFAST LTD)          ,,"BEDS, BEDDING & BLANKETS      ",
SHEFFIELD CITY COUNCIL        ,PLACE                         ,97147,ADAPTATIONS                   ,1157,DWELLINGS MAIN CONTRACT       ,05/01/2016,1034469,"1,396.00",CLARK & PARTNERS LTD                    ,,DISABILITY EQUIPMENT - MNFRS &,
SHEFFIELD CITY COUNCIL        ,CYPF                          ,33061,WIDER FAM LEARN AUG 15-JUL 16 ,8440,FEE EXPENSES                  ,05/01/2016,144,300.00,PROJECT BUZZ LTD                        ,,NURSERIES & CRECHES           ,
SHEFFIELD CITY COUNCIL        ,CYPF                          ,33061,WIDER FAM LEARN AUG 15-JUL 16 ,8440,FEE EXPENSES                  ,05/01/2016,42354,288.00,BRIGHT STARS NURSERY                    ,,CHILDCARE SERVICES            ,
SHEFFIELD CITY COUNCIL        ,PLACE                         ,97414,ARBOURTHORNE 5M'S REFURB      ,1143,COMPENSATION                  ,05/01/2016,854572,379.06,PICKFORDS                               ,,REMOVALS - OVERSEAS           ,
SHEFFIELD CITY COUNCIL        ,PLACE                         ,97294,PARKHILL DEMOLITION SHM (STH) ,1143,COMPENSATION                  ,05/01/2016,799992,524.06,PICKFORDS                               ,,REMOVALS - OVERSEAS           ,
SHEFFIELD CITY COUNCIL        ,PLACE                         ,97414,ARBOURTHORNE 5M'S REFURB      ,1143,COMPENSATION                  ,05/01/2016,856606,379.06,PICKFORDS                               ,,REMOVALS - OVERSEAS           ,
SHEFFIELD CITY COUNCIL        ,RESOURCES                     ,18031,OCCUPATIONAL HEALTH & SAFETY  ,8440,FEE EXPENSES                  ,05/01/2016,9045571,385.00,HEALTH ASSURED LTD                      ,,OCCUPATIONAL HEALTH           ,
SHEFFIELD CITY COUNCIL        ,COMMUNITIES                   ,49364,SUPPORTED HOUSING             ,8050,SOFT FURNISHINGS              ,05/01/2016,17009,"2,544.00",ALLEN UPHOLSTERY                        ,,FURNITURE MNFRS - HOME & OFFIC,
SHEFFIELD CITY COUNCIL        ,CYPF                          ,39047,ALDINE HOUSE                  ,6030,REPAIRS AND MTCE - RESPONSIVE ,05/01/2016,1220611482,382.50,ASSA ABLOY UK LTD TA TRAKA              ,,CONTROL SYSTEM EQUIPMENT      ,
SHEFFIELD CITY COUNCIL        ,COMMUNITIES                   ,44001,PURCHASING                    ,9170,ASYLUM & IMMIGRATION          ,05/01/2016,3024127,"17,670.98",METROPOLITAN                            ,,"HOUSING ASSOCIATIONS, SOCIETIE",
SHEFFIELD CITY COUNCIL        ,COMMUNITIES                   ,49364,SUPPORTED HOUSING             ,8050,FURNITURE PURCHASES           ,05/01/2016,SI0233664                ,"2,378.81",ANNAGHMORE AGENCIES                     ,,FURNITURE - WHOLESALE         ,
SHEFFIELD CITY COUNCIL        ,PLACE                         ,22049,ENERGY -SCHEME                ,6150,ELECTRICITY - INVOICE         ,05/01/2016,2714-019                 ,"109,175.31",NPOWER NORTHERN LTD                     ,,ELECTRICITY COMPANIES         ,
SHEFFIELD CITY COUNCIL        ,PLACE                         ,22256,SHEFFIELD UDV FLOOD SCHEME    ,8460,CONSULTANTS FEES              ,05/01/2016,399108,"65,010.11",OVE ARUP & PARTNERS LTD                 ,,ENGINEERS - CONSULTING        ,
SHEFFIELD CITY COUNCIL        ,RESOURCES                     ,15133,STANIFORTH ROAD WORKSHOPS     ,8350,MISCELLANEOUS EXPENSES        ,05/01/2016,TT1510290072             ,250.00,EPYX LIMITED                            ,,COMPUTER SYSTEMS & SOFTWARE (D,
SHEFFIELD CITY COUNCIL        ,RESOURCES                     ,15133,STANIFORTH ROAD WORKSHOPS     ,8350,MISCELLANEOUS EXPENSES        ,05/01/2016,TT1510290120             ,250.00,EPYX LIMITED                            ,,COMPUTER SYSTEMS & SOFTWARE (D,
SHEFFIELD CITY COUNCIL        ,PLACE                         ,25095,PARKS OPERATIONS WEST         ,8060,MATERIALS AND SUPPLIES GENERAL,05/01/2016,RC004908                 ,"1,280.00",RIGBY TAYLOR LTD                        ,,CAR PAINT & LACQUER MNFRS & SU,
SHEFFIELD CITY COUNCIL        ,PLACE                         ,97985,CITYWIDE 20MPH ZONE           ,1192,DESIGN FEES                   ,05/01/2016,2512,"2,848.00",JES TRAFFIC LTD                         ,,TRAFFIC MANAGEMENT SYSTEMS    ,
SHEFFIELD CITY COUNCIL        ,CYPF                          ,33064,PROVIDER CONTRACT AUG15-JUL16 ,9120,OTHER AGENCIES                ,05/01/2016,SOARCO/2176              ,"1,255.00",SOAR                                    ,,EDUCATIONAL TRAINING PROVIDERS,
SHEFFIELD CITY COUNCIL        ,CYPF                          ,33064,PROVIDER CONTRACT AUG15-JUL16 ,9120,OTHER AGENCIES                ,05/01/2016,SOARCO/2169              ,589.00,SOAR                                    ,,EDUCATIONAL TRAINING PROVIDERS,
SHEFFIELD CITY COUNCIL        ,CYPF                          ,33064,PROVIDER CONTRACT AUG15-JUL16 ,9120,OTHER AGENCIES                ,05/01/2016,SOARCO/2177              ,885.00,SOAR                                    ,,EDUCATIONAL TRAINING PROVIDERS,
SHEFFIELD CITY COUNCIL        ,CYPF                          ,33064,PROVIDER CONTRACT AUG15-JUL16 ,9120,OTHER AGENCIES                ,05/01/2016,SOARCO/2179              ,385.00,SOAR                                    ,,EDUCATIONAL TRAINING PROVIDERS,
SHEFFIELD CITY COUNCIL        ,CYPF                          ,33064,PROVIDER CONTRACT AUG15-JUL16 ,9120,OTHER AGENCIES                ,05/01/2016,SOARCO/2185              ,774.50,SOAR                                    ,,EDUCATIONAL TRAINING PROVIDERS,
SHEFFIELD CITY COUNCIL        ,CYPF                          ,33064,PROVIDER CONTRACT AUG15-JUL16 ,9120,OTHER AGENCIES                ,05/01/2016,SOARCO/2172              ,885.00,SOAR                                    ,,EDUCATIONAL TRAINING PROVIDERS,
SHEFFIELD CITY COUNCIL        ,CYPF                          ,33064,PROVIDER CONTRACT AUG15-JUL16 ,9120,OTHER AGENCIES                ,05/01/2016,SOARCO/2175              ,"1,033.00",SOAR                                    ,,EDUCATIONAL TRAINING PROVIDERS,
SHEFFIELD CITY COUNCIL        ,CYPF                          ,33064,PROVIDER CONTRACT AUG15-JUL16 ,9120,OTHER AGENCIES                ,05/01/2016,SOARCO/2164              ,515.00,SOAR                                    ,,EDUCATIONAL TRAINING PROVIDERS,
SHEFFIELD CITY COUNCIL        ,CYPF                          ,33064,PROVIDER CONTRACT AUG15-JUL16 ,9120,OTHER AGENCIES                ,05/01/2016,SOARCO/2165              ,589.00,SOAR                                    ,,EDUCATIONAL TRAINING PROVIDERS,
SHEFFIELD CITY COUNCIL        ,CYPF                          ,33064,PROVIDER CONTRACT AUG15-JUL16 ,9120,OTHER AGENCIES                ,05/01/2016,SOARCO/2168              ,589.00,SOAR                                    ,,EDUCATIONAL TRAINING PROVIDERS,
SHEFFIELD CITY COUNCIL        ,CYPF                          ,33064,PROVIDER CONTRACT AUG15-JUL16 ,9120,OTHER AGENCIES                ,05/01/2016,SOARCO/2158              ,469.00,SOAR                                    ,,EDUCATIONAL TRAINING PROVIDERS,
SHEFFIELD CITY COUNCIL        ,CYPF                          ,33064,PROVIDER CONTRACT AUG15-JUL16 ,9120,OTHER AGENCIES                ,05/01/2016,SOARCO/2159              ,457.00,SOAR                                    ,,EDUCATIONAL TRAINING PROVIDERS,
SHEFFIELD CITY COUNCIL        ,CYPF                          ,39567,YOUTH JUSTICE SERVICE         ,9120,OTHER AGENCIES                ,05/01/2016,131,"29,500.00",REMEDI                                  ,,CHARITIES & VOLUNTARY ORGANISA,
SHEFFIELD CITY COUNCIL        ,CYPF                          ,39567,YOUTH JUSTICE SERVICE         ,9120,OTHER AGENCIES                ,05/01/2016,132,"42,000.00",REMEDI                                  ,,CHARITIES & VOLUNTARY ORGANISA,
SHEFFIELD CITY COUNCIL        ,CYPF                          ,39267,STEP UP TO SOCIAL WORK        ,8440,FEE EXPENSES                  ,05/01/2016,6810073502,"51,799.20",LEEDS CITY COUNCIL                      ,,LOCAL GOVERNMENT              ,
SHEFFIELD CITY COUNCIL        ,CYPF                          ,39047,ALDINE HOUSE                  ,8550,OTHER SERVICES                ,05/01/2016,1360594,825.18,ARGOS BUSINESS SOLUTIONS                ,,CATALOGUE SHOWROOMS           ,
SHEFFIELD CITY COUNCIL        ,COMMUNITIES                   ,49858,MATERIALS FUND                ,8080,MEDIA                         ,05/01/2016,952392,410.84,ASKEWS LIBRARY SERVICES LTD             ,,BOOKSELLERS                   ,
SHEFFIELD CITY COUNCIL        ,PLACE                         ,97414,ARBOURTHORNE 5M'S REFURB      ,1147,DEMOLITION                    ,05/01/2016,51169,"3,594.00",MHH CONTRACTING LTD                     ,,EXCAVATION & GROUNDWORK CONTRA,
SHEFFIELD CITY COUNCIL        ,PLACE                         ,97294,PARKHILL DEMOLITION SHM (STH) ,1157,DWELLINGS MAIN CONTRACT       ,05/01/2016,51169,"1,200.00",MHH CONTRACTING LTD                     ,,EXCAVATION & GROUNDWORK CONTRA,
SHEFFIELD CITY COUNCIL        ,POLICY PERFORMANCE AND COMMS  ,18003,COMMUNICATIONS                ,8550,OTHER SERVICES                ,05/01/2016,77752,"1,349.79",THE PRINT AND DESIGN FACTORY LTD        ,,PRINTERS                      ,
SHEFFIELD CITY COUNCIL        ,COMMUNITIES                   ,49142,RESPONSIVE HM&E               ,6020,FEES                          ,05/01/2016,3IN/10272868             ,816.00,TUNSTALL HEALTHCARE (UK) LTD            ,,TELECOMMUNICATIONS EQUIPMENT &,
SHEFFIELD CITY COUNCIL        ,COMMUNITIES                   ,49379,VACANTS                       ,8440,FEE EXPENSES                  ,05/01/2016,1185,380.00,VIEWPOINT RESEARCH COMMUNITY INTEREST CO,,MARKET RESEARCH               ,
SHEFFIELD CITY COUNCIL        ,PLACE                         ,97127,OBSOLETE HEATING              ,1157,DWELLINGS MAIN CONTRACT       ,05/01/2016,1188,380.00,VIEWPOINT RESEARCH COMMUNITY INTEREST CO,,MARKET RESEARCH               ,
SHEFFIELD CITY COUNCIL        ,COMMUNITIES                   ,49858,MATERIALS FUND                ,8080,LIBRARY MATERIALS             ,05/01/2016,952391,925.43,ASKEWS LIBRARY SERVICES LTD             ,,BOOKSELLERS                   ,
SHEFFIELD CITY COUNCIL        ,CYPF                          ,39534,VISION SUPPORT SERVICE        ,8010,EQUIPMENT PURCHASE AND REPAIR ,05/01/2016,IN03137165               ,338.37,BT BUSINESS DIRECT LTD                  ,,COMPUTER SYSTEMS & SOFTWARE (S,
SHEFFIELD CITY COUNCIL        ,COMMUNITIES                   ,49363,OLDER PERSONS LIVING          ,8010,EQUIPMENT PURCHASE AND REPAIR ,05/01/2016,13711986,400.00,CURRYS ELECTRICAL                       ,,ELECTRICAL GOODS - SALES      ,
SHEFFIELD CITY COUNCIL        ,PLACE                         ,23036,CORONIAL SERVICES             ,8440,HISTOLOGY FEES                ,05/01/2016,OP/I243540               ,818.50,SOURCE BIOSCIENCE (UK) LTD              ,,CEMETERIES & CREMATORIA       ,
SHEFFIELD CITY COUNCIL        ,RESOURCES                     ,18032,MOORFOOT LEARNING CENTRE      ,8490,OTHER PROFESSIONAL FEES       ,05/01/2016,INV000232                ,"1,643.88",THE IDEAS CENTRE LTD                    ,,TRAINING SERVICES             ,
SHEFFIELD CITY COUNCIL        ,CYPF                          ,39047,ALDINE HOUSE                  ,8130,CATERING SUPPLIES             ,05/01/2016,258329627,505.92,YORKSHIRE PURCHASING ORGANISATION       ,,PURCHASING SERVICES           ,
SHEFFIELD CITY COUNCIL        ,CYPF                          ,39267,STEP UP TO SOCIAL WORK        ,8440,FEE EXPENSES                  ,05/01/2016,91309682774,"8,633.20",WAKEFIELD COUNCIL                       ,,LOCAL GOVERNMENT              ,
SHEFFIELD CITY COUNCIL        ,COMMUNITIES                   ,49153,OTHER REPAIRS & FEES          ,6030,NON CONTRACT TV AERIALS       ,05/01/2016,3460,"2,695.75",NEW CHANNELS TECHNOLOGY LTD             ,,SATELLITE TELEVISION - EQUIPME,
SHEFFIELD CITY COUNCIL        ,PLACE                         ,23001,ANIMAL WARDENS                ,8440,FEE EXPENSES                  ,05/01/2016,1-18888                  ,302.67,PARK HALL VETERINARY CLINIC LTD         ,,VETERINARY SURGEONS & PRACTITI,
SHEFFIELD CITY COUNCIL        ,COMMUNITIES                   ,49363,OLDER PERSONS LIVING          ,8010,EQUIPMENT PURCHASE AND REPAIR ,05/01/2016,24962,928.00,MASTERCARE                              ,,"CARPET, CURTAIN & UPHOLSTERY C",
SHEFFIELD CITY COUNCIL        ,CYPF                          ,39357,SHORT BREAKS FUNDING FOR DISAB,9120,OTHER AGENCIES                ,05/01/2016,23001,354.90,BURTON STREET PROJECT                   ,,CHARITIES & VOLUNTARY ORGANISA,
SHEFFIELD CITY COUNCIL        ,CYPF                          ,39357,SHORT BREAKS FUNDING FOR DISAB,9120,OTHER AGENCIES                ,05/01/2016,23245,338.00,BURTON STREET PROJECT                   ,,CHARITIES & VOLUNTARY ORGANISA,
SHEFFIELD CITY COUNCIL        ,CYPF                          ,39357,SHORT BREAKS FUNDING FOR DISAB,9120,OTHER AGENCIES                ,05/01/2016,23000,321.10,BURTON STREET PROJECT                   ,,CHARITIES & VOLUNTARY ORGANISA,
SHEFFIELD CITY COUNCIL        ,CYPF                          ,39357,SHORT BREAKS FUNDING FOR DISAB,9120,OTHER AGENCIES                ,05/01/2016,23479,253.50,BURTON STREET PROJECT                   ,,CHARITIES & VOLUNTARY ORGANISA,
SHEFFIELD CITY COUNCIL        ,COMMUNITIES                   ,49356,ESTATE & ENVIORMENTAL SERVICES,8440,FEE EXPENSES                  ,05/01/2016,2537,710.00,RECYCLING REVOLUTION                    ,,RECYCLING SERVICES            ,
SHEFFIELD CITY COUNCIL        ,COMMUNITIES                   ,46084,VEHICLE MANAGEMENT            ,7020,VEHICLE FUEL COSTS            ,05/01/2016,E2005924620              ,479.73,ALLSTAR BUSINESS SOLUTIONS LTD          ,,CAR & TRUCK LEASING & CONTRACT,
SHEFFIELD CITY COUNCIL        ,PLACE                         ,25001,GRAVES PARK - ANIMAL FARM INC ,8060,MATERIALS AND SUPPLIES GENERAL,05/01/2016,158988,372.14,WILLIAM EYRE & SONS                     ,,AGRICULTURAL MERCHANTS        ,
SHEFFIELD CITY COUNCIL        ,PLACE                         ,28131,23) SWYP ST SMOKING PROJECT   ,9030,HEALTH                        ,05/01/2016,SOARCO/2189              ,"1,666.00",SOUTHEY & OWLERTON AREA REGENERATION    ,,CHARITIES & VOLUNTARY ORGANISA,
SHEFFIELD CITY COUNCIL        ,PLACE                         ,25001,GRAVES PARK - ANIMAL FARM INC ,8060,MATERIALS AND SUPPLIES GENERAL,05/01/2016,375327,748.16,ARGO FEEDS LTD                          ,,PET FOODS & ANIMAL FEEDS      ,
SHEFFIELD CITY COUNCIL        ,PLACE                         ,23038,PEST CONTROL                  ,8010,EQUIPMENT PURCHASE AND REPAIR ,05/01/2016,1131790,406.00,PELSIS LTD                              ,,PEST & VERMIN CONTROL PRODUCTS,
SHEFFIELD CITY COUNCIL        ,CYPF                          ,32042,MUSIC EDUCATION HUBS 2012-15  ,8010,EQUIPMENT PURCHASE AND REPAIR ,05/01/2016,12131,970.00,P.J.S. MUSIC SERVICES LIMITED           ,,MUSICAL INSTRUMENTS & SHEET MU,
SHEFFIELD CITY COUNCIL        ,CYPF                          ,33060,MENTAL HEALTH PROJECT         ,8440,FEE EXPENSES                  ,05/01/2016,SOARCO/2200              ,"2,700.00",SOAR                                    ,,EDUCATIONAL TRAINING PROVIDERS,
SHEFFIELD CITY COUNCIL        ,COMMUNITIES                   ,46080,ADMIN TEAM - BANK POOL STAFF  ,8600,MOBILE TELEPHONES             ,05/01/2016,656391,417.00,TEXTANYWHERE LIMITED                    ,,TELECOMMUNICATION SERVICES    ,
SHEFFIELD CITY COUNCIL        ,PLACE                         ,90136,CHAUCER SQUARE MAINTENANCE    ,1194,OTHER FEES                    ,05/01/2016,SC469                    ,551.39,SALVINS CLEANING MANAGEMENT SERVICES    ,,CLEANING SERVICES - COMMERCIAL,
SHEFFIELD CITY COUNCIL        ,CYPF                          ,39534,VISION SUPPORT SERVICE        ,5750,TRAINING EXPENDITURE          ,05/01/2016,VIEW1640                 ,250.00,VIEW CONFERENCE ACCOUNT                 ,,CONFERENCE SERVICES           ,
SHEFFIELD CITY COUNCIL        ,COMMUNITIES                   ,49356,ESTATE & ENVIORMENTAL SERVICES,9120,OTHER AGENCIES                ,05/01/2016,3360457,"1,820.65",WM MORRISON SUPERMARKETS PLC            ,,SUPERMARKETS                  ,
SHEFFIELD CITY COUNCIL        ,PLACE                         ,97390,PHS ACTIVITY                  ,1161,NC&A MAIN CONTRACT            ,05/01/2016,753,"3,650.00",S & J MAINTENANCE                       ,,BUILDING SERVICES             ,
SHEFFIELD CITY COUNCIL        ,PLACE                         ,94105,GRAVES NCSEM PROJECT          ,1161,NC&A MAIN CONTRACT            ,05/01/2016,PM24190/12               ,"932,342.92",BAM CONSTRUCTION LIMITED                ,,CONSTRUCTION CONTRACTORS - GEN,
SHEFFIELD CITY COUNCIL        ,PLACE                         ,97147,ADAPTATIONS                   ,1157,DWELLINGS MAIN CONTRACT       ,05/01/2016,SH04384/18               ,"18,667.07",KIER SERVICES MAINTENANCE EAST          ,,CONSTRUCTION CONTRACTORS - GEN,
SHEFFIELD CITY COUNCIL        ,PLACE                         ,97147,ADAPTATIONS                   ,1157,DWELLINGS MAIN CONTRACT       ,05/01/2016,SH04384/10234/19         ,"4,241.13",KIER SERVICES MAINTENANCE EAST          ,,CONSTRUCTION CONTRACTORS - GEN,
SHEFFIELD CITY COUNCIL        ,PLACE                         ,97147,ADAPTATIONS                   ,1157,DWELLINGS MAIN CONTRACT       ,05/01/2016,SH04384/10233/19         ,"36,842.38",KIER SERVICES MAINTENANCE EAST          ,,CONSTRUCTION CONTRACTORS - GEN,
SHEFFIELD CITY COUNCIL        ,PLACE                         ,97127,OBSOLETE HEATING              ,1157,DWELLINGS MAIN CONTRACT       ,05/01/2016,SH04366C/10237/14        ,"50,043.49",YORKSHIRE PLUMBING & HEATING SERVICES   ,,PLUMBERS                      ,
SHEFFIELD CITY COUNCIL        ,PLACE                         ,24205,KEEP SHEFFIELD WORKING        ,8440,FEE EXPENSES                  ,05/01/2016,1392,"2,500.00",SEAMS LTD                               ,,BUSINESS & MANAGEMENT CONSULTA,
SHEFFIELD CITY COUNCIL        ,PLACE                         ,22043,HEAD OF SERVICE               ,8440,FEE EXPENSES                  ,05/01/2016,WWB1087871               ,919.90,SGS UNITED KINGDOM LTD                  ,,"TESTING, INSPECTION & CALIBRAT",
SHEFFIELD CITY COUNCIL        ,COMMUNITIES                   ,42034,PURCHASING LEARNING DISABILITI,9250,INDEPENDENT DAY CARE          ,05/01/2016,15/4034                  ,"1,440.00",PACES SHEFFIELD                         ,,SCHOOLS - SPECIAL             ,
SHEFFIELD CITY COUNCIL        ,COMMUNITIES                   ,46039,ADULT SOCIAL CARE PURCHASING  ,9190,BLOCK CONTRACT                ,05/01/2016,J1337390 151115          ,"36,613.88",REDACTED PERSONAL DATA,,HOME CARE SERVICES            ,
SHEFFIELD CITY COUNCIL        ,COMMUNITIES                   ,46039,ADULT SOCIAL CARE PURCHASING  ,9190,FUNDED HOME SUPPORT           ,05/01/2016,J1337390 151115          ,"1,225.00",REDACTED PERSONAL DATA,,HOME CARE SERVICES            ,
SHEFFIELD CITY COUNCIL        ,COMMUNITIES                   ,46039,ADULT SOCIAL CARE PURCHASING  ,9190,BLOCK CONTRACT                ,05/01/2016,J1368150 131215          ,"2,598.96",ARK HOME HEALTHCARE LTD                 ,,RESIDENTIAL CARE HOMES        ,
SHEFFIELD CITY COUNCIL        ,COMMUNITIES                   ,46039,ADULT SOCIAL CARE PURCHASING  ,9190,BLOCK CONTRACT                ,05/01/2016,J1368161 131215          ,"14,971.12",REDACTED PERSONAL DATA,,HOME CARE SERVICES            ,
SHEFFIELD CITY COUNCIL        ,COMMUNITIES                   ,46039,ADULT SOCIAL CARE PURCHASING  ,9190,FUNDED HOME SUPPORT           ,05/01/2016,J1368161 131215          ,755.36,REDACTED PERSONAL DATA,,HOME CARE SERVICES            ,
SHEFFIELD CITY COUNCIL        ,COMMUNITIES                   ,42034,PURCHASING LEARNING DISABILITI,9190,CITYWIDE SPOT                 ,05/01/2016,J1368174 131215          ,"159,230.97",CITIZENSHIP FIRST                       ,,CHARITIES & VOLUNTARY ORGANISA,
SHEFFIELD CITY COUNCIL        ,COMMUNITIES                   ,42034,PURCHASING LEARNING DISABILITI,9190,FUNDED HOME SUPPORT           ,05/01/2016,J1368176 131215          ,"13,608.00",SSA SOCIAL CARE & COMMUNITY SERVICES LTD,,EMPLOYMENT & RECRUITMENT AGENC,
SHEFFIELD CITY COUNCIL        ,COMMUNITIES                   ,46039,ADULT SOCIAL CARE PURCHASING  ,9190,BLOCK CONTRACT                ,05/01/2016,J1368184 131215          ,"9,362.38",REDACTED PERSONAL DATA,,HOME CARE SERVICES            ,
SHEFFIELD CITY COUNCIL        ,COMMUNITIES                   ,46039,ADULT SOCIAL CARE PURCHASING  ,9190,BLOCK CONTRACT                ,05/01/2016,J960700 200714           ,"9,674.80",REDACTED PERSONAL DATA,,HOME CARE SERVICES            ,
SHEFFIELD CITY COUNCIL        ,COMMUNITIES                   ,46039,ADULT SOCIAL CARE PURCHASING  ,9190,FUNDED HOME SUPPORT           ,05/01/2016,J960700 200714           ,"2,683.52",REDACTED PERSONAL DATA,,HOME CARE SERVICES            ,
SHEFFIELD CITY COUNCIL        ,COMMUNITIES                   ,46039,ADULT SOCIAL CARE PURCHASING  ,9190,FUNDED HOME SUPPORT           ,05/01/2016,J1166778 030515          ,"1,225.00",REDACTED PERSONAL DATA,,HOME CARE SERVICES            ,
SHEFFIELD CITY COUNCIL        ,COMMUNITIES                   ,46039,ADULT SOCIAL CARE PURCHASING  ,9190,BLOCK CONTRACT                ,05/01/2016,J1166778 030515          ,"12,886.27",REDACTED PERSONAL DATA,,HOME CARE SERVICES            ,
SHEFFIELD CITY COUNCIL        ,COMMUNITIES                   ,46039,ADULT SOCIAL CARE PURCHASING  ,9190,BLOCK CONTRACT                ,05/01/2016,J1264220 230815          ,"14,765.26",REDACTED PERSONAL DATA,,HOME CARE SERVICES            ,
SHEFFIELD CITY COUNCIL        ,COMMUNITIES                   ,46039,ADULT SOCIAL CARE PURCHASING  ,9190,FUNDED HOME SUPPORT           ,05/01/2016,J1264220 230815          ,"1,225.00",REDACTED PERSONAL DATA,,HOME CARE SERVICES            ,
SHEFFIELD CITY COUNCIL        ,COMMUNITIES                   ,46039,ADULT SOCIAL CARE PURCHASING  ,9190,BLOCK CONTRACT                ,05/01/2016,J1303498 200915          ,"15,905.26",REDACTED PERSONAL DATA,,HOME CARE SERVICES            ,
SHEFFIELD CITY COUNCIL        ,COMMUNITIES                   ,46039,ADULT SOCIAL CARE PURCHASING  ,9190,FUNDED HOME SUPPORT           ,05/01/2016,J1303498 200915          ,"1,225.00",REDACTED PERSONAL DATA,,HOME CARE SERVICES            ,
SHEFFIELD CITY COUNCIL        ,COMMUNITIES                   ,42034,PURCHASING LEARNING DISABILITI,9190,CITYWIDE SPOT                 ,05/01/2016,1322,"1,040.00",REDACTED PERSONAL DATA,Social Community Care,CAREFIRST DIRECT PAYMENTS     ,
SHEFFIELD CITY COUNCIL        ,COMMUNITIES                   ,42034,PURCHASING LEARNING DISABILITI,9190,CITYWIDE SPOT                 ,05/01/2016,1323,399.40,REDACTED PERSONAL DATA,Social Community Care,CAREFIRST DIRECT PAYMENTS     ,
SHEFFIELD CITY COUNCIL        ,COMMUNITIES                   ,42034,PURCHASING LEARNING DISABILITI,9190,CITYWIDE SPOT                 ,05/01/2016,1324,"1,399.00",REDACTED PERSONAL DATA,Social Community Care,CAREFIRST DIRECT PAYMENTS     ,
SHEFFIELD CITY COUNCIL        ,COMMUNITIES                   ,42034,PURCHASING LEARNING DISABILITI,9190,CITYWIDE SPOT                 ,05/01/2016,1325,"1,060.00",REDACTED PERSONAL DATA,Social Community Care,CAREFIRST DIRECT PAYMENTS     ,
SHEFFIELD CITY COUNCIL        ,COMMUNITIES                   ,42034,PURCHASING LEARNING DISABILITI,9190,CITYWIDE SPOT                 ,05/01/2016,1822,344.40,REDACTED PERSONAL DATA,,HOME CARE SERVICES            ,
SHEFFIELD CITY COUNCIL        ,COMMUNITIES                   ,44001,PURCHASING                    ,9190,CITYWIDE SPOT                 ,05/01/2016,21384,709.72,ST ANNE'S COMMUNITY SERVICES            ,,HOME SUPPORT SERVICES         ,
SHEFFIELD CITY COUNCIL        ,COMMUNITIES                   ,42034,PURCHASING LEARNING DISABILITI,9190,CITYWIDE SPOT                 ,05/01/2016,2220454,853.76,MENCAP HOMECARE                         ,,CHARITIES & VOLUNTARY ORGANISA,
SHEFFIELD CITY COUNCIL        ,COMMUNITIES                   ,46039,ADULT SOCIAL CARE PURCHASING  ,9190,FUNDED HOME SUPPORT           ,05/01/2016,2220455,280.12,MENCAP HOMECARE                         ,,CHARITIES & VOLUNTARY ORGANISA,
SHEFFIELD CITY COUNCIL        ,COMMUNITIES                   ,42034,PURCHASING LEARNING DISABILITI,9190,FUNDED HOME SUPPORT           ,05/01/2016,2220457,"1,698.44",MENCAP HOMECARE                         ,,CHARITIES & VOLUNTARY ORGANISA,
SHEFFIELD CITY COUNCIL        ,COMMUNITIES                   ,42034,PURCHASING LEARNING DISABILITI,9190,CITYWIDE SPOT                 ,05/01/2016,2220459,640.32,MENCAP HOMECARE                         ,,CHARITIES & VOLUNTARY ORGANISA,
SHEFFIELD CITY COUNCIL        ,COMMUNITIES                   ,42034,PURCHASING LEARNING DISABILITI,9190,CITYWIDE SPOT                 ,05/01/2016,2220460,453.56,MENCAP HOMECARE                         ,,CHARITIES & VOLUNTARY ORGANISA,
SHEFFIELD CITY COUNCIL        ,COMMUNITIES                   ,42034,PURCHASING LEARNING DISABILITI,9190,CITYWIDE SPOT                 ,05/01/2016,2220461,"1,400.60",MENCAP HOMECARE                         ,,CHARITIES & VOLUNTARY ORGANISA,
SHEFFIELD CITY COUNCIL        ,COMMUNITIES                   ,42034,PURCHASING LEARNING DISABILITI,9190,FUNDED HOME SUPPORT           ,05/01/2016,2220462,"1,964.56",MENCAP HOMECARE                         ,,CHARITIES & VOLUNTARY ORGANISA,
SHEFFIELD CITY COUNCIL        ,COMMUNITIES                   ,42034,PURCHASING LEARNING DISABILITI,9190,CITYWIDE SPOT                 ,05/01/2016,2220462,"4,524.32",MENCAP HOMECARE                         ,,CHARITIES & VOLUNTARY ORGANISA,
SHEFFIELD CITY COUNCIL        ,COMMUNITIES                   ,42034,PURCHASING LEARNING DISABILITI,9190,CITYWIDE SPOT                 ,05/01/2016,2220463,853.76,MENCAP HOMECARE                         ,,CHARITIES & VOLUNTARY ORGANISA,
SHEFFIELD CITY COUNCIL        ,COMMUNITIES                   ,42034,PURCHASING LEARNING DISABILITI,9190,CITYWIDE SPOT                 ,05/01/2016,2220464,853.76,MENCAP HOMECARE                         ,,CHARITIES & VOLUNTARY ORGANISA,
SHEFFIELD CITY COUNCIL        ,COMMUNITIES                   ,42034,PURCHASING LEARNING DISABILITI,9190,CITYWIDE SPOT                 ,05/01/2016,2220466,853.76,MENCAP HOMECARE                         ,,CHARITIES & VOLUNTARY ORGANISA,
SHEFFIELD CITY COUNCIL        ,COMMUNITIES                   ,46039,ADULT SOCIAL CARE PURCHASING  ,9190,CITYWIDE SPOT                 ,05/01/2016,2220467,"1,841.80",MENCAP HOMECARE                         ,,CHARITIES & VOLUNTARY ORGANISA,
SHEFFIELD CITY COUNCIL        ,COMMUNITIES                   ,42034,PURCHASING LEARNING DISABILITI,9190,CITYWIDE SPOT                 ,05/01/2016,2220468,693.68,MENCAP HOMECARE                         ,,CHARITIES & VOLUNTARY ORGANISA,
SHEFFIELD CITY COUNCIL        ,COMMUNITIES                   ,42034,PURCHASING LEARNING DISABILITI,9190,CITYWIDE SPOT                 ,05/01/2016,2220469,906.04,MENCAP HOMECARE                         ,,CHARITIES & VOLUNTARY ORGANISA,
SHEFFIELD CITY COUNCIL        ,COMMUNITIES                   ,42034,PURCHASING LEARNING DISABILITI,9190,CITYWIDE SPOT                 ,05/01/2016,2220479,853.76,MENCAP HOMECARE                         ,,CHARITIES & VOLUNTARY ORGANISA,
SHEFFIELD CITY COUNCIL        ,COMMUNITIES                   ,42034,PURCHASING LEARNING DISABILITI,9190,CITYWIDE SPOT                 ,05/01/2016,2220480,"1,027.20",MENCAP HOMECARE                         ,,CHARITIES & VOLUNTARY ORGANISA,
SHEFFIELD CITY COUNCIL        ,COMMUNITIES                   ,42034,PURCHASING LEARNING DISABILITI,9190,CITYWIDE SPOT                 ,05/01/2016,2220481,"2,207.12",MENCAP HOMECARE                         ,,CHARITIES & VOLUNTARY ORGANISA,
SHEFFIELD CITY COUNCIL        ,COMMUNITIES                   ,46039,ADULT SOCIAL CARE PURCHASING  ,9190,CITYWIDE SPOT                 ,05/01/2016,2220482,746.92,MENCAP HOMECARE                         ,,CHARITIES & VOLUNTARY ORGANISA,
SHEFFIELD CITY COUNCIL        ,COMMUNITIES                   ,42034,PURCHASING LEARNING DISABILITI,9190,FUNDED HOME SUPPORT           ,05/01/2016,2220483,"1,120.56",MENCAP HOMECARE                         ,,CHARITIES & VOLUNTARY ORGANISA,
SHEFFIELD CITY COUNCIL        ,COMMUNITIES                   ,42034,PURCHASING LEARNING DISABILITI,9190,FUNDED HOME SUPPORT           ,05/01/2016,2220484,"1,614.12",MENCAP HOMECARE                         ,,CHARITIES & VOLUNTARY ORGANISA,
SHEFFIELD CITY COUNCIL        ,COMMUNITIES                   ,42034,PURCHASING LEARNING DISABILITI,9190,CITYWIDE SPOT                 ,05/01/2016,2220485,"3,532.08",MENCAP HOMECARE                         ,,CHARITIES & VOLUNTARY ORGANISA,
SHEFFIELD CITY COUNCIL        ,COMMUNITIES                   ,42034,PURCHASING LEARNING DISABILITI,9190,CITYWIDE SPOT                 ,05/01/2016,1864,946.56,REDACTED PERSONAL DATA,,HOME CARE SERVICES            ,
SHEFFIELD CITY COUNCIL        ,COMMUNITIES                   ,46039,ADULT SOCIAL CARE PURCHASING  ,9190,CITYWIDE SPOT                 ,05/01/2016,2220486,870.24,MENCAP HOMECARE                         ,,CHARITIES & VOLUNTARY ORGANISA,
SHEFFIELD CITY COUNCIL        ,COMMUNITIES                   ,42034,PURCHASING LEARNING DISABILITI,9190,CITYWIDE SPOT                 ,05/01/2016,2220488,"2,264.76",MENCAP HOMECARE                         ,,CHARITIES & VOLUNTARY ORGANISA,
SHEFFIELD CITY COUNCIL        ,COMMUNITIES                   ,42034,PURCHASING LEARNING DISABILITI,9190,CITYWIDE SPOT                 ,05/01/2016,2220489,"2,014.84",MENCAP HOMECARE                         ,,CHARITIES & VOLUNTARY ORGANISA,
SHEFFIELD CITY COUNCIL        ,COMMUNITIES                   ,42034,PURCHASING LEARNING DISABILITI,9190,FUNDED HOME SUPPORT           ,05/01/2016,2220490,"1,777.44",MENCAP HOMECARE                         ,,CHARITIES & VOLUNTARY ORGANISA,
SHEFFIELD CITY COUNCIL        ,COMMUNITIES                   ,42034,PURCHASING LEARNING DISABILITI,9190,CITYWIDE SPOT                 ,05/01/2016,2220491,640.32,MENCAP HOMECARE                         ,,CHARITIES & VOLUNTARY ORGANISA,
SHEFFIELD CITY COUNCIL        ,COMMUNITIES                   ,42034,PURCHASING LEARNING DISABILITI,9190,FUNDED HOME SUPPORT           ,05/01/2016,2220509,640.32,MENCAP HOMECARE                         ,,CHARITIES & VOLUNTARY ORGANISA,
SHEFFIELD CITY COUNCIL        ,COMMUNITIES                   ,42034,PURCHASING LEARNING DISABILITI,9190,FUNDED HOME SUPPORT           ,05/01/2016,1190,752.00,ABBEYCARE & NURSING HOME LTD            ,,RESIDENTIAL CARE HOMES        ,
SHEFFIELD CITY COUNCIL        ,COMMUNITIES                   ,42034,PURCHASING LEARNING DISABILITI,9190,CITYWIDE SPOT                 ,05/01/2016,31111,"2,130.31",CAMPHILL VILLAGE TRUST                  ,,CHARITIES & VOLUNTARY ORGANISA,
SHEFFIELD CITY COUNCIL        ,COMMUNITIES                   ,46039,ADULT SOCIAL CARE PURCHASING  ,9190,CITYWIDE SPOT                 ,05/01/2016,312163,"2,264.00",UNITED RESPONSE                         ,,CHARITIES & VOLUNTARY ORGANISA,
SHEFFIELD CITY COUNCIL        ,COMMUNITIES                   ,46039,ADULT SOCIAL CARE PURCHASING  ,9190,CITYWIDE SPOT                 ,05/01/2016,312275,592.38,UNITED RESPONSE                         ,,CHARITIES & VOLUNTARY ORGANISA,
SHEFFIELD CITY COUNCIL        ,COMMUNITIES                   ,46039,ADULT SOCIAL CARE PURCHASING  ,9190,CITYWIDE SPOT                 ,05/01/2016,312298,756.00,UNITED RESPONSE                         ,,CHARITIES & VOLUNTARY ORGANISA,
SHEFFIELD CITY COUNCIL        ,COMMUNITIES                   ,42034,PURCHASING LEARNING DISABILITI,9190,FUNDED HOME SUPPORT           ,05/01/2016,1195,436.00,ABBEYCARE & NURSING HOME LTD            ,,RESIDENTIAL CARE HOMES        ,
SHEFFIELD CITY COUNCIL        ,COMMUNITIES                   ,42034,PURCHASING LEARNING DISABILITI,9190,CITYWIDE SPOT                 ,05/01/2016,312299,810.00,UNITED RESPONSE                         ,,CHARITIES & VOLUNTARY ORGANISA,
SHEFFIELD CITY COUNCIL        ,COMMUNITIES                   ,42034,PURCHASING LEARNING DISABILITI,9190,CITYWIDE SPOT                 ,05/01/2016,312300,"2,727.84",UNITED RESPONSE                         ,,CHARITIES & VOLUNTARY ORGANISA,
SHEFFIELD CITY COUNCIL        ,COMMUNITIES                   ,42034,PURCHASING LEARNING DISABILITI,9190,CITYWIDE SPOT                 ,05/01/2016,312301,"1,499.34",UNITED RESPONSE                         ,,CHARITIES & VOLUNTARY ORGANISA,
SHEFFIELD CITY COUNCIL        ,COMMUNITIES                   ,42034,PURCHASING LEARNING DISABILITI,9190,CITYWIDE SPOT                 ,05/01/2016,312304,"1,120.50",UNITED RESPONSE                         ,,CHARITIES & VOLUNTARY ORGANISA,
SHEFFIELD CITY COUNCIL        ,COMMUNITIES                   ,46039,ADULT SOCIAL CARE PURCHASING  ,9190,CITYWIDE SPOT                 ,05/01/2016,312365,"1,616.00",UNITED RESPONSE                         ,,CHARITIES & VOLUNTARY ORGANISA,
SHEFFIELD CITY COUNCIL        ,COMMUNITIES                   ,42034,PURCHASING LEARNING DISABILITI,9240,FUNDED NURSING CARE (IN       ,05/01/2016,312377,810.00,UNITED RESPONSE                         ,,CHARITIES & VOLUNTARY ORGANISA,
SHEFFIELD CITY COUNCIL        ,COMMUNITIES                   ,42034,PURCHASING LEARNING DISABILITI,9240,SUPPORTED LIVING CARE         ,05/01/2016,312466,945.84,UNITED RESPONSE                         ,,CHARITIES & VOLUNTARY ORGANISA,
SHEFFIELD CITY COUNCIL        ,COMMUNITIES                   ,42034,PURCHASING LEARNING DISABILITI,9190,CITYWIDE SPOT                 ,05/01/2016,312470,550.48,UNITED RESPONSE                         ,,CHARITIES & VOLUNTARY ORGANISA,
SHEFFIELD CITY COUNCIL        ,COMMUNITIES                   ,42034,PURCHASING LEARNING DISABILITI,9190,FUNDED HOME SUPPORT           ,05/01/2016,312470,497.52,UNITED RESPONSE                         ,,CHARITIES & VOLUNTARY ORGANISA,
SHEFFIELD CITY COUNCIL        ,COMMUNITIES                   ,42034,PURCHASING LEARNING DISABILITI,9190,CITYWIDE SPOT                 ,05/01/2016,312474,621.85,UNITED RESPONSE                         ,,CHARITIES & VOLUNTARY ORGANISA,
SHEFFIELD CITY COUNCIL        ,COMMUNITIES                   ,42034,PURCHASING LEARNING DISABILITI,9190,CITYWIDE SPOT                 ,05/01/2016,312477,616.00,UNITED RESPONSE                         ,,CHARITIES & VOLUNTARY ORGANISA,
SHEFFIELD CITY COUNCIL        ,COMMUNITIES                   ,42034,PURCHASING LEARNING DISABILITI,9190,CITYWIDE SPOT                 ,05/01/2016,312480,675.00,UNITED RESPONSE                         ,,CHARITIES & VOLUNTARY ORGANISA,
SHEFFIELD CITY COUNCIL        ,COMMUNITIES                   ,42034,PURCHASING LEARNING DISABILITI,9190,CITYWIDE SPOT                 ,05/01/2016,312489,"1,512.00",UNITED RESPONSE                         ,,CHARITIES & VOLUNTARY ORGANISA,
SHEFFIELD CITY COUNCIL        ,COMMUNITIES                   ,42034,PURCHASING LEARNING DISABILITI,9190,CITYWIDE SPOT                 ,05/01/2016,312569,891.84,UNITED RESPONSE                         ,,CHARITIES & VOLUNTARY ORGANISA,
SHEFFIELD CITY COUNCIL        ,COMMUNITIES                   ,42034,PURCHASING LEARNING DISABILITI,9190,CITYWIDE SPOT                 ,05/01/2016,312579,540.00,UNITED RESPONSE                         ,,CHARITIES & VOLUNTARY ORGANISA,
SHEFFIELD CITY COUNCIL        ,COMMUNITIES                   ,42034,PURCHASING LEARNING DISABILITI,9240,SUPPORTED LIVING CARE         ,05/01/2016,312621,801.66,UNITED RESPONSE                         ,,CHARITIES & VOLUNTARY ORGANISA,
SHEFFIELD CITY COUNCIL        ,COMMUNITIES                   ,42034,PURCHASING LEARNING DISABILITI,9240,SUPPORTED LIVING CARE         ,05/01/2016,312622,693.66,UNITED RESPONSE                         ,,CHARITIES & VOLUNTARY ORGANISA,
SHEFFIELD CITY COUNCIL        ,COMMUNITIES                   ,42034,PURCHASING LEARNING DISABILITI,9240,SUPPORTED LIVING CARE         ,05/01/2016,312624,"1,719.66",UNITED RESPONSE                         ,,CHARITIES & VOLUNTARY ORGANISA,
SHEFFIELD CITY COUNCIL        ,COMMUNITIES                   ,42034,PURCHASING LEARNING DISABILITI,9190,CITYWIDE SPOT                 ,05/01/2016,1319,"1,807.60",REDACTED PERSONAL DATA,Social Community Care,CAREFIRST DIRECT PAYMENTS     ,
SHEFFIELD CITY COUNCIL        ,COMMUNITIES                   ,46039,ADULT SOCIAL CARE PURCHASING  ,9230,CCSP TRANSPORT                ,05/01/2016,35518,851.20,SHEFFIELD COMMUNITY TRANSPORT           ,,CHARITIES & VOLUNTARY ORGANISA,
SHEFFIELD CITY COUNCIL        ,COMMUNITIES                   ,46039,ADULT SOCIAL CARE PURCHASING  ,9230,CCSP TRANSPORT                ,05/01/2016,35530,879.16,SHEFFIELD COMMUNITY TRANSPORT           ,,CHARITIES & VOLUNTARY ORGANISA,
SHEFFIELD CITY COUNCIL        ,COMMUNITIES                   ,42034,PURCHASING LEARNING DISABILITI,9230,CCSP TRANSPORT                ,05/01/2016,35536,680.90,SHEFFIELD COMMUNITY TRANSPORT           ,,CHARITIES & VOLUNTARY ORGANISA,
SHEFFIELD CITY COUNCIL        ,COMMUNITIES                   ,42034,PURCHASING LEARNING DISABILITI,9210,FUNDED NURSING CARE (INCOME)  ,05/01/2016,35537,360.00,SHEFFIELD COMMUNITY TRANSPORT           ,,CHARITIES & VOLUNTARY ORGANISA,
SHEFFIELD CITY COUNCIL        ,COMMUNITIES                   ,42034,PURCHASING LEARNING DISABILITI,9190,CITYWIDE SPOT                 ,05/01/2016,1320,316.00,REDACTED PERSONAL DATA,Social Community Care,CAREFIRST DIRECT PAYMENTS     ,
SHEFFIELD CITY COUNCIL        ,COMMUNITIES                   ,46039,ADULT SOCIAL CARE PURCHASING  ,9200,CONTINUING RESIDENTIAL CARE   ,05/01/2016,J1360304 030116          ,"1,695.80",HAVENFIELD LODGE                        ,,NURSING HOMES                 ,
SHEFFIELD CITY COUNCIL        ,COMMUNITIES                   ,47028,PDSI PURCHASING               ,9210,CONTINUING NURSING CARE       ,05/01/2016,J1360304 030116          ,"1,613.48",HAVENFIELD LODGE                        ,,NURSING HOMES                 ,
SHEFFIELD CITY COUNCIL        ,COMMUNITIES                   ,42034,PURCHASING LEARNING DISABILITI,9210,CONTINUING NURSING CARE       ,05/01/2016,J1360304 030116          ,"9,043.12",HAVENFIELD LODGE                        ,,NURSING HOMES                 ,
SHEFFIELD CITY COUNCIL        ,COMMUNITIES                   ,42034,PURCHASING LEARNING DISABILITI,9200,CONTINUING RESIDENTIAL CARE   ,05/01/2016,J1360332 030116          ,"2,157.12",LINKAGE COMMUNITY TRUST                 ,,CHARITIES & VOLUNTARY ORGANISA,
SHEFFIELD CITY COUNCIL        ,COMMUNITIES                   ,46039,ADULT SOCIAL CARE PURCHASING  ,9200,CONTINUING RESIDENTIAL CARE   ,05/01/2016,J1360369 030116          ,"1,848.00",DOVE COURT RESIDENTIAL HOME             ,,RESIDENTIAL CARE HOMES        ,
SHEFFIELD CITY COUNCIL        ,COMMUNITIES                   ,46039,ADULT SOCIAL CARE PURCHASING  ,9210,CONTINUING NURSING CARE       ,05/01/2016,J1360389 030116          ,"18,412.00",HOLMWOOD CARE HOME                      ,,NURSING HOMES                 ,
SHEFFIELD CITY COUNCIL        ,COMMUNITIES                   ,44001,PURCHASING                    ,9210,CONTINUING NURSING CARE       ,05/01/2016,J1360439 030116          ,"6,926.84",REDACTED PERSONAL DATA,,NURSING HOMES                 ,
SHEFFIELD CITY COUNCIL        ,COMMUNITIES                   ,42034,PURCHASING LEARNING DISABILITI,9200,CONTINUING RESIDENTIAL CARE   ,05/01/2016,J1360451 030116          ,"7,409.88",GRETTON HOUSE                           ,,NURSING HOMES                 ,
SHEFFIELD CITY COUNCIL        ,COMMUNITIES                   ,46039,ADULT SOCIAL CARE PURCHASING  ,9200,CONTINUING RESIDENTIAL CARE   ,05/01/2016,J1362139 030116          ,"2,448.00",ROSEBERRY CARE CENTRES GB LTD           ,,NURSING HOMES                 ,
SHEFFIELD CITY COUNCIL        ,COMMUNITIES                   ,46039,ADULT SOCIAL CARE PURCHASING  ,4260,NURSING COSTS RECOVERED       ,05/01/2016,J1369007 030116          ,"3,960.91",WILLOWBECK CARE CENTRE                  ,,NURSING HOMES                 ,
SHEFFIELD CITY COUNCIL        ,COMMUNITIES                   ,46039,ADULT SOCIAL CARE PURCHASING  ,9210,CONTINUING NURSING CARE       ,05/01/2016,J1369015 030116          ,"1,890.43",BLENHEIM COURT                          ,,NURSING HOMES                 ,
SHEFFIELD CITY COUNCIL        ,COMMUNITIES                   ,46039,ADULT SOCIAL CARE PURCHASING  ,9200,CONTINUING RESIDENTIAL CARE   ,05/01/2016,J1371823 030116          ,"2,888.00",DEERLANDS (SHEFFCARE LTD)               ,,RESIDENTIAL CARE HOMES        ,
SHEFFIELD CITY COUNCIL        ,COMMUNITIES                   ,46039,ADULT SOCIAL CARE PURCHASING  ,9200,CONTINUING RESIDENTIAL CARE   ,05/01/2016,J1376527 030116          ,"1,373.07",JAH-JIREH CHARITY HOMES                 ,,RESIDENTIAL CARE HOMES        ,
SHEFFIELD CITY COUNCIL        ,COMMUNITIES                   ,46039,ADULT SOCIAL CARE PURCHASING  ,9200,CONTINUING RESIDENTIAL CARE   ,05/01/2016,J1376528 030116          ,"6,996.71",HOUSTEADS (SHEFFCARE LTD)               ,,RESIDENTIAL CARE HOMES        ,
SHEFFIELD CITY COUNCIL        ,COMMUNITIES                   ,46039,ADULT SOCIAL CARE PURCHASING  ,9200,CONTINUING RESIDENTIAL CARE   ,05/01/2016,J1376529 030116          ,"6,166.29",KNOWLE HOUSE (SHEFFCARE LTD)            ,,RESIDENTIAL CARE HOMES        ,
SHEFFIELD CITY COUNCIL        ,COMMUNITIES                   ,46039,ADULT SOCIAL CARE PURCHASING  ,9210,CONTINUING NURSING CARE       ,05/01/2016,J1376532 030116          ,"1,010.40",ROSEBERRY CARE CENTRES GB LTD           ,,RESIDENTIAL CARE HOMES        ,
SHEFFIELD CITY COUNCIL        ,COMMUNITIES                   ,46039,ADULT SOCIAL CARE PURCHASING  ,9200,CONTINUING RESIDENTIAL CARE   ,05/01/2016,J1376871 310116          ,"1,444.00",ASHTON COURT RESIDENTIAL HOME           ,,RESIDENTIAL CARE HOMES        ,
SHEFFIELD CITY COUNCIL        ,COMMUNITIES                   ,46039,ADULT SOCIAL CARE PURCHASING  ,9200,CONTINUING RESIDENTIAL CARE   ,05/01/2016,J1376878 310116          ,"3,000.00",BRIDGEDALE CARE HOME                    ,,NURSING HOMES                 ,
SHEFFIELD CITY COUNCIL        ,COMMUNITIES                   ,46039,ADULT SOCIAL CARE PURCHASING  ,9200,CONTINUING RESIDENTIAL CARE   ,05/01/2016,J1376887 310116          ,"1,729.84",DUCHESS GARDENS (C/O ELDER HOMES BRADFO ,,RESIDENTIAL CARE HOMES        ,
SHEFFIELD CITY COUNCIL        ,COMMUNITIES                   ,42034,PURCHASING LEARNING DISABILITI,9200,CONTINUING RESIDENTIAL CARE   ,05/01/2016,J1376895 310116          ,"8,555.80",HEATHCOTES LTD (BRIDLINGTON)            ,,RESIDENTIAL CARE HOMES        ,
SHEFFIELD CITY COUNCIL        ,COMMUNITIES                   ,42034,PURCHASING LEARNING DISABILITI,9200,CONTINUING RESIDENTIAL CARE   ,05/01/2016,J1376897 310116          ,"3,735.96",MOORCROFT HOUSE                         ,,RESIDENTIAL CARE HOMES        ,
SHEFFIELD CITY COUNCIL        ,COMMUNITIES                   ,46039,ADULT SOCIAL CARE PURCHASING  ,9200,CONTINUING RESIDENTIAL CARE   ,05/01/2016,J1376900 310116          ,"1,940.00",COUMES BROOK                            ,,RESIDENTIAL CARE HOMES        ,
SHEFFIELD CITY COUNCIL        ,COMMUNITIES                   ,44001,PURCHASING                    ,9200,CONTINUING RESIDENTIAL CARE   ,05/01/2016,J1376903 310116          ,"16,685.56",CRAEGMOOR THE BIRCHES                   ,,RESIDENTIAL CARE HOMES        ,
SHEFFIELD CITY COUNCIL        ,COMMUNITIES                   ,46039,ADULT SOCIAL CARE PURCHASING  ,9200,CONTINUING RESIDENTIAL CARE   ,05/01/2016,J1376904 310116          ,"10,528.00",JASMIN COURT NURSING HOME               ,,NURSING HOMES                 ,
SHEFFIELD CITY COUNCIL        ,COMMUNITIES                   ,42034,PURCHASING LEARNING DISABILITI,9210,CONTINUING NURSING CARE       ,05/01/2016,J1376904 310116          ,"1,512.24",JASMIN COURT NURSING HOME               ,,NURSING HOMES                 ,
SHEFFIELD CITY COUNCIL        ,COMMUNITIES                   ,46039,ADULT SOCIAL CARE PURCHASING  ,9210,CONTINUING NURSING CARE       ,05/01/2016,J1376904 310116          ,"12,832.00",JASMIN COURT NURSING HOME               ,,NURSING HOMES                 ,
SHEFFIELD CITY COUNCIL        ,COMMUNITIES                   ,44001,PURCHASING                    ,9200,CONTINUING RESIDENTIAL CARE   ,05/01/2016,J1376923 310116          ,"17,757.08",THE KNOWLE                              ,,RESIDENTIAL CARE HOMES        ,
SHEFFIELD CITY COUNCIL        ,COMMUNITIES                   ,44001,PURCHASING                    ,9200,CONTINUING RESIDENTIAL CARE   ,05/01/2016,J1376926 310116          ,"13,290.08",CARRWOOD HOUSE HOME                     ,,RESIDENTIAL CARE HOMES        ,
SHEFFIELD CITY COUNCIL        ,COMMUNITIES                   ,47028,PDSI PURCHASING               ,9200,CONTINUING RESIDENTIAL CARE   ,05/01/2016,J1376926 310116          ,"3,484.04",CARRWOOD HOUSE HOME                     ,,RESIDENTIAL CARE HOMES        ,
SHEFFIELD CITY COUNCIL        ,COMMUNITIES                   ,42034,PURCHASING LEARNING DISABILITI,9200,CONTINUING RESIDENTIAL CARE   ,05/01/2016,J1376926 310116          ,"4,220.96",CARRWOOD HOUSE HOME                     ,,RESIDENTIAL CARE HOMES        ,
SHEFFIELD CITY COUNCIL        ,COMMUNITIES                   ,46039,ADULT SOCIAL CARE PURCHASING  ,9200,CONTINUING RESIDENTIAL CARE   ,05/01/2016,J1376930 310116          ,"1,695.80",HAVENFIELD LODGE                        ,,NURSING HOMES                 ,
SHEFFIELD CITY COUNCIL        ,COMMUNITIES                   ,42034,PURCHASING LEARNING DISABILITI,9210,CONTINUING NURSING CARE       ,05/01/2016,J1376930 310116          ,"9,043.12",HAVENFIELD LODGE                        ,,NURSING HOMES                 ,
SHEFFIELD CITY COUNCIL        ,COMMUNITIES                   ,47028,PDSI PURCHASING               ,9210,CONTINUING NURSING CARE       ,05/01/2016,J1376930 310116          ,"1,613.48",HAVENFIELD LODGE                        ,,NURSING HOMES                 ,
SHEFFIELD CITY COUNCIL        ,COMMUNITIES                   ,42034,PURCHASING LEARNING DISABILITI,9200,CONTINUING RESIDENTIAL CARE   ,05/01/2016,J1376936 310116          ,"4,773.52",BEECHWOOD                               ,,RESIDENTIAL CARE HOMES        ,
SHEFFIELD CITY COUNCIL        ,COMMUNITIES                   ,42034,PURCHASING LEARNING DISABILITI,9200,CONTINUING RESIDENTIAL CARE   ,05/01/2016,J1376937 310116          ,"7,191.96",CEDAR LODGE RH                          ,,RESIDENTIAL CARE HOMES        ,
SHEFFIELD CITY COUNCIL        ,COMMUNITIES                   ,42034,PURCHASING LEARNING DISABILITI,9210,CONTINUING NURSING CARE       ,05/01/2016,J1376940 310116          ,"15,131.96",ELMWOOD HOUSE NURSING HOME              ,,NURSING HOMES                 ,
SHEFFIELD CITY COUNCIL        ,COMMUNITIES                   ,46039,ADULT SOCIAL CARE PURCHASING  ,9200,CONTINUING RESIDENTIAL CARE   ,05/01/2016,J1376950 310116          ,"8,160.00",LOXLEY COURT                            ,,NURSING HOMES                 ,
SHEFFIELD CITY COUNCIL        ,COMMUNITIES                   ,46039,ADULT SOCIAL CARE PURCHASING  ,9210,CONTINUING NURSING CARE       ,05/01/2016,J1376950 310116          ,"13,298.76",LOXLEY COURT                            ,,NURSING HOMES                 ,
SHEFFIELD CITY COUNCIL        ,COMMUNITIES                   ,46039,ADULT SOCIAL CARE PURCHASING  ,9200,CONTINUING RESIDENTIAL CARE   ,05/01/2016,J1376951 310116          ,"10,965.71",HILLCARE LIMITED                        ,,NURSING HOMES                 ,
SHEFFIELD CITY COUNCIL        ,COMMUNITIES                   ,44001,PURCHASING                    ,9210,CONTINUING NURSING CARE       ,05/01/2016,J1376951 310116          ,"3,208.00",HILLCARE LIMITED                        ,,NURSING HOMES                 ,
SHEFFIELD CITY COUNCIL        ,COMMUNITIES                   ,46039,ADULT SOCIAL CARE PURCHASING  ,9210,CONTINUING NURSING CARE       ,05/01/2016,J1376951 310116          ,"13,748.57",HILLCARE LIMITED                        ,,NURSING HOMES                 ,
SHEFFIELD CITY COUNCIL        ,COMMUNITIES                   ,46039,ADULT SOCIAL CARE PURCHASING  ,9200,CONTINUING RESIDENTIAL CARE   ,05/01/2016,J1376952 310116          ,"40,146.86",LEAHYRST RESIDENTIAL CARE HOME          ,,RESIDENTIAL CARE HOMES        ,
SHEFFIELD CITY COUNCIL        ,COMMUNITIES                   ,46039,ADULT SOCIAL CARE PURCHASING  ,9200,CONTINUING RESIDENTIAL CARE   ,05/01/2016,J1376953 310116          ,"17,100.00",CROFT ACRES                             ,,RESIDENTIAL CARE HOMES        ,
SHEFFIELD CITY COUNCIL        ,COMMUNITIES                   ,42034,PURCHASING LEARNING DISABILITI,9200,CONTINUING RESIDENTIAL CARE   ,05/01/2016,J1376958 310116          ,"2,157.12",LINKAGE COMMUNITY TRUST                 ,,CHARITIES & VOLUNTARY ORGANISA,
SHEFFIELD CITY COUNCIL        ,COMMUNITIES                   ,42034,PURCHASING LEARNING DISABILITI,9200,CONTINUING RESIDENTIAL CARE   ,05/01/2016,J1376959 310116          ,"1,616.00",EAGLE HOUSE CARE HOME                   ,,RESIDENTIAL CARE HOMES        ,
SHEFFIELD CITY COUNCIL        ,COMMUNITIES                   ,46039,ADULT SOCIAL CARE PURCHASING  ,9200,CONTINUING RESIDENTIAL CARE   ,05/01/2016,J1376959 310116          ,"19,535.92",EAGLE HOUSE CARE HOME                   ,,RESIDENTIAL CARE HOMES        ,
SHEFFIELD CITY COUNCIL        ,COMMUNITIES                   ,44001,PURCHASING                    ,9200,CONTINUING RESIDENTIAL CARE   ,05/01/2016,J1376959 310116          ,"3,494.12",EAGLE HOUSE CARE HOME                   ,,RESIDENTIAL CARE HOMES        ,
SHEFFIELD CITY COUNCIL        ,COMMUNITIES                   ,46039,ADULT SOCIAL CARE PURCHASING  ,9210,CONTINUING NURSING CARE       ,05/01/2016,J1376959 310116          ,"16,328.72",EAGLE HOUSE CARE HOME                   ,,RESIDENTIAL CARE HOMES        ,
SHEFFIELD CITY COUNCIL        ,COMMUNITIES                   ,44001,PURCHASING                    ,9210,CONTINUING NURSING CARE       ,05/01/2016,J1376959 310116          ,"10,615.20",EAGLE HOUSE CARE HOME                   ,,RESIDENTIAL CARE HOMES        ,
SHEFFIELD CITY COUNCIL        ,COMMUNITIES                   ,46039,ADULT SOCIAL CARE PURCHASING  ,9200,CONTINUING RESIDENTIAL CARE   ,05/01/2016,J1376967 310116          ,"13,903.00",HALLAMSHIRE REST HOME                   ,,REST & RETIREMENT HOMES       ,
SHEFFIELD CITY COUNCIL        ,COMMUNITIES                   ,46039,ADULT SOCIAL CARE PURCHASING  ,9200,CONTINUING RESIDENTIAL CARE   ,05/01/2016,J1376971 310116          ,"16,160.00",HAZELDENE NURSING HOME                  ,,NURSING HOMES                 ,
SHEFFIELD CITY COUNCIL        ,COMMUNITIES                   ,42034,PURCHASING LEARNING DISABILITI,9200,CONTINUING RESIDENTIAL CARE   ,05/01/2016,J1376971 310116          ,"1,692.64",HAZELDENE NURSING HOME                  ,,NURSING HOMES                 ,
SHEFFIELD CITY COUNCIL        ,COMMUNITIES                   ,42034,PURCHASING LEARNING DISABILITI,9210,CONTINUING NURSING CARE       ,05/01/2016,J1376971 310116          ,"1,652.00",HAZELDENE NURSING HOME                  ,,NURSING HOMES                 ,
SHEFFIELD CITY COUNCIL        ,COMMUNITIES                   ,46039,ADULT SOCIAL CARE PURCHASING  ,9210,CONTINUING NURSING CARE       ,05/01/2016,J1376971 310116          ,"28,084.00",HAZELDENE NURSING HOME                  ,,NURSING HOMES                 ,
SHEFFIELD CITY COUNCIL        ,COMMUNITIES                   ,46039,ADULT SOCIAL CARE PURCHASING  ,9200,CONTINUING RESIDENTIAL CARE   ,05/01/2016,J1376973 310116          ,"6,400.00",LOWER BOWSHAW VIEW NH                   ,,NURSING HOMES                 ,
SHEFFIELD CITY COUNCIL        ,COMMUNITIES                   ,44001,PURCHASING                    ,9200,CONTINUING RESIDENTIAL CARE   ,05/01/2016,J1376973 310116          ,"1,632.00",LOWER BOWSHAW VIEW NH                   ,,NURSING HOMES                 ,
SHEFFIELD CITY COUNCIL        ,COMMUNITIES                   ,46039,ADULT SOCIAL CARE PURCHASING  ,9210,CONTINUING NURSING CARE       ,05/01/2016,J1376973 310116          ,"8,188.00",LOWER BOWSHAW VIEW NH                   ,,NURSING HOMES                 ,
SHEFFIELD CITY COUNCIL        ,COMMUNITIES                   ,44001,PURCHASING                    ,9210,CONTINUING NURSING CARE       ,05/01/2016,J1376980 310116          ,"9,779.44",LONGLEY PARK VIEW                       ,,NURSING HOMES                 ,
SHEFFIELD CITY COUNCIL        ,COMMUNITIES                   ,47028,PDSI PURCHASING               ,9210,CONTINUING NURSING CARE       ,05/01/2016,J1376980 310116          ,"1,667.20",LONGLEY PARK VIEW                       ,,NURSING HOMES                 ,
SHEFFIELD CITY COUNCIL        ,COMMUNITIES                   ,46039,ADULT SOCIAL CARE PURCHASING  ,9210,CONTINUING NURSING CARE       ,05/01/2016,J1376980 310116          ,"42,693.80",LONGLEY PARK VIEW                       ,,NURSING HOMES                 ,
SHEFFIELD CITY COUNCIL        ,COMMUNITIES                   ,44001,PURCHASING                    ,9200,CONTINUING RESIDENTIAL CARE   ,05/01/2016,J1376990 310116          ,"7,107.60",FITZWILLIAM LODGE NH (PD)               ,,NURSING HOMES                 ,
SHEFFIELD CITY COUNCIL        ,COMMUNITIES                   ,46039,ADULT SOCIAL CARE PURCHASING  ,9200,CONTINUING RESIDENTIAL CARE   ,05/01/2016,J1376996 310116          ,401.00,PARK LANE HEALTHCARE (MOORGATE)         ,,NURSING HOMES                 ,
SHEFFIELD CITY COUNCIL        ,COMMUNITIES                   ,46039,ADULT SOCIAL CARE PURCHASING  ,9210,CONTINUING NURSING CARE       ,05/01/2016,J1376998 310116          ,"1,564.00",HEADINGLEY CARE CENTRE (EDLINGTON) LTD  ,,RESIDENTIAL CARE HOMES        ,
SHEFFIELD CITY COUNCIL        ,COMMUNITIES                   ,46039,ADULT SOCIAL CARE PURCHASING  ,9200,CONTINUING RESIDENTIAL CARE   ,05/01/2016,J1377017 310116          ,"13,872.00",ROSEBERRY CARE CENTRES GB LTD           ,,NURSING HOMES                 ,
SHEFFIELD CITY COUNCIL        ,COMMUNITIES                   ,46039,ADULT SOCIAL CARE PURCHASING  ,9210,CONTINUING NURSING CARE       ,05/01/2016,J1377017 310116          ,"21,788.00",ROSEBERRY CARE CENTRES GB LTD           ,,NURSING HOMES                 ,
SHEFFIELD CITY COUNCIL        ,COMMUNITIES                   ,46039,ADULT SOCIAL CARE PURCHASING  ,9200,CONTINUING RESIDENTIAL CARE   ,05/01/2016,J1377027 310116          ,"7,224.00",CAIRN HOME                              ,,RESIDENTIAL CARE HOMES        ,
SHEFFIELD CITY COUNCIL        ,COMMUNITIES                   ,46039,ADULT SOCIAL CARE PURCHASING  ,9200,CONTINUING RESIDENTIAL CARE   ,05/01/2016,J1377029 310116          ,"34,908.00",HEELEY BANK CARE HOME                   ,,RESIDENTIAL CARE HOMES        ,
SHEFFIELD CITY COUNCIL        ,COMMUNITIES                   ,46039,ADULT SOCIAL CARE PURCHASING  ,9210,CONTINUING NURSING CARE       ,05/01/2016,J1377029 310116          ,"34,716.00",HEELEY BANK CARE HOME                   ,,RESIDENTIAL CARE HOMES        ,
SHEFFIELD CITY COUNCIL        ,COMMUNITIES                   ,42034,PURCHASING LEARNING DISABILITI,9200,CONTINUING RESIDENTIAL CARE   ,05/01/2016,J1377032 310116          ,"7,979.16",LITTLE ARCHES RESIDENTIAL HOME          ,,RESIDENTIAL CARE HOMES        ,
SHEFFIELD CITY COUNCIL        ,COMMUNITIES                   ,46039,ADULT SOCIAL CARE PURCHASING  ,9200,CONTINUING RESIDENTIAL CARE   ,05/01/2016,J1377033 310116          ,"3,028.00",BLENHEIM COURT                          ,,NURSING HOMES                 ,
SHEFFIELD CITY COUNCIL        ,COMMUNITIES                   ,46039,ADULT SOCIAL CARE PURCHASING  ,9210,CONTINUING NURSING CARE       ,05/01/2016,J1377033 310116          ,"35,336.00",BLENHEIM COURT                          ,,NURSING HOMES                 ,
SHEFFIELD CITY COUNCIL        ,COMMUNITIES                   ,46039,ADULT SOCIAL CARE PURCHASING  ,9200,CONTINUING RESIDENTIAL CARE   ,05/01/2016,J1377034 310116          ,"10,460.00",ROSEBERRY CARE CENTRES GB LTD           ,,NURSING HOMES                 ,
SHEFFIELD CITY COUNCIL        ,COMMUNITIES                   ,46039,ADULT SOCIAL CARE PURCHASING  ,9210,CONTINUING NURSING CARE       ,05/01/2016,J1377034 310116          ,"37,560.29",ROSEBERRY CARE CENTRES GB LTD           ,,NURSING HOMES                 ,
SHEFFIELD CITY COUNCIL        ,COMMUNITIES                   ,47028,PDSI PURCHASING               ,9200,CONTINUING RESIDENTIAL CARE   ,05/01/2016,J1377036 310116          ,"1,573.16",BROOKVIEW NURSING HOME                  ,,NURSING HOMES                 ,
SHEFFIELD CITY COUNCIL        ,COMMUNITIES                   ,46039,ADULT SOCIAL CARE PURCHASING  ,9200,CONTINUING RESIDENTIAL CARE   ,05/01/2016,J1377036 310116          ,"3,302.92",BROOKVIEW NURSING HOME                  ,,NURSING HOMES                 ,
SHEFFIELD CITY COUNCIL        ,COMMUNITIES                   ,46039,ADULT SOCIAL CARE PURCHASING  ,9210,CONTINUING NURSING CARE       ,05/01/2016,J1377036 310116          ,"3,508.52",BROOKVIEW NURSING HOME                  ,,NURSING HOMES                 ,
SHEFFIELD CITY COUNCIL        ,COMMUNITIES                   ,42034,PURCHASING LEARNING DISABILITI,9210,CONTINUING NURSING CARE       ,05/01/2016,J1377055 310116          ,"13,483.16",GUINNESS NORTHERN COUNTIES              ,,NURSING HOMES                 ,
SHEFFIELD CITY COUNCIL        ,COMMUNITIES                   ,46039,ADULT SOCIAL CARE PURCHASING  ,9210,CONTINUING NURSING CARE       ,05/01/2016,J1377055 310116          ,"2,808.92",GUINNESS NORTHERN COUNTIES              ,,NURSING HOMES                 ,
SHEFFIELD CITY COUNCIL        ,COMMUNITIES                   ,44001,PURCHASING                    ,9200,CONTINUING RESIDENTIAL CARE   ,05/01/2016,J1377061 310116          ,"10,848.92",CHURCH VIEW RESIDENTIAL N/H             ,,PLACES OF WORSHIP             ,
SHEFFIELD CITY COUNCIL        ,COMMUNITIES                   ,44001,PURCHASING                    ,9210,CONTINUING NURSING CARE       ,05/01/2016,J1377062 310116          ,"4,472.84",BARCHESTER HEALTHCARE                   ,,RESIDENTIAL CARE HOMES        ,
SHEFFIELD CITY COUNCIL        ,COMMUNITIES                   ,46039,ADULT SOCIAL CARE PURCHASING  ,9210,CONTINUING NURSING CARE       ,05/01/2016,J1377071 310116          ,"7,384.52",DEARNEVALE                              ,,RESIDENTIAL CARE HOMES        ,
SHEFFIELD CITY COUNCIL        ,COMMUNITIES                   ,42034,PURCHASING LEARNING DISABILITI,9200,CONTINUING RESIDENTIAL CARE   ,05/01/2016,J1377080 310116          ,"3,571.24",HOLLY HOUSE                             ,,RESIDENTIAL CARE HOMES        ,
SHEFFIELD CITY COUNCIL        ,COMMUNITIES                   ,42034,PURCHASING LEARNING DISABILITI,9210,CONTINUING NURSING CARE       ,05/01/2016,J1377081 310116          ,"6,370.72",THE LODGE                               ,,RESIDENTIAL CARE HOMES        ,
SHEFFIELD CITY COUNCIL        ,COMMUNITIES                   ,42034,PURCHASING LEARNING DISABILITI,9200,CONTINUING RESIDENTIAL CARE   ,05/01/2016,J1377083 310116          ,"19,207.20",THE HESLEY GROUP                        ,,SCHOOLS - SPECIAL             ,
SHEFFIELD CITY COUNCIL        ,COMMUNITIES                   ,42034,PURCHASING LEARNING DISABILITI,9200,CONTINUING RESIDENTIAL CARE   ,05/01/2016,J1377086 310116          ,"19,279.08",JANE HOUSE  LTD                         ,,RESIDENTIAL CARE HOMES        ,
SHEFFIELD CITY COUNCIL        ,COMMUNITIES                   ,42034,PURCHASING LEARNING DISABILITI,9200,CONTINUING RESIDENTIAL CARE   ,05/01/2016,J1377091 310116          ,"2,883.04",WHITWELL PARK CARE HOME (CORNER HOUSE)  ,,RESIDENTIAL CARE HOMES        ,
SHEFFIELD CITY COUNCIL        ,COMMUNITIES                   ,42034,PURCHASING LEARNING DISABILITI,9200,CONTINUING RESIDENTIAL CARE   ,05/01/2016,J1377095 310116          ,"4,616.44",THE MEWS                                ,,RESIDENTIAL CARE HOMES        ,
SHEFFIELD CITY COUNCIL        ,COMMUNITIES                   ,42034,PURCHASING LEARNING DISABILITI,9200,CONTINUING RESIDENTIAL CARE   ,05/01/2016,J1377098 310116          ,"3,571.40",MOORVIEW HOUSE                          ,,RESIDENTIAL CARE HOMES        ,
SHEFFIELD CITY COUNCIL        ,COMMUNITIES                   ,44001,PURCHASING                    ,9200,CONTINUING RESIDENTIAL CARE   ,05/01/2016,J1377099 310116          ,"4,530.60",ICON CARE LTD T/A CHAMWOOD              ,,RESIDENTIAL CARE HOMES        ,
SHEFFIELD CITY COUNCIL        ,COMMUNITIES                   ,42034,PURCHASING LEARNING DISABILITI,9200,CONTINUING RESIDENTIAL CARE   ,05/01/2016,J1377099 310116          ,"6,888.00",ICON CARE LTD T/A CHAMWOOD              ,,RESIDENTIAL CARE HOMES        ,
SHEFFIELD CITY COUNCIL        ,COMMUNITIES                   ,46039,ADULT SOCIAL CARE PURCHASING  ,9200,CONTINUING RESIDENTIAL CARE   ,05/01/2016,J1377099 310116          ,"2,300.00",ICON CARE LTD T/A CHAMWOOD              ,,RESIDENTIAL CARE HOMES        ,
SHEFFIELD CITY COUNCIL        ,COMMUNITIES                   ,42034,PURCHASING LEARNING DISABILITI,9200,CONTINUING RESIDENTIAL CARE   ,05/01/2016,J1377101 310116          ,"5,816.88",KNOLLBECK (HEATHCOTES)                  ,,RESIDENTIAL CARE HOMES        ,
SHEFFIELD CITY COUNCIL        ,COMMUNITIES                   ,44001,PURCHASING                    ,9200,CONTINUING RESIDENTIAL CARE   ,05/01/2016,J1377103 310116          ,"3,968.20",BALBY (HEATHCOTES)                      ,,RESIDENTIAL CARE HOMES        ,
SHEFFIELD CITY COUNCIL        ,COMMUNITIES                   ,42034,PURCHASING LEARNING DISABILITI,9200,CONTINUING RESIDENTIAL CARE   ,05/01/2016,J1377107 310116          ,"23,864.40",THE MANSE T/AS KINGFIELD CARE HOME      ,,RESIDENTIAL CARE HOMES        ,
SHEFFIELD CITY COUNCIL        ,COMMUNITIES                   ,46039,ADULT SOCIAL CARE PURCHASING  ,9200,CONTINUING RESIDENTIAL CARE   ,05/01/2016,J1377113 310116          ,"1,705.28",BUPA CARE SERVICES                      ,,RESIDENTIAL CARE HOMES        ,
SHEFFIELD CITY COUNCIL        ,COMMUNITIES                   ,44001,PURCHASING                    ,9200,CONTINUING RESIDENTIAL CARE   ,05/01/2016,J1377114 310116          ,"5,431.80",MOORVILLE RESIDENTIAL                   ,,RESIDENTIAL CARE HOMES        ,
SHEFFIELD CITY COUNCIL        ,COMMUNITIES                   ,42034,PURCHASING LEARNING DISABILITI,9200,CONTINUING RESIDENTIAL CARE   ,05/01/2016,J1377115 310116          ,"6,400.00",CARLTON HOUSE RESIDENTIAL CARE          ,,RESIDENTIAL CARE HOMES        ,
SHEFFIELD CITY COUNCIL        ,COMMUNITIES                   ,42034,PURCHASING LEARNING DISABILITI,9200,CONTINUING RESIDENTIAL CARE   ,05/01/2016,J1377116 310116          ,"8,396.00",HEATHCOTES LTD                          ,,RESIDENTIAL CARE HOMES        ,
SHEFFIELD CITY COUNCIL        ,COMMUNITIES                   ,46039,ADULT SOCIAL CARE PURCHASING  ,9200,CONTINUING RESIDENTIAL CARE   ,05/01/2016,J1377117 310116          ,"5,112.00",BUCKINGHAM CARE HOME                    ,,RESIDENTIAL CARE HOMES        ,
SHEFFIELD CITY COUNCIL        ,COMMUNITIES                   ,46039,ADULT SOCIAL CARE PURCHASING  ,9200,CONTINUING RESIDENTIAL CARE   ,05/01/2016,J1306252 081115          ,"1,848.00",DOVE COURT RESIDENTIAL HOME             ,,RESIDENTIAL CARE HOMES        ,
SHEFFIELD CITY COUNCIL        ,COMMUNITIES                   ,46039,ADULT SOCIAL CARE PURCHASING  ,9200,CONTINUING RESIDENTIAL CARE   ,05/01/2016,J1331345 061215          ,"1,848.00",DOVE COURT RESIDENTIAL HOME             ,,RESIDENTIAL CARE HOMES        ,
SHEFFIELD CITY COUNCIL        ,COMMUNITIES                   ,42034,PURCHASING LEARNING DISABILITI,9200,SHORT TERM RESIDENTIAL CARE   ,05/01/2016,J1362109 061215          ,450.00,THE MANSE T/AS KINGFIELD CARE HOME      ,,RESIDENTIAL CARE HOMES        ,
SHEFFIELD CITY COUNCIL        ,COMMUNITIES                   ,46039,ADULT SOCIAL CARE PURCHASING  ,9200,SHORT TERM RESIDENTIAL CARE   ,05/01/2016,J1366304 061215          ,"2,527.00",BURNT TREE CROFT (SHEFFCARE LTD)        ,,RESIDENTIAL CARE HOMES        ,
SHEFFIELD CITY COUNCIL        ,COMMUNITIES                   ,46039,ADULT SOCIAL CARE PURCHASING  ,9200,SHORT TERM RESIDENTIAL CARE   ,05/01/2016,J1376524 061215          ,"1,938.57",HOUSTEADS (SHEFFCARE LTD)               ,,RESIDENTIAL CARE HOMES        ,
SHEFFIELD CITY COUNCIL        ,COMMUNITIES                   ,46039,ADULT SOCIAL CARE PURCHASING  ,9200,SHORT TERM RESIDENTIAL CARE   ,05/01/2016,J1376845 030116          ,848.57,JASMIN COURT NURSING HOME               ,,NURSING HOMES                 ,
SHEFFIELD CITY COUNCIL        ,COMMUNITIES                   ,46039,ADULT SOCIAL CARE PURCHASING  ,9200,SHORT TERM RESIDENTIAL CARE   ,05/01/2016,J1376848 030116          ,800.00,LOWER BOWSHAW VIEW NH                   ,,NURSING HOMES                 ,
SHEFFIELD CITY COUNCIL        ,COMMUNITIES                   ,42034,PURCHASING LEARNING DISABILITI,9200,SHORT TERM RESIDENTIAL CARE   ,05/01/2016,J1376855 030116          ,"4,200.00",THE MANSE T/AS KINGFIELD CARE HOME      ,,RESIDENTIAL CARE HOMES        ,
SHEFFIELD CITY COUNCIL        ,COMMUNITIES                   ,49362,INCOME MANAGEMENT             ,9120,OTHER AGENCIES                ,06/01/2016,ERS INVOICE131193        ,"35,294.05",AON LIMITED                             ,,INSURANCE - OTHER             ,
SHEFFIELD CITY COUNCIL        ,PLACE                         ,93887,BRT NORTH                     ,1142,PURCHASE OF LAND              ,06/01/2016,ERS INVOICE131194        ,"17,870.00",PINSENT MASONS                          ,,SOLICITORS                    ,
SHEFFIELD CITY COUNCIL        ,PLACE                         ,28161,LOCAL HOUSING COMPANY         ,9120,OTHER AGENCIES                ,06/01/2016,ERS INVOICE131195        ,"206,000.00",REDACTED PERSONAL DATA,,HOUSE BUILDERS                ,
SHEFFIELD CITY COUNCIL        ,CYPF                          ,38006,LAC PUPIL PREMIUM             ,9050,OTHER LOCAL AUTHORITIES       ,06/01/2016,ERS INVOICE131196        ,633.00,RETFORD OAKS ACADEMY                    ,,SCHOOLS - INDEPENDENT & PREPAR,
SHEFFIELD CITY COUNCIL        ,CYPF                          ,38006,LAC PUPIL PREMIUM             ,9050,OTHER LOCAL AUTHORITIES       ,06/01/2016,ERS INVOICE131197        ,633.00,THE HILL PRIMARY ACADEMY                ,,SCHOOLS - LOCAL AUTHORITY     ,
SCR COMBINED AUTHORITY        ,CA LEP                        ,30322,APPRENTICE GRANT              ,8440,FEE EXPENSES                  ,06/01/2016,ERS INVOICE131199        ,"1,420.00",ADRIA GLASS LIMITED                     ,,"GLASS FIBRE MOULDING, MATERIAL",
SCR COMBINED AUTHORITY        ,CA LEP                        ,30322,APPRENTICE GRANT              ,8440,FEE EXPENSES                  ,06/01/2016,ERS INVOICE131200        ,"1,120.00",AMITY LTD                               ,,CHEMICAL MNFRS                ,
SCR COMBINED AUTHORITY        ,CA LEP                        ,30322,APPRENTICE GRANT              ,8440,FEE EXPENSES                  ,06/01/2016,ERS INVOICE131201        ,"1,500.00",DEARNE ELECTRICAL LIMITED               ,,ELECTRICIANS & ELECTRICAL CONT,
SCR COMBINED AUTHORITY        ,CA LEP                        ,30322,APPRENTICE GRANT              ,8440,FEE EXPENSES                  ,06/01/2016,ERS INVOICE131202        ,"1,500.00",ESSENTIALS NAIL & SKIN THERAPY LTD      ,,BEAUTY SALONS                 ,
SCR COMBINED AUTHORITY        ,CA LEP                        ,30322,APPRENTICE GRANT              ,8440,FEE EXPENSES                  ,06/01/2016,ERS INVOICE131203        ,"1,120.00",GDM GARDEN D MAINTENANCE                ,,GARDENING SERVICES            ,
SCR COMBINED AUTHORITY        ,CA LEP                        ,30322,APPRENTICE GRANT              ,8440,FEE EXPENSES                  ,06/01/2016,ERS INVOICE131204        ,"1,120.00",GDM GARDEN D MAINTENANCE                ,,GARDENING SERVICES            ,
SCR COMBINED AUTHORITY        ,CA LEP                        ,30322,APPRENTICE GRANT              ,8440,FEE EXPENSES                  ,06/01/2016,ERS INVOICE131205        ,"1,500.00",SHEFFIELD STORAGE SOLUTIONS LTD         ,,STORAGE SERVICES              ,
SCR COMBINED AUTHORITY        ,CA LEP                        ,30322,APPRENTICE GRANT              ,8440,FEE EXPENSES                  ,06/01/2016,ERS INVOICE131206        ,"1,120.00",IN TOUCH CARE LTD                       ,,TRAINING SERVICES             ,
SCR COMBINED AUTHORITY        ,CA LEP                        ,30322,APPRENTICE GRANT              ,8440,FEE EXPENSES                  ,06/01/2016,ERS INVOICE131208        ,"1,120.00",KEN MALLINSON AND SONS LTD              ,,ROAD HAULAGE SERVICES         ,
SCR COMBINED AUTHORITY        ,CA LEP                        ,30322,APPRENTICE GRANT              ,8440,FEE EXPENSES                  ,06/01/2016,ERS INVOICE131209        ,"1,120.00",KEN MALLINSON AND SONS LTD              ,,ROAD HAULAGE SERVICES         ,
SCR COMBINED AUTHORITY        ,CA LEP                        ,30322,APPRENTICE GRANT              ,8440,FEE EXPENSES                  ,06/01/2016,ERS INVOICE131210        ,"1,120.00",NUTOPIA HAIR AND BEAUTY                 ,,HAIRDRESSERS & HAIR STYLISTS -,
SCR COMBINED AUTHORITY        ,CA LEP                        ,30322,APPRENTICE GRANT              ,8440,FEE EXPENSES                  ,06/01/2016,ERS INVOICE131211        ,"1,500.00",PROHELATHCARE CPD LTD                   ,,MEDICAL & DENTAL LABORATORIES ,
SCR COMBINED AUTHORITY        ,CA LEP                        ,30322,APPRENTICE GRANT              ,8440,FEE EXPENSES                  ,06/01/2016,ERS INVOICE131212        ,"1,120.00",RANDLE + RANDLE LTD                     ,,HAIRDRESSERS & HAIR STYLISTS -,
SCR COMBINED AUTHORITY        ,CA LEP                        ,30322,APPRENTICE GRANT              ,8440,FEE EXPENSES                  ,06/01/2016,ERS INVOICE131213        ,"1,120.00",REDZ HAIR SALON                         ,,HAIRDRESSERS - UNISEX         ,
SCR COMBINED AUTHORITY        ,CA LEP                        ,30322,APPRENTICE GRANT              ,8440,FEE EXPENSES                  ,06/01/2016,ERS INVOICE131214        ,"1,420.00",SB BEDROOMS                             ,,BEDROOM PLANNERS & FURNISHERS ,
SCR COMBINED AUTHORITY        ,CA LEP                        ,30322,APPRENTICE GRANT              ,8440,FEE EXPENSES                  ,06/01/2016,ERS INVOICE131215        ,"1,120.00",THE BUTTIE HUT                          ,,TAKE AWAY FOOD SHOPS          ,
SCR COMBINED AUTHORITY        ,CA LEP                        ,30322,APPRENTICE GRANT              ,8440,FEE EXPENSES                  ,06/01/2016,ERS INVOICE131217        ,"1,120.00",COLLINS AND HAGUE INNS LIMITED          ,,"PUBLIC HOUSES, BARS & INNS    ",
SCR COMBINED AUTHORITY        ,CA LEP                        ,30322,APPRENTICE GRANT              ,8440,FEE EXPENSES                  ,06/01/2016,ERS INVOICE131218        ,"1,120.00",NICKY J'S                               ,,HAIRDRESSERS - UNISEX         ,
SCR COMBINED AUTHORITY        ,CA LEP                        ,30322,APPRENTICE GRANT              ,8440,FEE EXPENSES                  ,06/01/2016,ERS INVOICE131219        ,"1,120.00",RUSSELL EATON LTD                       ,,HAIRDRESSERS - UNISEX         ,
SHEFFIELD CITY COUNCIL        ,COMMUNITIES                   ,49376,MAINTENANCE PARTNERSHIP       ,6060,DISCRETIONARY PAYMENTS        ,06/01/2016,ERS INVOICE131220        ,850.00,REDACTED PERSONAL DATA,Unclassified Non Trade,OUT OF SCOPE FOR SIC MONITORIN,
SHEFFIELD CITY COUNCIL        ,COMMUNITIES                   ,49376,MAINTENANCE PARTNERSHIP       ,6060,DISCRETIONARY PAYMENTS        ,06/01/2016,ERS INVOICE131223        ,400.00,REDACTED PERSONAL DATA,Unclassified Non Trade,OUT OF SCOPE FOR SIC MONITORIN,
SHEFFIELD CITY COUNCIL        ,CYPF                          ,39357,SHORT BREAKS FUNDING FOR DISAB,8440,FEE EXPENSES                  ,06/01/2016,ERS INVOICE131231        ,400.00,REDACTED PERSONAL DATA,Unclassified Non Trade,OUT OF SCOPE FOR SIC MONITORIN,
SHEFFIELD CITY COUNCIL        ,CYPF                          ,39357,SHORT BREAKS FUNDING FOR DISAB,8440,FEE EXPENSES                  ,06/01/2016,ERS INVOICE131232        ,400.00,REDACTED PERSONAL DATA,Unclassified Non Trade,OUT OF SCOPE FOR SIC MONITORIN,
SHEFFIELD CITY COUNCIL        ,CYPF                          ,39357,SHORT BREAKS FUNDING FOR DISAB,8440,FEE EXPENSES                  ,06/01/2016,ERS INVOICE131233        ,400.00,REDACTED PERSONAL DATA,Unclassified Non Trade,OUT OF SCOPE FOR SIC MONITORIN,
SHEFFIELD CITY COUNCIL        ,CYPF                          ,39357,SHORT BREAKS FUNDING FOR DISAB,8440,FEE EXPENSES                  ,06/01/2016,ERS INVOICE131234        ,400.00,REDACTED PERSONAL DATA,Unclassified Non Trade,OUT OF SCOPE FOR SIC MONITORIN,
SHEFFIELD CITY COUNCIL        ,CYPF                          ,39357,SHORT BREAKS FUNDING FOR DISAB,8440,FEE EXPENSES                  ,06/01/2016,ERS INVOICE131235        ,400.00,REDACTED PERSONAL DATA,Unclassified Non Trade,OUT OF SCOPE FOR SIC MONITORIN,
SHEFFIELD CITY COUNCIL        ,COMMUNITIES                   ,49704,CENTRAL                       ,8180,GRANTS                        ,06/01/2016,ERS INVOICE131236        ,500.00,REDACTED PERSONAL DATA,Unclassified Non Trade,OUT OF SCOPE FOR SIC MONITORIN,
SHEFFIELD CITY COUNCIL        ,COMMUNITIES                   ,49030,PRIVATE RENTED SOLUTIONS      ,9120,OTHER AGENCIES                ,06/01/2016,ERS INVOICE131237        ,459.55,JOHN AMER                               ,,ACCOMMODATION AGENCIES - RESID,
SHEFFIELD CITY COUNCIL        ,PLACE                         ,97334,DISABLED GRANTS               ,1165,NC&A OTHER                    ,06/01/2016,ERS INVOICE131238        ,"1,051.56",REDACTED PERSONAL DATA,,ESTATE AGENTS                 ,
SHEFFIELD CITY COUNCIL        ,PLACE                         ,97334,DISABLED GRANTS               ,1165,NC&A OTHER                    ,06/01/2016,ERS INVOICE131239        ,"1,212.84",REDACTED PERSONAL DATA,,ESTATE AGENTS                 ,
SHEFFIELD CITY COUNCIL        ,PLACE                         ,97333,MINOR WORK GRANTS             ,1165,NC&A OTHER                    ,06/01/2016,ERS INVOICE131240        ,700.00,HOLMES ELECTRICAL SERVICES              ,,ELECTRICIANS & ELECTRICAL CONT,
SHEFFIELD CITY COUNCIL        ,PLACE                         ,97334,DISABLED GRANTS               ,1165,NC&A OTHER                    ,06/01/2016,ERS INVOICE131241        ,"1,966.00",STANNAH LIFT SERVICES LTD               ,,STAIRLIFTS - MNFRS & INSTALLER,
SHEFFIELD CITY COUNCIL        ,PLACE                         ,97429,LTE'S PURCHASE & REPAIR       ,1194,OTHER FEES                    ,06/01/2016,ERS INVOICE131242        ,"32,000.00",TAYLOR & EMMET SOLICITORS               ,,SOLICITORS                    ,
SHEFFIELD CITY COUNCIL        ,CYPF                          ,36034,PARENT REIMBURSEMENTS         ,7060,EXTERNAL VEHICLE HIRE         ,06/01/2016,ERS INVOICE131251        ,305.49,REDACTED PERSONAL DATA,Unclassified Non Trade,OUT OF SCOPE FOR SIC MONITORIN,
SHEFFIELD CITY COUNCIL        ,COMMUNITIES                   ,49706,NORTH EAST                    ,8180,GRANTS                        ,06/01/2016,ERS INVOICE131255        ,"7,000.00",YEMENI COMMUNITY ASSOCIATION            ,,CHARITIES & VOLUNTARY ORGANISA,
SHEFFIELD CITY COUNCIL        ,RESOURCES                     ,18032,MOORFOOT LEARNING CENTRE      ,8490,OTHER PROFESSIONAL FEES       ,06/01/2016,ERS INVOICE131272        ,304.00,STEPHEN JONES                           ,,TRAINING SERVICES             ,
SHEFFIELD CITY COUNCIL        ,COMMUNITIES                   ,49853,AUDIENCE DEVELOPMENT          ,8440,FEE EXPENSES                  ,06/01/2016,ERS INVOICE131275        ,474.00,HELEN PIERCY                            ,,TRAINING SERVICES             ,
SHEFFIELD CITY COUNCIL        ,POLICY PERFORMANCE AND COMMS  ,18003,COMMUNICATIONS                ,8550,OTHER SERVICES                ,06/01/2016,77355,439.00,THE PRINT AND DESIGN FACTORY LTD        ,,PRINTERS                      ,
SHEFFIELD CITY COUNCIL        ,RESOURCES                     ,15133,STANIFORTH ROAD WORKSHOPS     ,8390,STATIONERY                    ,06/01/2016,6900891518,292.10,LYRECO UK LTD                           ,,OFFICE FURNITURE & EQUIPMENT  ,
SHEFFIELD CITY COUNCIL        ,COMMUNITIES                   ,49466,REGISTRATION & REGULATION     ,8490,TRANSLATN/SIGN/INTERPRET FEES ,06/01/2016,2530,817.50,LANGUAGELINE SOLUTIONS                  ,,TRANSLATORS & INTERPRETERS    ,
SHEFFIELD CITY COUNCIL        ,POLICY PERFORMANCE AND COMMS  ,18003,COMMUNICATIONS                ,8550,OTHER SERVICES                ,06/01/2016,77571,895.00,THE PRINT AND DESIGN FACTORY LTD        ,,PRINTERS                      ,
SHEFFIELD CITY COUNCIL        ,PLACE                         ,22248,YOUNG DRIVER & TP LSTF MAIN   ,8440,FEE EXPENSES                  ,06/01/2016,60552,658.75,POLICE AND CRIME COMMISSIONER STH YORKSM,,POLICE                        ,
SHEFFIELD CITY COUNCIL        ,COMMUNITIES                   ,49856,MI-21/WORLD METAL INDEX       ,8440,FEE EXPENSES                  ,06/01/2016,9339,"3,250.00",GRANTA DESIGN LTD                       ,,COMPUTER SYSTEMS & SOFTWARE (D,
SHEFFIELD CITY COUNCIL        ,CYPF                          ,36023,CATERING CONTRACT             ,8440,FEE EXPENSES                  ,06/01/2016,148346,"19,093.00",PARENTPAY LIMITED                       ,,SCHOOLS - LOCAL AUTHORITY     ,
SHEFFIELD CITY COUNCIL        ,CYPF                          ,39031,INTER AGENCY FEES             ,9120,OTHER AGENCIES                ,06/01/2016,FSAF15347                ,"9,000.00",FAMILY SOCIETY  (ADOPTION FOCUS)        ,,ADOPTION & FOSTERING          ,
SHEFFIELD CITY COUNCIL        ,PLACE                         ,97147,ADAPTATIONS                   ,1161,NC&A MAIN CONTRACT            ,06/01/2016,9000202205,"11,250.00",BARNSLEY MBC                            ,,LOCAL GOVERNMENT              ,
SHEFFIELD CITY COUNCIL        ,PLACE                         ,24407,PROPERTY DISPOSAL             ,8440,FEE EXPENSES                  ,06/01/2016,654662000000000,"1,241.10",YORKSHIRE WATER                         ,,WATER COMPANIES               ,
SHEFFIELD CITY COUNCIL        ,COMMUNITIES                   ,49466,REGISTRATION & REGULATION     ,8490,TRANSLATN/SIGN/INTERPRET FEES ,06/01/2016,2361,712.50,LANGUAGELINE SOLUTIONS                  ,,TRANSLATORS & INTERPRETERS    ,
SHEFFIELD CITY COUNCIL        ,COMMUNITIES                   ,49153,OTHER REPAIRS & FEES          ,6030,OTHER RESPONSIVE REPAIRS      ,06/01/2016,854575,758.12,PICKFORDS                               ,,REMOVALS - OVERSEAS           ,
SHEFFIELD CITY COUNCIL        ,PLACE                         ,22147,PUBLIC RIGHTS OF WAY          ,6390,OTHER HIGHWAY MAINTENANCE     ,06/01/2016,10/5894/76NA/40409       ,"2,495.00",SHEFFIELD WILDLIFE TRUST                ,,CHARITIES & VOLUNTARY ORGANISA,
SHEFFIELD CITY COUNCIL        ,RESOURCES                     ,18034,HR LEADERSHIP                 ,8240,CONFERENCE EXPENSES           ,06/01/2016,94510568,820.00,NORTHGATEARINSO                         ,,COMPUTER SYSTEMS & SOFTWARE (D,
SHEFFIELD CITY COUNCIL        ,RESOURCES                     ,17120,CIVIL LITIGATION              ,5610,AGENCY STAFF                  ,06/01/2016,3131168,"1,311.34",VENN GROUP                              ,,EMPLOYMENT & RECRUITMENT AGENC,
SHEFFIELD CITY COUNCIL        ,CYPF                          ,36026,SCHOOL MEALS                  ,8130,CATERING SUPPLIES             ,06/01/2016,1904/91116611            ,"4,258.99",MITIE PFI LIMITED                       ,,FACILITIES MANAGEMENT         ,
SHEFFIELD CITY COUNCIL        ,CYPF                          ,36026,SCHOOL MEALS                  ,8150,CONTRACT CATERING - INVOICE   ,06/01/2016,1904/91116611            ,"14,041.75",MITIE PFI LIMITED                       ,,FACILITIES MANAGEMENT         ,
SHEFFIELD CITY COUNCIL        ,CYPF                          ,38200,INTEGRATED SEXUAL HEALTH SERVI,9030,HEALTH                        ,06/01/2016,4000444109,"459,000.00",SHEFFIELD TEACHING HOSPITALS NHS FND TST,,PUBLIC HEALTH SUPPLIERS       ,
SHEFFIELD CITY COUNCIL        ,COMMUNITIES                   ,49142,RESPONSIVE HM&E               ,6020,FEES                          ,06/01/2016,219385,"37,089.50",SUREFIRE SERVICES LIMITED               ,,FIRE PROTECTION CONSULTANTS & ,
SHEFFIELD CITY COUNCIL        ,RESOURCES                     ,18032,MOORFOOT LEARNING CENTRE      ,8440,FEE EXPENSES                  ,06/01/2016,14245,475.00,SMARTSTYLE                              ,,TRAINING SERVICES             ,
SHEFFIELD CITY COUNCIL        ,PLACE                         ,22095,HEAD OF PLANNING SERVICES     ,8470,LEGAL FEES                    ,06/01/2016,368260,"1,250.00",KINGS CHAMBERS                          ,,LEGAL SERVICES                ,
SHEFFIELD CITY COUNCIL        ,PLACE                         ,28103,RISE                          ,8440,FEE EXPENSES                  ,06/01/2016,42361,"1,000.00",INK AND WATER COFFEE LTD                ,,COFFEE SHOPS                  ,
SHEFFIELD CITY COUNCIL        ,PLACE                         ,22248,YOUNG DRIVER & TP LSTF MAIN   ,8440,FEE EXPENSES                  ,06/01/2016,INV-0679                 ,"4,616.33",EDRIVING SOLUTIONS LTD                  ,,DRIVING SCHOOLS               ,
SHEFFIELD CITY COUNCIL        ,PLACE                         ,97127,OBSOLETE HEATING              ,1157,DWELLINGS MAIN CONTRACT       ,06/01/2016,48556,"5,237.25",P.T.S (PLUMBING TRADE SUPPLIERS)        ,,PLUMBERS' MERCHANTS           ,
SHEFFIELD CITY COUNCIL        ,COMMUNITIES                   ,49003,GATEWAY EXTENSION PROJECT     ,8050,FURNITURE PURCHASES           ,06/01/2016,TK112956                 ,329.91,THOMAS KNEALE & CO LTD                  ,,"BEDS, BEDDING & BLANKETS      ",
SHEFFIELD CITY COUNCIL        ,RESOURCES                     ,17117,LEGAL COMMERCIAL              ,5610,AGENCY STAFF                  ,06/01/2016,3133588,741.44,VENN GROUP                              ,,EMPLOYMENT & RECRUITMENT AGENC,
SHEFFIELD CITY COUNCIL        ,RESOURCES                     ,17117,LEGAL COMMERCIAL              ,5610,AGENCY STAFF                  ,06/01/2016,3131167,370.72,VENN GROUP                              ,,EMPLOYMENT & RECRUITMENT AGENC,
SHEFFIELD CITY COUNCIL        ,RESOURCES                     ,17117,LEGAL COMMERCIAL              ,5610,AGENCY STAFF                  ,06/01/2016,3128657,741.44,VENN GROUP                              ,,EMPLOYMENT & RECRUITMENT AGENC,
SHEFFIELD CITY COUNCIL        ,RESOURCES                     ,17117,LEGAL COMMERCIAL              ,5610,AGENCY STAFF                  ,06/01/2016,3135846,741.44,VENN GROUP                              ,,EMPLOYMENT & RECRUITMENT AGENC,
SHEFFIELD CITY COUNCIL        ,RESOURCES                     ,17117,LEGAL COMMERCIAL              ,5610,AGENCY STAFF                  ,06/01/2016,3126141,741.44,VENN GROUP                              ,,EMPLOYMENT & RECRUITMENT AGENC,
SHEFFIELD CITY COUNCIL        ,PLACE                         ,24410,THE MOOR INDOOR MARKET        ,6030,REPAIRS AND MTCE - RESPONSIVE ,06/01/2016,30882362-41              ,416.70,ADT FIRE & SECURITY PLC                 ,,SECURITY EQUIPMENT            ,
SHEFFIELD CITY COUNCIL        ,PLACE                         ,24410,THE MOOR INDOOR MARKET        ,6030,REPAIRS AND MTCE - RESPONSIVE ,06/01/2016,30882364-41              ,257.09,ADT FIRE & SECURITY PLC                 ,,SECURITY EQUIPMENT            ,
SHEFFIELD CITY COUNCIL        ,PLACE                         ,24410,THE MOOR INDOOR MARKET        ,6030,REPAIRS AND MTCE - RESPONSIVE ,06/01/2016,0882363-41               ,257.09,ADT FIRE & SECURITY PLC                 ,,SECURITY EQUIPMENT            ,
SHEFFIELD CITY COUNCIL        ,PLACE                         ,25076,SHEFFIELD HOMES TREES         ,6370,GROUNDS MTCE AND ARBORICULTURE,06/01/2016,3256,"1,195.00",ANDERSON TREE CARE LTD                  ,,TREE WORK & FORESTRY SERVICES ,
SHEFFIELD CITY COUNCIL        ,CYPF                          ,33040,RED TAPE CENTRAL              ,8490,EXAM FEES                     ,06/01/2016,100603997,"1,936.50",OCR                                     ,,EXAMINATION BOARDS            ,
SHEFFIELD CITY COUNCIL        ,CYPF                          ,33040,RED TAPE CENTRAL              ,8490,EXAM FEES                     ,06/01/2016,100603998,"1,507.80",OCR                                     ,,EXAMINATION BOARDS            ,
SHEFFIELD CITY COUNCIL        ,COMMUNITIES                   ,49007,SYRIAN VPR SCHEME             ,6210,RENTS                         ,06/01/2016,SIJ00008831              ,556.44,REDACTED PERSONAL DATA,,"HOUSING ASSOCIATIONS, SOCIETIE",
SHEFFIELD CITY COUNCIL        ,COMMUNITIES                   ,49142,RESPONSIVE HM&E               ,6020,FEES                          ,06/01/2016,219478,573.00,SUREFIRE SERVICES LIMITED               ,,FIRE PROTECTION CONSULTANTS & ,
SHEFFIELD CITY COUNCIL        ,RESOURCES                     ,18032,MOORFOOT LEARNING CENTRE      ,8440,FEE EXPENSES                  ,06/01/2016,15060042,"1,000.00",KIER SHEFFIELD LLP                      ,,PROPERTY MAINTENANCE & REPAIRS,
SHEFFIELD CITY COUNCIL        ,RESOURCES                     ,17120,CIVIL LITIGATION              ,5610,AGENCY STAFF                  ,06/01/2016,3137438,625.11,VENN GROUP                              ,,EMPLOYMENT & RECRUITMENT AGENC,
SHEFFIELD CITY COUNCIL        ,RESOURCES                     ,15188,SECURITY SERVICES             ,8540,SECURITY SERVICES             ,06/01/2016,158,465.00,AUTOGATE SECURITY SOLUTIONS             ,,SECURITY EQUIPMENT INSTALLERS ,
SHEFFIELD CITY COUNCIL        ,RESOURCES                     ,17120,CIVIL LITIGATION              ,5610,AGENCY STAFF                  ,06/01/2016,3133589,"1,719.26",VENN GROUP                              ,,EMPLOYMENT & RECRUITMENT AGENC,
SHEFFIELD CITY COUNCIL        ,RESOURCES                     ,17120,CIVIL LITIGATION              ,5610,AGENCY STAFF                  ,06/01/2016,3135847,"1,343.85",VENN GROUP                              ,,EMPLOYMENT & RECRUITMENT AGENC,
SHEFFIELD CITY COUNCIL        ,RESOURCES                     ,18032,MOORFOOT LEARNING CENTRE      ,8440,FEE EXPENSES                  ,06/01/2016,804004992,276.00,CITY & GUILDS                           ,,EXAMINATION BOARDS            ,
SHEFFIELD CITY COUNCIL        ,CYPF                          ,32046,OUTDOOR EDUCATION             ,8010,EQUIPMENT PURCHASE AND REPAIR ,06/01/2016,2216,"2,329.34",HIGHTIME TECHNICAL CONSULTANTS LTD      ,,TRAINING CONSULTANTS          ,
SHEFFIELD CITY COUNCIL        ,CYPF                          ,38202,OUT OF CITY GUM               ,9030,HEALTH                        ,06/01/2016,7016201033,"67,763.80",NHS SHEFFIELD CCG                       ,,CLINICS - N.H.S.              ,
SHEFFIELD CITY COUNCIL        ,PLACE                         ,21312,CITY CENTRE PROMOTIONAL PLAN  ,8020,EQUIPMENT LEASE/ RENTAL/ HIRE ,06/01/2016,INV221115                ,"3,380.00",ARL SOUND                               ,,LIGHTING CONTRACTORS          ,
SHEFFIELD CITY COUNCIL        ,RESOURCES                     ,18041,RECRUITMENT ADVERTISING       ,5720,RECRUITMENT ADVERTISING       ,06/01/2016,TARINV/15398770          ,690.37,TIMES EDUCATIONAL SUPPLEMENT            ,,NEWSPAPER & MAGAZINE PUBLISHER,
SHEFFIELD CITY COUNCIL        ,RESOURCES                     ,18041,RECRUITMENT ADVERTISING       ,5720,RECRUITMENT ADVERTISING       ,06/01/2016,TARINV/15398919          ,690.37,TIMES EDUCATIONAL SUPPLEMENT            ,,NEWSPAPER & MAGAZINE PUBLISHER,
SHEFFIELD CITY COUNCIL        ,RESOURCES                     ,18042,STATUTORY ADVERTISING         ,8420,ADVERTISING AND PUBL-INVOICED ,06/01/2016,3367752,320.61,SHEFFIELD NEWSPAPERS LTD                ,,NEWSPAPER & MAGAZINE PUBLISHER,
SHEFFIELD CITY COUNCIL        ,RESOURCES                     ,18042,STATUTORY ADVERTISING         ,8420,ADVERTISING AND PUBL-INVOICED ,06/01/2016,3355447,291.46,SHEFFIELD NEWSPAPERS LTD                ,,NEWSPAPER & MAGAZINE PUBLISHER,
SHEFFIELD CITY COUNCIL        ,RESOURCES                     ,18042,STATUTORY ADVERTISING         ,8420,ADVERTISING AND PUBL-INVOICED ,06/01/2016,3355463,495.48,SHEFFIELD NEWSPAPERS LTD                ,,NEWSPAPER & MAGAZINE PUBLISHER,
SHEFFIELD CITY COUNCIL        ,RESOURCES                     ,18042,STATUTORY ADVERTISING         ,8420,ADVERTISING AND PUBL-INVOICED ,06/01/2016,3355826,320.61,SHEFFIELD NEWSPAPERS LTD                ,,NEWSPAPER & MAGAZINE PUBLISHER,
SHEFFIELD CITY COUNCIL        ,RESOURCES                     ,18042,STATUTORY ADVERTISING         ,8420,ADVERTISING AND PUBL-INVOICED ,06/01/2016,3355758,582.92,SHEFFIELD NEWSPAPERS LTD                ,,NEWSPAPER & MAGAZINE PUBLISHER,
SHEFFIELD CITY COUNCIL        ,RESOURCES                     ,18042,STATUTORY ADVERTISING         ,8420,ADVERTISING AND PUBL-INVOICED ,06/01/2016,3355531,378.90,SHEFFIELD NEWSPAPERS LTD                ,,NEWSPAPER & MAGAZINE PUBLISHER,
SHEFFIELD CITY COUNCIL        ,RESOURCES                     ,18042,STATUTORY ADVERTISING         ,8420,ADVERTISING AND PUBL-INVOICED ,06/01/2016,3355835,408.04,SHEFFIELD NEWSPAPERS LTD                ,,NEWSPAPER & MAGAZINE PUBLISHER,
SHEFFIELD CITY COUNCIL        ,RESOURCES                     ,18042,STATUTORY ADVERTISING         ,8420,ADVERTISING AND PUBL-INVOICED ,06/01/2016,3355472,349.75,SHEFFIELD NEWSPAPERS LTD                ,,NEWSPAPER & MAGAZINE PUBLISHER,
SHEFFIELD CITY COUNCIL        ,PLACE                         ,21301,CITY CENTRE MANAGEMENT & ADMIN,8010,EQUIPMENT PURCHASE AND REPAIR ,06/01/2016,2015-12516               ,750.00,SPRINGBOARD RESEARCH LTD                ,,RESEARCH ORGANISATIONS        ,
SHEFFIELD CITY COUNCIL        ,CYPF                          ,39192,PROVIDER MAN/INC FINANCE CHARG,8440,FEE EXPENSES                  ,06/01/2016,SHEF15127                ,"1,620.00",CARE-EX SERVICES LTD T/A CONCER         ,,SOCIAL SERVICES               ,
SHEFFIELD CITY COUNCIL        ,COMMUNITIES                   ,49007,SYRIAN VPR SCHEME             ,6210,RENTS                         ,06/01/2016,42374,358.12,CHEVIN HOUSING ASSOCIATION LIMITED      ,,"HOUSING ASSOCIATIONS, SOCIETIE",
SHEFFIELD CITY COUNCIL        ,PLACE                         ,97127,OBSOLETE HEATING              ,1157,DWELLINGS MAIN CONTRACT       ,06/01/2016,SH04366B/10236/13        ,"35,824.31",AQUA INTERIORS                          ,,LIGHTING CONTRACTORS          ,
SHEFFIELD CITY COUNCIL        ,PLACE                         ,97127,OBSOLETE HEATING              ,1157,DWELLINGS MAIN CONTRACT       ,06/01/2016,SH04366E/10238/16        ,"102,124.63",AQUA INTERIORS                          ,,LIGHTING CONTRACTORS          ,
SHEFFIELD CITY COUNCIL        ,RESOURCES                     ,17152,MEMBERS DEVELOPMENT           ,8440,FEE EXPENSES                  ,06/01/2016,42338,682.00,TIM YOUNG T/A SCRUTINY CONSULTING       ,,TRAINING SERVICES             ,
SHEFFIELD CITY COUNCIL        ,PLACE                         ,24205,KEEP SHEFFIELD WORKING        ,8440,FEE EXPENSES                  ,06/01/2016,01_2016                  ,"4,727.97",ADD SPECIALISTS LTD                     ,,BUSINESS & MANAGEMENT CONSULTA,
SHEFFIELD CITY COUNCIL        ,PLACE                         ,28100,BUSINESS GROWTH TEAM          ,8440,FEE EXPENSES                  ,06/01/2016,01_2016                  ,298.56,ADD SPECIALISTS LTD                     ,,BUSINESS & MANAGEMENT CONSULTA,
SHEFFIELD CITY COUNCIL        ,PLACE                         ,21197,OFF THE SHELF                 ,8440,FEE EXPENSES                  ,06/01/2016,129,500.00,MARK GRIST                              ,,WRITERS - TECHNICAL & COMMERCI,
SHEFFIELD CITY COUNCIL        ,PLACE                         ,21077,RESOURCES LEADER              ,8060,MATERIALS AND SUPPLIES GENERAL,06/01/2016,926259707/276615/327769  ,338.96,ARCO LTD                                ,,SAFETY EQUIPMENT & CLOTHING   ,
SHEFFIELD CITY COUNCIL        ,PLACE                         ,22232,BUILDING STANDARDS            ,8270,SUBSCRIPTIONS                 ,06/01/2016,94427976/1000            ,857.00,BSI                                     ,,QUALITY PROCEDURES PROCESSES &,
SHEFFIELD CITY COUNCIL        ,PLACE                         ,21077,RESOURCES LEADER              ,5750,TRAINING EXPENDITURE          ,06/01/2016,FA01AS                   ,"1,270.00",DIRECT ACTION TRAINING                  ,,HEALTH & SAFETY TRAINING      ,
SHEFFIELD CITY COUNCIL        ,RESOURCES                     ,18041,RECRUITMENT ADVERTISING       ,5720,RECRUITMENT ADVERTISING       ,06/01/2016,TARINV/15399891          ,690.37,TIMES EDUCATIONAL SUPPLEMENT            ,,NEWSPAPER & MAGAZINE PUBLISHER,
SHEFFIELD CITY COUNCIL        ,COMMUNITIES                   ,49363,OLDER PERSONS LIVING          ,5610,AGENCY STAFF                  ,06/01/2016,IPMSCCHT001              ,889.20,INTELLIGENT PROTECTION MANAGEMENT LTD   ,,SECURITY SERVICES             ,
SHEFFIELD CITY COUNCIL        ,COMMUNITIES                   ,49363,OLDER PERSONS LIVING          ,5610,AGENCY STAFF                  ,06/01/2016,IPMSHCWNH002             ,"1,459.20",INTELLIGENT PROTECTION MANAGEMENT LTD   ,,SECURITY SERVICES             ,
SHEFFIELD CITY COUNCIL        ,COMMUNITIES                   ,49363,OLDER PERSONS LIVING          ,5610,AGENCY STAFF                  ,06/01/2016,IPMSECP001               ,900.60,INTELLIGENT PROTECTION MANAGEMENT LTD   ,,SECURITY SERVICES             ,
SHEFFIELD CITY COUNCIL        ,COMMUNITIES                   ,49363,OLDER PERSONS LIVING          ,5610,AGENCY STAFF                  ,06/01/2016,IPMSCH002                ,"1,459.20",INTELLIGENT PROTECTION MANAGEMENT LTD   ,,SECURITY SERVICES             ,
SHEFFIELD CITY COUNCIL        ,COMMUNITIES                   ,49363,OLDER PERSONS LIVING          ,5610,AGENCY STAFF                  ,06/01/2016,IPMSCJTH001              ,342.00,INTELLIGENT PROTECTION MANAGEMENT LTD   ,,SECURITY SERVICES             ,
SHEFFIELD CITY COUNCIL        ,RESOURCES                     ,18042,STATUTORY ADVERTISING         ,8420,ADVERTISING AND PUBL-INVOICED ,06/01/2016,3381246,291.46,SHEFFIELD NEWSPAPERS LTD                ,,NEWSPAPER & MAGAZINE PUBLISHER,
SHEFFIELD CITY COUNCIL        ,RESOURCES                     ,18042,STATUTORY ADVERTISING         ,8420,ADVERTISING AND PUBL-INVOICED ,06/01/2016,3381498,845.24,SHEFFIELD NEWSPAPERS LTD                ,,NEWSPAPER & MAGAZINE PUBLISHER,
SHEFFIELD CITY COUNCIL        ,RESOURCES                     ,18042,STATUTORY ADVERTISING         ,8420,ADVERTISING AND PUBL-INVOICED ,06/01/2016,3381661,320.61,SHEFFIELD NEWSPAPERS LTD                ,,NEWSPAPER & MAGAZINE PUBLISHER,
SHEFFIELD CITY COUNCIL        ,RESOURCES                     ,18042,STATUTORY ADVERTISING         ,8420,ADVERTISING AND PUBL-INVOICED ,06/01/2016,3381693,408.04,SHEFFIELD NEWSPAPERS LTD                ,,NEWSPAPER & MAGAZINE PUBLISHER,
SHEFFIELD CITY COUNCIL        ,RESOURCES                     ,18042,STATUTORY ADVERTISING         ,8420,ADVERTISING AND PUBL-INVOICED ,06/01/2016,3381889,582.92,SHEFFIELD NEWSPAPERS LTD                ,,NEWSPAPER & MAGAZINE PUBLISHER,
SHEFFIELD CITY COUNCIL        ,RESOURCES                     ,18042,STATUTORY ADVERTISING         ,8420,ADVERTISING AND PUBL-INVOICED ,06/01/2016,3382587,495.48,SHEFFIELD NEWSPAPERS LTD                ,,NEWSPAPER & MAGAZINE PUBLISHER,
SHEFFIELD CITY COUNCIL        ,RESOURCES                     ,18042,STATUTORY ADVERTISING         ,8420,ADVERTISING AND PUBL-INVOICED ,06/01/2016,3382652,466.34,SHEFFIELD NEWSPAPERS LTD                ,,NEWSPAPER & MAGAZINE PUBLISHER,
SHEFFIELD CITY COUNCIL        ,RESOURCES                     ,18042,STATUTORY ADVERTISING         ,8420,ADVERTISING AND PUBL-INVOICED ,06/01/2016,3382730,408.04,SHEFFIELD NEWSPAPERS LTD                ,,NEWSPAPER & MAGAZINE PUBLISHER,
SHEFFIELD CITY COUNCIL        ,RESOURCES                     ,18042,STATUTORY ADVERTISING         ,8420,ADVERTISING AND PUBL-INVOICED ,06/01/2016,3387762,291.46,SHEFFIELD NEWSPAPERS LTD                ,,NEWSPAPER & MAGAZINE PUBLISHER,
SHEFFIELD CITY COUNCIL        ,RESOURCES                     ,18042,STATUTORY ADVERTISING         ,8420,ADVERTISING AND PUBL-INVOICED ,06/01/2016,3387774,553.77,SHEFFIELD NEWSPAPERS LTD                ,,NEWSPAPER & MAGAZINE PUBLISHER,
SHEFFIELD CITY COUNCIL        ,RESOURCES                     ,18042,STATUTORY ADVERTISING         ,8420,ADVERTISING AND PUBL-INVOICED ,06/01/2016,3387180,291.46,SHEFFIELD NEWSPAPERS LTD                ,,NEWSPAPER & MAGAZINE PUBLISHER,
SHEFFIELD CITY COUNCIL        ,CYPF                          ,39032,ADOPTION SERVICE              ,8550,OTHER SERVICES                ,06/01/2016,4976,"3,000.00",ADOPTIONPLUS LTD                        ,,ADOPTION & FOSTERING          ,
SHEFFIELD CITY COUNCIL        ,COMMUNITIES                   ,42011,DAY SERVICES                  ,6280,HIRE OF PREMISES              ,06/01/2016,LDDS089                  ,490.00,HANDSWORTH COMMUNITY NURSERY            ,,NURSERIES & CRECHES           ,
SHEFFIELD CITY COUNCIL        ,COMMUNITIES                   ,49363,OLDER PERSONS LIVING          ,8560,HOUSING AREA CONSULT ALLOWANCE,06/01/2016,12410,554.80,SHEFFIELD CITY TAXIS LTD                ,,TAXIS & PRIVATE HIRE          ,
SHEFFIELD CITY COUNCIL        ,PLACE                         ,24410,THE MOOR INDOOR MARKET        ,6030,REPAIRS AND MTCE - RESPONSIVE ,06/01/2016,31054,395.00,ACOLD DISTRIBUTORS LTD                  ,,REFRIGERATION EQUIPMENT - COMM,
SHEFFIELD CITY COUNCIL        ,CYPF                          ,36022,SCHOOL DRINKING MILK          ,8140,GROCERIES                     ,06/01/2016,38,"18,798.78",MEDINA CAPITAL DAIRY CO LTD             ,,DAIRIES                       ,
SHEFFIELD CITY COUNCIL        ,CYPF                          ,36026,SCHOOL MEALS                  ,8130,CATERING SUPPLIES             ,06/01/2016,1904/91120596            ,"2,864.07",MITIE PFI LIMITED                       ,,FACILITIES MANAGEMENT         ,
SHEFFIELD CITY COUNCIL        ,CYPF                          ,36026,SCHOOL MEALS                  ,8150,CONTRACT CATERING - INVOICE   ,06/01/2016,1904/91120596            ,"9,814.33",MITIE PFI LIMITED                       ,,FACILITIES MANAGEMENT         ,
SHEFFIELD CITY COUNCIL        ,COMMUNITIES                   ,49153,OTHER REPAIRS & FEES          ,6030,OTHER RESPONSIVE REPAIRS      ,06/01/2016,C3563-2164/5353/JE       ,"1,939.22",BERSCHE - ROLT LTD                      ,,STRUCTURAL ENGINEERS          ,
SHEFFIELD CITY COUNCIL        ,PLACE                         ,28131,23) SWYP ST SMOKING PROJECT   ,9030,HEALTH                        ,06/01/2016,113957950,"11,250.00",ROTHERHAM MBC                           ,,LOCAL GOVERNMENT              ,
SHEFFIELD CITY COUNCIL        ,COMMUNITIES                   ,42011,DAY SERVICES                  ,8060,MATERIALS AND SUPPLIES GENERAL,06/01/2016,33922,320.38,BLU                                     ,,TOWEL SUPPLY & WASHROOM SERVIC,
SHEFFIELD CITY COUNCIL        ,POLICY PERFORMANCE AND COMMS  ,18003,COMMUNICATIONS                ,8550,OTHER SERVICES                ,06/01/2016,77753,364.26,THE PRINT AND DESIGN FACTORY LTD        ,,PRINTERS                      ,
SHEFFIELD CITY COUNCIL        ,PLACE                         ,24205,KEEP SHEFFIELD WORKING        ,8440,FEE EXPENSES                  ,06/01/2016,VANREPAIIR               ,"2,500.00",EDWARD TURNER &SON LTD T/A DURHAM DUPLEX,,CUTTING TOOLS & MACHINERY     ,
SHEFFIELD CITY COUNCIL        ,RESOURCES                     ,15213,CORPORATE MAIL                ,8570,POSTAGE & DELIVERY            ,06/01/2016,9051225603,298.25,ROYAL MAIL GROUP LTD                    ,,DELIVERY SERVICES             ,
SHEFFIELD CITY COUNCIL        ,COMMUNITIES                   ,49390,ACCOMMODATION                 ,6160,GAS                           ,06/01/2016,10644164280,328.05,EON                                     ,,ELECTRICITY COMPANIES         ,
SHEFFIELD CITY COUNCIL        ,RESOURCES                     ,15217,STADIA TECHNOLOGY PARK        ,6150,ELECTRICITY                   ,06/01/2016,600883493,708.58,BRITISH GAS BUSINESS                    ,,GAS COMPANIES                 ,
SHEFFIELD CITY COUNCIL        ,PLACE                         ,24418,SYFP & FC                     ,6150,ELECTRICITY                   ,06/01/2016,27140029,497.84,NPOWER NORTHERN LTD                     ,,ELECTRICITY COMPANIES         ,
SHEFFIELD CITY COUNCIL        ,RESOURCES                     ,15213,CORPORATE MAIL                ,8570,POSTAGE & DELIVERY            ,06/01/2016,9051223309,"8,673.77",ROYAL MAIL GROUP LTD                    ,,DELIVERY SERVICES             ,
SHEFFIELD CITY COUNCIL        ,CYPF                          ,39148,DIRECT PAYMENTS               ,9190,DIRECT PAYMENTS               ,06/01/2016,J1377124                 ,804.02,REDACTED PERSONAL DATA,Social Community Care,CAREFIRST DIRECT PAYMENTS     ,
SHEFFIELD CITY COUNCIL        ,COMMUNITIES                   ,42034,PURCHASING LEARNING DISABILITI,9250,INDEPENDENT DAY CARE          ,06/01/2016,GC1601                   ,"1,000.00",ORCHARD CARE RESIDENTIAL HOME           ,,NURSING HOMES                 ,
SHEFFIELD CITY COUNCIL        ,COMMUNITIES                   ,46039,ADULT SOCIAL CARE PURCHASING  ,9250,INDEPENDENT DAY CARE          ,06/01/2016,SB1601                   ,576.00,ORCHARD CARE RESIDENTIAL HOME           ,,NURSING HOMES                 ,
SHEFFIELD CITY COUNCIL        ,COMMUNITIES                   ,42034,PURCHASING LEARNING DISABILITI,9210,FUNDED NURSING CARE (INCOME)  ,06/01/2016,T00986                   ,"2,013.92",THE ADSETTS PARTNERSHIP C/O AUTISM PLUS ,,CHARITIES & VOLUNTARY ORGANISA,
SHEFFIELD CITY COUNCIL        ,COMMUNITIES                   ,42034,PURCHASING LEARNING DISABILITI,9210,FUNDED NURSING CARE (INCOME)  ,06/01/2016,T00987                   ,402.80,THE ADSETTS PARTNERSHIP C/O AUTISM PLUS ,,CHARITIES & VOLUNTARY ORGANISA,
SHEFFIELD CITY COUNCIL        ,COMMUNITIES                   ,42034,PURCHASING LEARNING DISABILITI,9250,INDEPENDENT DAY CARE          ,06/01/2016,T00987                   ,"1,611.12",THE ADSETTS PARTNERSHIP C/O AUTISM PLUS ,,CHARITIES & VOLUNTARY ORGANISA,
SHEFFIELD CITY COUNCIL        ,COMMUNITIES                   ,42034,PURCHASING LEARNING DISABILITI,9250,INDEPENDENT DAY CARE          ,06/01/2016,T00989                   ,"2,013.92",THE ADSETTS PARTNERSHIP C/O AUTISM PLUS ,,CHARITIES & VOLUNTARY ORGANISA,
SHEFFIELD CITY COUNCIL        ,COMMUNITIES                   ,42034,PURCHASING LEARNING DISABILITI,9250,INDEPENDENT DAY CARE          ,06/01/2016,T00991                   ,"1,749.72",THE ADSETTS PARTNERSHIP C/O AUTISM PLUS ,,CHARITIES & VOLUNTARY ORGANISA,
SHEFFIELD CITY COUNCIL        ,COMMUNITIES                   ,42034,PURCHASING LEARNING DISABILITI,9250,INDEPENDENT DAY CARE          ,06/01/2016,T00995                   ,"6,745.76",THE ADSETTS PARTNERSHIP C/O AUTISM PLUS ,,CHARITIES & VOLUNTARY ORGANISA,
SHEFFIELD CITY COUNCIL        ,COMMUNITIES                   ,42034,PURCHASING LEARNING DISABILITI,9250,INDEPENDENT DAY CARE          ,06/01/2016,T00996                   ,"6,745.76",THE ADSETTS PARTNERSHIP C/O AUTISM PLUS ,,CHARITIES & VOLUNTARY ORGANISA,
SHEFFIELD CITY COUNCIL        ,COMMUNITIES                   ,46039,ADULT SOCIAL CARE PURCHASING  ,9190,FUNDED HOME SUPPORT           ,06/01/2016,J1368151 131215          ,"1,238.40",HOUSING AND CARE 21                     ,,"HOUSING ASSOCIATIONS, SOCIETIE",
SHEFFIELD CITY COUNCIL        ,COMMUNITIES                   ,47028,PDSI PURCHASING               ,9190,FUNDED HOME SUPPORT           ,06/01/2016,J1368151 131215          ,"1,393.20",HOUSING AND CARE 21                     ,,"HOUSING ASSOCIATIONS, SOCIETIE",
SHEFFIELD CITY COUNCIL        ,COMMUNITIES                   ,42034,PURCHASING LEARNING DISABILITI,9190,BLOCK CONTRACT                ,06/01/2016,J1368151 131215          ,825.60,HOUSING AND CARE 21                     ,,"HOUSING ASSOCIATIONS, SOCIETIE",
SHEFFIELD CITY COUNCIL        ,COMMUNITIES                   ,46039,ADULT SOCIAL CARE PURCHASING  ,9190,BLOCK CONTRACT                ,06/01/2016,J1368151 131215          ,"44,506.89",HOUSING AND CARE 21                     ,,"HOUSING ASSOCIATIONS, SOCIETIE",
SHEFFIELD CITY COUNCIL        ,COMMUNITIES                   ,47028,PDSI PURCHASING               ,9190,BLOCK CONTRACT                ,06/01/2016,J1368151 131215          ,"1,109.40",HOUSING AND CARE 21                     ,,"HOUSING ASSOCIATIONS, SOCIETIE",
SHEFFIELD CITY COUNCIL        ,COMMUNITIES                   ,46039,ADULT SOCIAL CARE PURCHASING  ,9190,FUNDED HOME SUPPORT           ,06/01/2016,J1368152 131215          ,283.92,HOUSING AND CARE 21                     ,,"HOUSING ASSOCIATIONS, SOCIETIE",
SHEFFIELD CITY COUNCIL        ,COMMUNITIES                   ,42034,PURCHASING LEARNING DISABILITI,9190,BLOCK CONTRACT                ,06/01/2016,J1368152 131215          ,713.80,HOUSING AND CARE 21                     ,,"HOUSING ASSOCIATIONS, SOCIETIE",
SHEFFIELD CITY COUNCIL        ,COMMUNITIES                   ,46039,ADULT SOCIAL CARE PURCHASING  ,9190,BLOCK CONTRACT                ,06/01/2016,J1368152 131215          ,"21,787.07",HOUSING AND CARE 21                     ,,"HOUSING ASSOCIATIONS, SOCIETIE",
SHEFFIELD CITY COUNCIL        ,COMMUNITIES                   ,42034,PURCHASING LEARNING DISABILITI,9190,BLOCK CONTRACT                ,06/01/2016,J1368153 131215          ,"7,241.84",SANCTUARY HOMECARE                      ,,HOME CARE SERVICES            ,
SHEFFIELD CITY COUNCIL        ,COMMUNITIES                   ,46039,ADULT SOCIAL CARE PURCHASING  ,9190,FUNDED HOME SUPPORT           ,06/01/2016,J1368153 131215          ,"10,250.44",SANCTUARY HOMECARE                      ,,HOME CARE SERVICES            ,
SHEFFIELD CITY COUNCIL        ,COMMUNITIES                   ,46039,ADULT SOCIAL CARE PURCHASING  ,9190,BLOCK CONTRACT                ,06/01/2016,J1368153 131215          ,"48,814.94",SANCTUARY HOMECARE                      ,,HOME CARE SERVICES            ,
SHEFFIELD CITY COUNCIL        ,COMMUNITIES                   ,47028,PDSI PURCHASING               ,9190,BLOCK CONTRACT                ,06/01/2016,J1368153 131215          ,"1,212.20",SANCTUARY HOMECARE                      ,,HOME CARE SERVICES            ,
SHEFFIELD CITY COUNCIL        ,COMMUNITIES                   ,42034,PURCHASING LEARNING DISABILITI,9190,FUNDED HOME SUPPORT           ,06/01/2016,J1368158 131215          ,258.00,HOUSING AND CARE 21                     ,,"HOUSING ASSOCIATIONS, SOCIETIE",
SHEFFIELD CITY COUNCIL        ,COMMUNITIES                   ,46039,ADULT SOCIAL CARE PURCHASING  ,9190,BLOCK CONTRACT                ,06/01/2016,J1368158 131215          ,"32,006.06",HOUSING AND CARE 21                     ,,"HOUSING ASSOCIATIONS, SOCIETIE",
SHEFFIELD CITY COUNCIL        ,COMMUNITIES                   ,46039,ADULT SOCIAL CARE PURCHASING  ,9190,FUNDED HOME SUPPORT           ,06/01/2016,J1368158 131215          ,"6,902.36",HOUSING AND CARE 21                     ,,"HOUSING ASSOCIATIONS, SOCIETIE",
SHEFFIELD CITY COUNCIL        ,COMMUNITIES                   ,42034,PURCHASING LEARNING DISABILITI,9190,BLOCK CONTRACT                ,06/01/2016,J1368158 131215          ,516.88,HOUSING AND CARE 21                     ,,"HOUSING ASSOCIATIONS, SOCIETIE",
SHEFFIELD CITY COUNCIL        ,COMMUNITIES                   ,44001,PURCHASING                    ,9190,BLOCK CONTRACT                ,06/01/2016,J1368159 131215          ,296.84,WESTMINSTER HOMECARE LTD                ,,NURSING AGENCIES              ,
SHEFFIELD CITY COUNCIL        ,COMMUNITIES                   ,46039,ADULT SOCIAL CARE PURCHASING  ,9190,BLOCK CONTRACT                ,06/01/2016,J1368159 131215          ,"34,671.51",WESTMINSTER HOMECARE LTD                ,,NURSING AGENCIES              ,
SHEFFIELD CITY COUNCIL        ,COMMUNITIES                   ,46039,ADULT SOCIAL CARE PURCHASING  ,9190,FUNDED HOME SUPPORT           ,06/01/2016,J1368159 131215          ,481.60,WESTMINSTER HOMECARE LTD                ,,NURSING AGENCIES              ,
SHEFFIELD CITY COUNCIL        ,COMMUNITIES                   ,46039,ADULT SOCIAL CARE PURCHASING  ,9190,FUNDED HOME SUPPORT           ,06/01/2016,J1368160 131215          ,"2,347.80",WESTMINSTER HOMECARE LTD                ,,NURSING AGENCIES              ,
SHEFFIELD CITY COUNCIL        ,COMMUNITIES                   ,46039,ADULT SOCIAL CARE PURCHASING  ,9190,BLOCK CONTRACT                ,06/01/2016,J1368160 131215          ,"56,627.38",WESTMINSTER HOMECARE LTD                ,,NURSING AGENCIES              ,
SHEFFIELD CITY COUNCIL        ,COMMUNITIES                   ,47028,PDSI PURCHASING               ,9190,BLOCK CONTRACT                ,06/01/2016,J1368160 131215          ,946.00,WESTMINSTER HOMECARE LTD                ,,NURSING AGENCIES              ,
SHEFFIELD CITY COUNCIL        ,COMMUNITIES                   ,46039,ADULT SOCIAL CARE PURCHASING  ,9190,BLOCK CONTRACT                ,06/01/2016,J1368162 131215          ,"24,985.42",SANCTUARY HOMECARE                      ,,HOME CARE SERVICES            ,
SHEFFIELD CITY COUNCIL        ,COMMUNITIES                   ,46039,ADULT SOCIAL CARE PURCHASING  ,9190,BLOCK CONTRACT                ,06/01/2016,J1368163 131215          ,"20,257.20",SANCTUARY HOMECARE                      ,,HOME CARE SERVICES            ,
SHEFFIELD CITY COUNCIL        ,COMMUNITIES                   ,46039,ADULT SOCIAL CARE PURCHASING  ,9190,FUNDED HOME SUPPORT           ,06/01/2016,J1368164 131215          ,"1,711.40",WESTMINSTER HOMECARE LTD                ,,NURSING AGENCIES              ,
SHEFFIELD CITY COUNCIL        ,COMMUNITIES                   ,46039,ADULT SOCIAL CARE PURCHASING  ,9190,BLOCK CONTRACT                ,06/01/2016,J1368164 131215          ,"31,691.05",WESTMINSTER HOMECARE LTD                ,,NURSING AGENCIES              ,
SHEFFIELD CITY COUNCIL        ,COMMUNITIES                   ,46039,ADULT SOCIAL CARE PURCHASING  ,9190,BLOCK CONTRACT                ,06/01/2016,J1368169 131215          ,"1,248.75",REDACTED PERSONAL DATA,,HOME CARE SERVICES            ,
SHEFFIELD CITY COUNCIL        ,COMMUNITIES                   ,46039,ADULT SOCIAL CARE PURCHASING  ,9190,BLOCK CONTRACT                ,06/01/2016,J1368173 131215          ,"9,217.83",REDACTED PERSONAL DATA,,HOME CARE SERVICES            ,
SHEFFIELD CITY COUNCIL        ,COMMUNITIES                   ,42034,PURCHASING LEARNING DISABILITI,9190,BLOCK CONTRACT                ,06/01/2016,J1368173 131215          ,451.92,REDACTED PERSONAL DATA,,HOME CARE SERVICES            ,
SHEFFIELD CITY COUNCIL        ,COMMUNITIES                   ,46039,ADULT SOCIAL CARE PURCHASING  ,9190,FUNDED HOME SUPPORT           ,06/01/2016,J1368178 131215          ,"5,142.92",REDACTED PERSONAL DATA,,HOME CARE SERVICES            ,
SHEFFIELD CITY COUNCIL        ,COMMUNITIES                   ,46039,ADULT SOCIAL CARE PURCHASING  ,9190,BLOCK CONTRACT                ,06/01/2016,J1368178 131215          ,"53,230.79",REDACTED PERSONAL DATA,,HOME CARE SERVICES            ,
SHEFFIELD CITY COUNCIL        ,COMMUNITIES                   ,44001,PURCHASING                    ,9190,BLOCK CONTRACT                ,06/01/2016,J1368178 131215          ,267.33,REDACTED PERSONAL DATA,,HOME CARE SERVICES            ,
SHEFFIELD CITY COUNCIL        ,COMMUNITIES                   ,42034,PURCHASING LEARNING DISABILITI,9190,BLOCK CONTRACT                ,06/01/2016,J1368178 131215          ,"2,126.00",REDACTED PERSONAL DATA,,HOME CARE SERVICES            ,
SHEFFIELD CITY COUNCIL        ,COMMUNITIES                   ,47028,PDSI PURCHASING               ,9190,BLOCK CONTRACT                ,06/01/2016,J1368178 131215          ,"1,176.96",REDACTED PERSONAL DATA,,HOME CARE SERVICES            ,
SHEFFIELD CITY COUNCIL        ,COMMUNITIES                   ,46039,ADULT SOCIAL CARE PURCHASING  ,9190,BLOCK CONTRACT                ,06/01/2016,J1368179 131215          ,"44,605.52",REDACTED PERSONAL DATA,,HOME CARE SERVICES            ,
SHEFFIELD CITY COUNCIL        ,COMMUNITIES                   ,46039,ADULT SOCIAL CARE PURCHASING  ,9190,FUNDED HOME SUPPORT           ,06/01/2016,J1368179 131215          ,889.84,REDACTED PERSONAL DATA,,HOME CARE SERVICES            ,
SHEFFIELD CITY COUNCIL        ,COMMUNITIES                   ,42034,PURCHASING LEARNING DISABILITI,9190,BLOCK CONTRACT                ,06/01/2016,J1368179 131215          ,"2,560.64",REDACTED PERSONAL DATA,,HOME CARE SERVICES            ,
SHEFFIELD CITY COUNCIL        ,COMMUNITIES                   ,46039,ADULT SOCIAL CARE PURCHASING  ,9190,BLOCK CONTRACT                ,06/01/2016,J1368180 131215          ,"55,847.09",REDACTED PERSONAL DATA,,HOME CARE SERVICES            ,
SHEFFIELD CITY COUNCIL        ,COMMUNITIES                   ,47028,PDSI PURCHASING               ,9190,BLOCK CONTRACT                ,06/01/2016,J1368180 131215          ,990.00,REDACTED PERSONAL DATA,,HOME CARE SERVICES            ,
SHEFFIELD CITY COUNCIL        ,COMMUNITIES                   ,42034,PURCHASING LEARNING DISABILITI,9190,BLOCK CONTRACT                ,06/01/2016,J1368180 131215          ,418.91,REDACTED PERSONAL DATA,,HOME CARE SERVICES            ,
SHEFFIELD CITY COUNCIL        ,COMMUNITIES                   ,46039,ADULT SOCIAL CARE PURCHASING  ,9190,FUNDED HOME SUPPORT           ,06/01/2016,J1368182 131215          ,"1,150.80",REDACTED PERSONAL DATA,,HOME CARE SERVICES            ,
SHEFFIELD CITY COUNCIL        ,COMMUNITIES                   ,42034,PURCHASING LEARNING DISABILITI,9190,FUNDED HOME SUPPORT           ,06/01/2016,J1368182 131215          ,"1,695.20",REDACTED PERSONAL DATA,,HOME CARE SERVICES            ,
SHEFFIELD CITY COUNCIL        ,COMMUNITIES                   ,46039,ADULT SOCIAL CARE PURCHASING  ,9190,BLOCK CONTRACT                ,06/01/2016,J1368182 131215          ,"51,102.13",REDACTED PERSONAL DATA,,HOME CARE SERVICES            ,
SHEFFIELD CITY COUNCIL        ,COMMUNITIES                   ,47028,PDSI PURCHASING               ,9190,BLOCK CONTRACT                ,06/01/2016,J1368183 131215          ,708.52,REDACTED PERSONAL DATA,,HOME CARE SERVICES            ,
SHEFFIELD CITY COUNCIL        ,COMMUNITIES                   ,46039,ADULT SOCIAL CARE PURCHASING  ,9190,BLOCK CONTRACT                ,06/01/2016,J1368183 131215          ,"34,074.24",REDACTED PERSONAL DATA,,HOME CARE SERVICES            ,
SHEFFIELD CITY COUNCIL        ,COMMUNITIES                   ,42034,PURCHASING LEARNING DISABILITI,9190,CITYWIDE SPOT                 ,06/01/2016,1866,563.80,REDACTED PERSONAL DATA,,HOME CARE SERVICES            ,
SHEFFIELD CITY COUNCIL        ,COMMUNITIES                   ,42034,PURCHASING LEARNING DISABILITI,9190,FUNDED HOME SUPPORT           ,06/01/2016,2220450,970.72,MENCAP HOMECARE                         ,,CHARITIES & VOLUNTARY ORGANISA,
SHEFFIELD CITY COUNCIL        ,COMMUNITIES                   ,42034,PURCHASING LEARNING DISABILITI,9190,CITYWIDE SPOT                 ,06/01/2016,9327,480.00,HEELEY CITY FARM                        ,,CHARITIES & VOLUNTARY ORGANISA,
SHEFFIELD CITY COUNCIL        ,COMMUNITIES                   ,42034,PURCHASING LEARNING DISABILITI,9190,CITYWIDE SPOT                 ,06/01/2016,2220451/452              ,853.76,MENCAP HOMECARE                         ,,CHARITIES & VOLUNTARY ORGANISA,
SHEFFIELD CITY COUNCIL        ,COMMUNITIES                   ,42034,PURCHASING LEARNING DISABILITI,9190,CITYWIDE SPOT                 ,06/01/2016,2220453,767.32,MENCAP HOMECARE                         ,,CHARITIES & VOLUNTARY ORGANISA,
SHEFFIELD CITY COUNCIL        ,COMMUNITIES                   ,42034,PURCHASING LEARNING DISABILITI,9190,CITYWIDE SPOT                 ,06/01/2016,2220456,"1,768.25",MENCAP HOMECARE                         ,,CHARITIES & VOLUNTARY ORGANISA,
SHEFFIELD CITY COUNCIL        ,COMMUNITIES                   ,42034,PURCHASING LEARNING DISABILITI,9190,CITYWIDE SPOT                 ,06/01/2016,2220465,677.64,MENCAP HOMECARE                         ,,CHARITIES & VOLUNTARY ORGANISA,
SHEFFIELD CITY COUNCIL        ,COMMUNITIES                   ,42034,PURCHASING LEARNING DISABILITI,9190,CITYWIDE SPOT                 ,06/01/2016,2220470,673.56,MENCAP HOMECARE                         ,,CHARITIES & VOLUNTARY ORGANISA,
SHEFFIELD CITY COUNCIL        ,COMMUNITIES                   ,42034,PURCHASING LEARNING DISABILITI,9190,FUNDED HOME SUPPORT           ,06/01/2016,2220471,"1,791.00",MENCAP HOMECARE                         ,,CHARITIES & VOLUNTARY ORGANISA,
SHEFFIELD CITY COUNCIL        ,COMMUNITIES                   ,42034,PURCHASING LEARNING DISABILITI,9190,CITYWIDE SPOT                 ,06/01/2016,2220471,"2,164.32",MENCAP HOMECARE                         ,,CHARITIES & VOLUNTARY ORGANISA,
SHEFFIELD CITY COUNCIL        ,COMMUNITIES                   ,46039,ADULT SOCIAL CARE PURCHASING  ,9190,CITYWIDE SPOT                 ,06/01/2016,2220472,"1,280.64",MENCAP HOMECARE                         ,,CHARITIES & VOLUNTARY ORGANISA,
SHEFFIELD CITY COUNCIL        ,COMMUNITIES                   ,42034,PURCHASING LEARNING DISABILITI,9190,CITYWIDE SPOT                 ,06/01/2016,2220473,426.88,MENCAP HOMECARE                         ,,CHARITIES & VOLUNTARY ORGANISA,
SHEFFIELD CITY COUNCIL        ,COMMUNITIES                   ,46039,ADULT SOCIAL CARE PURCHASING  ,9190,CITYWIDE SPOT                 ,06/01/2016,LOXOLO020106             ,400.00,SIGNATURE AT LOXLEY PARK (OPERATIONS) LT,,RESIDENTIAL CARE HOMES        ,
SHEFFIELD CITY COUNCIL        ,COMMUNITIES                   ,42034,PURCHASING LEARNING DISABILITI,9190,CITYWIDE SPOT                 ,06/01/2016,2220474,"1,568.68",MENCAP HOMECARE                         ,,CHARITIES & VOLUNTARY ORGANISA,
SHEFFIELD CITY COUNCIL        ,COMMUNITIES                   ,42034,PURCHASING LEARNING DISABILITI,9190,CITYWIDE SPOT                 ,06/01/2016,T00988                   ,"1,131.80",THE ADSETTS PARTNERSHIP C/O AUTISM PLUS ,,CHARITIES & VOLUNTARY ORGANISA,
SHEFFIELD CITY COUNCIL        ,COMMUNITIES                   ,42034,PURCHASING LEARNING DISABILITI,9190,FUNDED HOME SUPPORT           ,06/01/2016,T00988                   ,996.52,THE ADSETTS PARTNERSHIP C/O AUTISM PLUS ,,CHARITIES & VOLUNTARY ORGANISA,
SHEFFIELD CITY COUNCIL        ,COMMUNITIES                   ,46039,ADULT SOCIAL CARE PURCHASING  ,9190,CITYWIDE SPOT                 ,06/01/2016,T00990                   ,"1,012.00",THE ADSETTS PARTNERSHIP C/O AUTISM PLUS ,,CHARITIES & VOLUNTARY ORGANISA,
SHEFFIELD CITY COUNCIL        ,COMMUNITIES                   ,42034,PURCHASING LEARNING DISABILITI,9190,CITYWIDE SPOT                 ,06/01/2016,2220475,426.88,MENCAP HOMECARE                         ,,CHARITIES & VOLUNTARY ORGANISA,
SHEFFIELD CITY COUNCIL        ,COMMUNITIES                   ,42034,PURCHASING LEARNING DISABILITI,9190,FUNDED HOME SUPPORT           ,06/01/2016,T00994                   ,"5,152.00",THE ADSETTS PARTNERSHIP C/O AUTISM PLUS ,,CHARITIES & VOLUNTARY ORGANISA,
SHEFFIELD CITY COUNCIL        ,COMMUNITIES                   ,42034,PURCHASING LEARNING DISABILITI,9190,CITYWIDE SPOT                 ,06/01/2016,2220476,"2,561.28",MENCAP HOMECARE                         ,,CHARITIES & VOLUNTARY ORGANISA,
SHEFFIELD CITY COUNCIL        ,COMMUNITIES                   ,42034,PURCHASING LEARNING DISABILITI,9190,CITYWIDE SPOT                 ,06/01/2016,2220477,414.52,MENCAP HOMECARE                         ,,CHARITIES & VOLUNTARY ORGANISA,
SHEFFIELD CITY COUNCIL        ,COMMUNITIES                   ,42034,PURCHASING LEARNING DISABILITI,9190,CITYWIDE SPOT                 ,06/01/2016,2220478,853.76,MENCAP HOMECARE                         ,,CHARITIES & VOLUNTARY ORGANISA,
SHEFFIELD CITY COUNCIL        ,COMMUNITIES                   ,42034,PURCHASING LEARNING DISABILITI,9190,CITYWIDE SPOT                 ,06/01/2016,2220492,"3,628.48",MENCAP HOMECARE                         ,,CHARITIES & VOLUNTARY ORGANISA,
SHEFFIELD CITY COUNCIL        ,COMMUNITIES                   ,42034,PURCHASING LEARNING DISABILITI,9190,CITYWIDE SPOT                 ,06/01/2016,2220493,"1,560.80",MENCAP HOMECARE                         ,,CHARITIES & VOLUNTARY ORGANISA,
SHEFFIELD CITY COUNCIL        ,COMMUNITIES                   ,42034,PURCHASING LEARNING DISABILITI,9190,CITYWIDE SPOT                 ,06/01/2016,2220494,"2,065.84",MENCAP HOMECARE                         ,,CHARITIES & VOLUNTARY ORGANISA,
SHEFFIELD CITY COUNCIL        ,COMMUNITIES                   ,42034,PURCHASING LEARNING DISABILITI,9190,CITYWIDE SPOT                 ,06/01/2016,2220495,640.32,MENCAP HOMECARE                         ,,CHARITIES & VOLUNTARY ORGANISA,
SHEFFIELD CITY COUNCIL        ,COMMUNITIES                   ,42034,PURCHASING LEARNING DISABILITI,9190,CITYWIDE SPOT                 ,06/01/2016,2220496,853.76,MENCAP HOMECARE                         ,,CHARITIES & VOLUNTARY ORGANISA,
SHEFFIELD CITY COUNCIL        ,COMMUNITIES                   ,42034,PURCHASING LEARNING DISABILITI,9190,CITYWIDE SPOT                 ,06/01/2016,2220497,"2,065.84",MENCAP HOMECARE                         ,,CHARITIES & VOLUNTARY ORGANISA,
SHEFFIELD CITY COUNCIL        ,COMMUNITIES                   ,42034,PURCHASING LEARNING DISABILITI,9190,CITYWIDE SPOT                 ,06/01/2016,2220498,"2,344.80",MENCAP HOMECARE                         ,,CHARITIES & VOLUNTARY ORGANISA,
SHEFFIELD CITY COUNCIL        ,COMMUNITIES                   ,42034,PURCHASING LEARNING DISABILITI,9190,CITYWIDE SPOT                 ,06/01/2016,2220499,"1,960.40",MENCAP HOMECARE                         ,,CHARITIES & VOLUNTARY ORGANISA,
SHEFFIELD CITY COUNCIL        ,COMMUNITIES                   ,42034,PURCHASING LEARNING DISABILITI,9190,CITYWIDE SPOT                 ,06/01/2016,2220501,853.76,MENCAP HOMECARE                         ,,CHARITIES & VOLUNTARY ORGANISA,
SHEFFIELD CITY COUNCIL        ,COMMUNITIES                   ,42034,PURCHASING LEARNING DISABILITI,9190,CITYWIDE SPOT                 ,06/01/2016,2220503/504              ,"1,033.08",MENCAP HOMECARE                         ,,CHARITIES & VOLUNTARY ORGANISA,
SHEFFIELD CITY COUNCIL        ,COMMUNITIES                   ,42034,PURCHASING LEARNING DISABILITI,9190,CITYWIDE SPOT                 ,06/01/2016,2220505,"1,280.64",MENCAP HOMECARE                         ,,CHARITIES & VOLUNTARY ORGANISA,
SHEFFIELD CITY COUNCIL        ,COMMUNITIES                   ,42034,PURCHASING LEARNING DISABILITI,9190,CITYWIDE SPOT                 ,06/01/2016,2220506,853.76,MENCAP HOMECARE                         ,,CHARITIES & VOLUNTARY ORGANISA,
SHEFFIELD CITY COUNCIL        ,COMMUNITIES                   ,42034,PURCHASING LEARNING DISABILITI,9190,CITYWIDE SPOT                 ,06/01/2016,2220507,"2,801.40",MENCAP HOMECARE                         ,,CHARITIES & VOLUNTARY ORGANISA,
SHEFFIELD CITY COUNCIL        ,COMMUNITIES                   ,42034,PURCHASING LEARNING DISABILITI,9190,CITYWIDE SPOT                 ,06/01/2016,2220508,853.76,MENCAP HOMECARE                         ,,CHARITIES & VOLUNTARY ORGANISA,
SHEFFIELD CITY COUNCIL        ,COMMUNITIES                   ,46039,ADULT SOCIAL CARE PURCHASING  ,9190,CITYWIDE SPOT                 ,06/01/2016,22437,"1,600.83",SSA SOCIAL CARE & COMMUNITY SERVICES LTD,,EMPLOYMENT & RECRUITMENT AGENC,
SHEFFIELD CITY COUNCIL        ,COMMUNITIES                   ,44001,PURCHASING                    ,9190,CITYWIDE SPOT                 ,06/01/2016,22437,330.75,SSA SOCIAL CARE & COMMUNITY SERVICES LTD,,EMPLOYMENT & RECRUITMENT AGENC,
SHEFFIELD CITY COUNCIL        ,COMMUNITIES                   ,42034,PURCHASING LEARNING DISABILITI,9190,CITYWIDE SPOT                 ,06/01/2016,265-008272               ,525.47,LEONARD CHESHIRE SERVICES               ,,CHARITIES & VOLUNTARY ORGANISA,
SHEFFIELD CITY COUNCIL        ,COMMUNITIES                   ,46039,ADULT SOCIAL CARE PURCHASING  ,9190,CITYWIDE SPOT                 ,06/01/2016,265-008274               ,"1,051.17",LEONARD CHESHIRE SERVICES               ,,CHARITIES & VOLUNTARY ORGANISA,
SHEFFIELD CITY COUNCIL        ,COMMUNITIES                   ,42034,PURCHASING LEARNING DISABILITI,9190,CITYWIDE SPOT                 ,06/01/2016,265-008275               ,"1,102.00",LEONARD CHESHIRE SERVICES               ,,CHARITIES & VOLUNTARY ORGANISA,
SHEFFIELD CITY COUNCIL        ,COMMUNITIES                   ,42034,PURCHASING LEARNING DISABILITI,9190,CITYWIDE SPOT                 ,06/01/2016,265-008276               ,"5,991.80",LEONARD CHESHIRE SERVICES               ,,CHARITIES & VOLUNTARY ORGANISA,
